Body name,Service Area,Dept,Expenses Type,Capital/Revenue,Detailed Expenses Type,Transaction number,Expense Code,Date,Amount,Supplier Name,Supplier ID
WANDSWORTH COUNCIL,CRS,ADMINISTRATION,"REPAIRS, ALTERATIONS & MTCE",Revenue,"REPS, ALTS & MTCE-BUILDINGS",907438,100110000,24/03/2016,"1,240.25",QUEENSTOWN PLACE,RG0000001
WANDSWORTH COUNCIL,CS,,COMMUNICATIONS & COMP,Revenue,I.T. SOFTWARE,907490,100336240,31/03/2016,"8,008.14",NORTHGATE PUBLIC SERVICES (UK) LTD,SP0000812
WANDSWORTH COUNCIL,CS,,"REPAIRS, ALTERATIONS & MTCE",Revenue,"REPS, ALTS & MTCE-BUILDINGS",891269,100410000,07/03/2016,505.35,DH CROFTS LTD,SP0000076
WANDSWORTH COUNCIL,CS,,"REPAIRS, ALTERATIONS & MTCE",Revenue,"REPS, ALTS & MTCE-BUILDINGS",898693,100410000,16/03/2016,"4,638.02",T BROWN GROUP LTD,SP0001050
WANDSWORTH COUNCIL,CS,,"REPAIRS, ALTERATIONS & MTCE",Revenue,"REPS, ALTS & MTCE-BUILDINGS",898697,100410000,16/03/2016,"1,690.66",T BROWN GROUP LTD,SP0001050
WANDSWORTH COUNCIL,CS,,"REPAIRS, ALTERATIONS & MTCE",Revenue,"REPS, ALTS & MTCE-BUILDINGS",900323,100410000,17/03/2016,"5,545.61",T BROWN GROUP LTD,SP0001050
WANDSWORTH COUNCIL,CS,,"REPAIRS, ALTERATIONS & MTCE",Revenue,"REPS, ALTS & MTCE-BUILDINGS",900324,100410000,17/03/2016,"9,469.98",T BROWN GROUP LTD,SP0001050
WANDSWORTH COUNCIL,CS,,"REPAIRS, ALTERATIONS & MTCE",Revenue,"REPS, ALTS & MTCE-BUILDINGS",909621,100410000,29/03/2016,821.96,T BROWN GROUP LTD,SP0001050
WANDSWORTH COUNCIL,CS,,"REPAIRS, ALTERATIONS & MTCE",Revenue,"REPS, ALTS & MTCE-BUILDINGS",898712,100410000,16/03/2016,970.00,A-LIST WINDOW CLEANG LTD T/A ACS WINDOWS,SP0006912
WANDSWORTH COUNCIL,CS,,"REPAIRS, ALTERATIONS & MTCE",Revenue,"REPS, ALTS & MTCE-BUILDINGS",898713,100410000,16/03/2016,650.00,A-LIST WINDOW CLEANG LTD T/A ACS WINDOWS,SP0006912
WANDSWORTH COUNCIL,CS,,RENTS,Revenue,RENTS,888534,100413400,21/03/2016,"3,665.76",ENABLE LEISURE AND CULTURE,SP0010236
WANDSWORTH COUNCIL,CS,,RENTS,Revenue,RENTS,891866,100413400,21/03/2016,"3,665.76",ENABLE LEISURE AND CULTURE,SP0010236
WANDSWORTH COUNCIL,CS,,RENTS,Revenue,RENTS,891867,100413400,21/03/2016,"3,665.76",ENABLE LEISURE AND CULTURE,SP0010236
WANDSWORTH COUNCIL,CS,,RENTS,Revenue,RENTS,891868,100413400,21/03/2016,"3,665.76",ENABLE LEISURE AND CULTURE,SP0010236
WANDSWORTH COUNCIL,CS,,RENTS,Revenue,RENTS,891869,100413400,21/03/2016,"3,665.76",ENABLE LEISURE AND CULTURE,SP0010236
WANDSWORTH COUNCIL,CS,,RENTS,Revenue,RENTS,891872,100413400,21/03/2016,"3,665.76",ENABLE LEISURE AND CULTURE,SP0010236
WANDSWORTH COUNCIL,CS,,"REPAIRS, ALTERATIONS & MTCE",Revenue,"REPS, ALTS & MTCE-BUILDINGS",894703,100510000,14/03/2016,500.00,AMCM CONSTRUCTION LTD,SP0009803
WANDSWORTH COUNCIL,CS,,SERVICES,Revenue,CONSULTANTS FEES,887019,100534200,03/03/2016,"2,950.00",RANDALL SURVEYS LLP,SP0006774
WANDSWORTH COUNCIL,CS,,SERVICES,Revenue,CONSULTANTS FEES,893948,100534200,11/03/2016,"1,162.50",FEILDEN CLEGG BRADLEY STUDIOS,SP0006782
WANDSWORTH COUNCIL,CS,,OTHER AGENCIES,Revenue,HEALTHWATCH CONTRACT,908657,102043830,31/03/2016,"35,911.00",WANDSWORTH CARE ALLIANCE,SP0008176
WANDSWORTH COUNCIL,PH,,SERVICES,Revenue,PROJECT WORK,887543,102234800,03/03/2016,"6,964.34",ACTIVE CHANGE FOUNDATION,SP0010553
WANDSWORTH COUNCIL,CS,,COMMUNICATIONS & COMP,Revenue,COMMUNICATIONS - POSTAGE,903897,103036000,23/03/2016,445.84,ROYAL MAIL,SP0001067
WANDSWORTH COUNCIL,CS,,COMMUNICATIONS & COMP,Revenue,XPRESS COMPUTER,889517,103036570,07/03/2016,"5,450.00",XPRESS SOFTWARE SOLUTIONS LTD,SP0003149
WANDSWORTH COUNCIL,CS,,"REPAIRS, ALTERATIONS & MTCE",Revenue,"REPS, ALTS & MTCE-BUILDINGS",900232,103110000,17/03/2016,"1,600.52",DH CROFTS LTD,SP0000076
WANDSWORTH COUNCIL,CS,,"EQUIPMENT, FURNITURE & MATS",Revenue,FLOWERS,889097,103130170,04/03/2016,969.00,PATRICIA WONG,SP0002085
WANDSWORTH COUNCIL,CS,,"EQUIPMENT, FURNITURE & MATS",Revenue,FLOWERS,897705,103130170,17/03/2016,646.00,PATRICIA WONG,SP0002085
WANDSWORTH COUNCIL,CS,,"EQUIPMENT, FURNITURE & MATS",Revenue,FLOWERS,911188,103130170,31/03/2016,646.00,PATRICIA WONG,SP0002085
WANDSWORTH COUNCIL,CS,,COMMUNICATIONS & COMP,Revenue,I.T. DEVELOPMENTS,897910,103436200,21/03/2016,7.00,AMERICANINO LTD,SP0003193
WANDSWORTH COUNCIL,CS,,COMMUNICATIONS & COMP,Revenue,I.T. DEVELOPMENTS,897910,103436200,21/03/2016,637.50,AMERICANINO LTD,SP0003193
WANDSWORTH COUNCIL,PH,,HEALTH,Revenue,GP LES CONTRACTS,896849,105041520,16/03/2016,"2,029.00",BRIDGE LANE GROUP PRACTICE,SP0000516
WANDSWORTH COUNCIL,PH,,HEALTH,Revenue,GP LES CONTRACTS,896858,105041520,16/03/2016,"5,026.00",BALHAM PARK SURGERY,SP0000925
WANDSWORTH COUNCIL,PH,,HEALTH,Revenue,GP LES CONTRACTS,901045,105041520,21/03/2016,"2,250.00",MAYFIELD SURGERY,SP0002209
WANDSWORTH COUNCIL,PH,,HEALTH,Revenue,GP LES CONTRACTS,896862,105041520,16/03/2016,"1,907.00",CHATFIELD HEALTH CARE,SP0002903
WANDSWORTH COUNCIL,PH,,HEALTH,Revenue,GP LES CONTRACTS,901149,105041520,21/03/2016,"1,349.00",CHATFIELD HEALTH CARE,SP0002903
WANDSWORTH COUNCIL,PH,,HEALTH,Revenue,GP LES CONTRACTS,896843,105041520,16/03/2016,"2,991.00",THURLEIGH ROAD PRACTICE H85114,SP0003310
WANDSWORTH COUNCIL,PH,,HEALTH,Revenue,GP LES CONTRACTS,897333,105041520,16/03/2016,"2,290.00",THE GREYSWOOD PRACTICE,SP0006936
WANDSWORTH COUNCIL,PH,,HEALTH,Revenue,GP LES CONTRACTS,896859,105041520,16/03/2016,"4,254.00",WANDSWORTH MEDICAL CENTRE,SP0007088
WANDSWORTH COUNCIL,PH,,HEALTH,Revenue,GP LES CONTRACTS,896863,105041520,16/03/2016,701.00,BATTERSEA RISE GROUP PRACTICE H85049,SP0007572
WANDSWORTH COUNCIL,PH,,HEALTH,Revenue,GP LES CONTRACTS,896868,105041520,16/03/2016,"1,206.00",EARLSFIELD PRACTICE,SP0007581
WANDSWORTH COUNCIL,PH,,HEALTH,Revenue,GP LES CONTRACTS,896860,105041520,16/03/2016,303.00,THE FALCON ROAD MEDICAL CENTRE H85002,SP0007953
WANDSWORTH COUNCIL,PH,,HEALTH,Revenue,GP LES CONTRACTS,897337,105041520,16/03/2016,"2,406.00",BROCKLEBANK GROUP PRACTICE,SP0007967
WANDSWORTH COUNCIL,PH,,HEALTH,Revenue,GP LES CONTRACTS,897335,105041520,16/03/2016,"1,124.00",ELBOROUGH STREET SURGERY H85057,SP0007971
WANDSWORTH COUNCIL,PH,,HEALTH,Revenue,GP LES CONTRACTS,896866,105041520,16/03/2016,"1,320.00",ST PAULS COTTAGE PRACTICE,SP0007978
WANDSWORTH COUNCIL,PH,,HEALTH,Revenue,GP LES CONTRACTS,896848,105041520,16/03/2016,42.00,BOLINGBROKE MEDICAL CENTRE H85077,SP0008282
WANDSWORTH COUNCIL,PH,,HEALTH,Revenue,GP LES CONTRACTS,896850,105041520,16/03/2016,865.00,TUDOR LODGE HEALTH CENTRE H85682,SP0008309
WANDSWORTH COUNCIL,PH,,HEALTH,Revenue,GP LES CONTRACTS,896867,105041520,16/03/2016,"2,029.00",CHARTFIELD SURGERY Y01132,SP0008380
WANDSWORTH COUNCIL,PH,,HEALTH,Revenue,EMERG HORMONAL CONTRACEPTION,892319,105041670,10/03/2016,"1,518.00",PEARL CHEMIST LTD,SP0004997
WANDSWORTH COUNCIL,PH,,HEALTH,Revenue,EMERG HORMONAL CONTRACEPTION,892101,105041670,10/03/2016,"1,886.00",WANDSWORTH PHARMACY FGJ32,SP0004998
WANDSWORTH COUNCIL,PH,,HEALTH,Revenue,EMERG HORMONAL CONTRACEPTION,892212,105041670,10/03/2016,92.00,SAAJ LTD,SP0005001
WANDSWORTH COUNCIL,PH,,HEALTH,Revenue,EMERG HORMONAL CONTRACEPTION,891953,105041670,10/03/2016,874.00,SALASJI LTD FG443 T/A DUMLERS PHARMACY,SP0005003
WANDSWORTH COUNCIL,PH,,HEALTH,Revenue,EMERG HORMONAL CONTRACEPTION,891965,105041670,10/03/2016,207.00,POLYPHARM LTD FNG23,SP0005011
WANDSWORTH COUNCIL,PH,,HEALTH,Revenue,EMERG HORMONAL CONTRACEPTION,892322,105041670,10/03/2016,851.00,AMICHEM LTD,SP0005013
WANDSWORTH COUNCIL,PH,,HEALTH,Revenue,EMERG HORMONAL CONTRACEPTION,891971,105041670,10/03/2016,161.00,MARKRISE PHARMACY,SP0006464
WANDSWORTH COUNCIL,PH,,HEALTH,Revenue,EMERG HORMONAL CONTRACEPTION,895132,105041670,14/03/2016,782.00,BOOTS THE CHEMISTS LTD,SP0006952
WANDSWORTH COUNCIL,PH,,HEALTH,Revenue,EMERG HORMONAL CONTRACEPTION,891966,105041670,10/03/2016,529.00,NSK LTD,SP0007000
WANDSWORTH COUNCIL,PH,,HEALTH,Revenue,EMERG HORMONAL CONTRACEPTION,892323,105041670,10/03/2016,46.00,PATEL JG & KG LLP T/A AURA PHARMAC FV302,SP0007457
WANDSWORTH COUNCIL,PH,,HEALTH,Revenue,EMERG HORMONAL CONTRACEPTION,891954,105041670,10/03/2016,115.00,HEALTHCHEM LTD,SP0007576
WANDSWORTH COUNCIL,PH,,HEALTH,Revenue,EMERG HORMONAL CONTRACEPTION,891952,105041670,10/03/2016,322.00,DAY LEWIS PLC,SP0007580
WANDSWORTH COUNCIL,PH,,HEALTH,Revenue,EMERG HORMONAL CONTRACEPTION,892320,105041670,10/03/2016,345.00,CANTERBURY PHARMACIES LTD,SP0007593
WANDSWORTH COUNCIL,PH,,HEALTH,Revenue,EMERG HORMONAL CONTRACEPTION,891962,105041670,10/03/2016,322.00,JAYACHOICE LTD,SP0007824
WANDSWORTH COUNCIL,PH,,HEALTH,Revenue,EMERG HORMONAL CONTRACEPTION,891963,105041670,10/03/2016,805.00,TINDACOL LTD T/A CARE CHEMISTS FW023,SP0008146
WANDSWORTH COUNCIL,PH,,HEALTH,Revenue,EMERG HORMONAL CONTRACEPTION,891972,105041670,10/03/2016,920.00,I PATEL T/A TOOTING PHARMACY PRACT FK076,SP0008373
WANDSWORTH COUNCIL,PH,,HEALTH,Revenue,EMERG HORMONAL CONTRACEPTION,892100,105041670,10/03/2016,805.00,WRICKLEMARSH LTD FVM91,SP0008378
WANDSWORTH COUNCIL,PH,,HEALTH,Revenue,EMERG HORMONAL CONTRACEPTION,892552,105041670,10/03/2016,460.00,OAKLON LIMITED FMC 35 T/A EAST HILL PHAR,SP0008379
WANDSWORTH COUNCIL,PH,,HEALTH,Revenue,EMERG HORMONAL CONTRACEPTION,891948,105041670,10/03/2016,"3,289.00",BOOTS UK LTD FKP46 T/A BOOTS THE CHEMIST,SP0008388
WANDSWORTH COUNCIL,PH,,HEALTH,Revenue,EMERG HORMONAL CONTRACEPTION,891967,105041670,10/03/2016,"8,073.00",BOOTS UK LTD FC061 T/A BOOTS THE CHEMIST,SP0008389
WANDSWORTH COUNCIL,PH,,HEALTH,Revenue,EMERG HORMONAL CONTRACEPTION,891959,105041670,10/03/2016,"3,128.00",BOOTS UK LTD FYN24 T/A BOOTS THE CHEMIST,SP0008391
WANDSWORTH COUNCIL,PH,,HEALTH,Revenue,EMERG HORMONAL CONTRACEPTION,895133,105041670,15/03/2016,"4,784.00",BOOTS UK LTD FVK09 T/A BOOTS THE CHEMIST,SP0008393
WANDSWORTH COUNCIL,PH,,HEALTH,Revenue,EMERG HORMONAL CONTRACEPTION,892317,105041670,10/03/2016,598.00,JOTOSHOURNE LTD FR323 T/A BARRONS CHEMIS,SP0008416
WANDSWORTH COUNCIL,PH,,HEALTH,Revenue,EMERG HORMONAL CONTRACEPTION,892318,105041670,10/03/2016,345.00,PEARL CHEMIST LTD FHL06 T/A AUCKLAND ROG,SP0008417
WANDSWORTH COUNCIL,PH,,HEALTH,Revenue,EMERG HORMONAL CONTRACEPTION,892315,105041670,11/03/2016,"1,127.00",PEARL CHEMIST LTD FDV93 T/A LORDS PHARMA,SP0008419
WANDSWORTH COUNCIL,PH,,HEALTH,Revenue,EMERG HORMONAL CONTRACEPTION,891949,105041670,10/03/2016,460.00,ABC PHARMACY FGT10,SP0008446
WANDSWORTH COUNCIL,PH,,HEALTH,Revenue,EMERG HORMONAL CONTRACEPTION,892321,105041670,10/03/2016,897.00,AMICHEM LIMITED FNQ61 T/A KRYSTAL PHARMA,SP0008457
WANDSWORTH COUNCIL,PH,,HEALTH,Revenue,EMERG HORMONAL CONTRACEPTION,891957,105041670,10/03/2016,483.00,BESTWAY NATIONAL CHEMIST LTD T/A WEL PHA,SP0009458
WANDSWORTH COUNCIL,PH,,HEALTH,Revenue,SOFTWARE FOR MANAGING DATA,901183,105141510,23/03/2016,"4,413.00",QUALITY MEDICAL SOLUTIONS LTD,SP0009384
WANDSWORTH COUNCIL,PH,,HEALTH,Revenue,GP CHLAMYDIA SCREENING LES,896849,105141540,16/03/2016,20.00,BRIDGE LANE GROUP PRACTICE,SP0000516
WANDSWORTH COUNCIL,PH,,HEALTH,Revenue,GP CHLAMYDIA SCREENING LES,897334,105141540,16/03/2016,140.00,BATTERSEA FIELDS PRACTICE,SP0000844
WANDSWORTH COUNCIL,PH,,HEALTH,Revenue,GP CHLAMYDIA SCREENING LES,896858,105141540,16/03/2016,100.00,BALHAM PARK SURGERY,SP0000925
WANDSWORTH COUNCIL,PH,,HEALTH,Revenue,GP CHLAMYDIA SCREENING LES,901045,105141540,21/03/2016,30.00,MAYFIELD SURGERY,SP0002209
WANDSWORTH COUNCIL,PH,,HEALTH,Revenue,GP CHLAMYDIA SCREENING LES,897332,105141540,16/03/2016,310.00,BEDFORD HILL FAMILY PRACTICE H85009,SP0002543
WANDSWORTH COUNCIL,PH,,HEALTH,Revenue,GP CHLAMYDIA SCREENING LES,896862,105141540,16/03/2016,310.00,CHATFIELD HEALTH CARE,SP0002903
WANDSWORTH COUNCIL,PH,,HEALTH,Revenue,GP CHLAMYDIA SCREENING LES,901149,105141540,21/03/2016,130.00,CHATFIELD HEALTH CARE,SP0002903
WANDSWORTH COUNCIL,PH,,HEALTH,Revenue,GP CHLAMYDIA SCREENING LES,896843,105141540,16/03/2016,40.00,THURLEIGH ROAD PRACTICE H85114,SP0003310
WANDSWORTH COUNCIL,PH,,HEALTH,Revenue,GP CHLAMYDIA SCREENING LES,897330,105141540,16/03/2016,60.00,THE PRACTICE FURZEDOWN,SP0005025
WANDSWORTH COUNCIL,PH,,HEALTH,Revenue,GP CHLAMYDIA SCREENING LES,897333,105141540,16/03/2016,50.00,THE GREYSWOOD PRACTICE,SP0006936
WANDSWORTH COUNCIL,PH,,HEALTH,Revenue,GP CHLAMYDIA SCREENING LES,896859,105141540,16/03/2016,120.00,WANDSWORTH MEDICAL CENTRE,SP0007088
WANDSWORTH COUNCIL,PH,,HEALTH,Revenue,GP CHLAMYDIA SCREENING LES,896863,105141540,16/03/2016,30.00,BATTERSEA RISE GROUP PRACTICE H85049,SP0007572
WANDSWORTH COUNCIL,PH,,HEALTH,Revenue,GP CHLAMYDIA SCREENING LES,896879,105141540,16/03/2016,40.00,DR K BEGG H85659,SP0007574
WANDSWORTH COUNCIL,PH,,HEALTH,Revenue,GP CHLAMYDIA SCREENING LES,896868,105141540,16/03/2016,140.00,EARLSFIELD PRACTICE,SP0007581
WANDSWORTH COUNCIL,PH,,HEALTH,Revenue,GP CHLAMYDIA SCREENING LES,896864,105141540,16/03/2016,90.00,SOUTHFIELDS GROUP PRACTICE H85007,SP0007583
WANDSWORTH COUNCIL,PH,,HEALTH,Revenue,GP CHLAMYDIA SCREENING LES,896860,105141540,16/03/2016,380.00,THE FALCON ROAD MEDICAL CENTRE H85002,SP0007953
WANDSWORTH COUNCIL,PH,,HEALTH,Revenue,GP CHLAMYDIA SCREENING LES,896844,105141540,16/03/2016,110.00,TOOTING SOUTH MEDICAL CENTRE,SP0007962
WANDSWORTH COUNCIL,PH,,HEALTH,Revenue,GP CHLAMYDIA SCREENING LES,897337,105141540,16/03/2016,100.00,BROCKLEBANK GROUP PRACTICE,SP0007967
WANDSWORTH COUNCIL,PH,,HEALTH,Revenue,GP CHLAMYDIA SCREENING LES,897335,105141540,16/03/2016,50.00,ELBOROUGH STREET SURGERY H85057,SP0007971
WANDSWORTH COUNCIL,PH,,HEALTH,Revenue,GP CHLAMYDIA SCREENING LES,896866,105141540,16/03/2016,80.00,ST PAULS COTTAGE PRACTICE,SP0007978
WANDSWORTH COUNCIL,PH,,HEALTH,Revenue,GP CHLAMYDIA SCREENING LES,900410,105141540,21/03/2016,40.00,CLAPHAM JUNCTION MEDICAL PRACTICE,SP0008135
WANDSWORTH COUNCIL,PH,,HEALTH,Revenue,GP CHLAMYDIA SCREENING LES,896861,105141540,16/03/2016,30.00,THE ROEHAMPTON SURGERY,SP0008174
WANDSWORTH COUNCIL,PH,,HEALTH,Revenue,GP CHLAMYDIA SCREENING LES,896847,105141540,16/03/2016,800.00,THE OPEN DOOR SURGERY H85087,SP0008280
WANDSWORTH COUNCIL,PH,,HEALTH,Revenue,GP CHLAMYDIA SCREENING LES,896848,105141540,16/03/2016,20.00,BOLINGBROKE MEDICAL CENTRE H85077,SP0008282
WANDSWORTH COUNCIL,PH,,HEALTH,Revenue,GP CHLAMYDIA SCREENING LES,896869,105141540,16/03/2016,60.00,THE HAIDER PRACTICE H85075,SP0008283
WANDSWORTH COUNCIL,PH,,HEALTH,Revenue,GP CHLAMYDIA SCREENING LES,896845,105141540,16/03/2016,500.00,TOOTING BEC SURGERY,SP0008284
WANDSWORTH COUNCIL,PH,,HEALTH,Revenue,GP CHLAMYDIA SCREENING LES,896850,105141540,16/03/2016,50.00,TUDOR LODGE HEALTH CENTRE H85682,SP0008309
WANDSWORTH COUNCIL,PH,,HEALTH,Revenue,GP CHLAMYDIA SCREENING LES,900409,105141540,21/03/2016,10.00,INNER PARK ROAD HEALTH CENTRE H85643,SP0008368
WANDSWORTH COUNCIL,PH,,HEALTH,Revenue,HIV RAPID TESTING PILOT,897334,105141710,16/03/2016,300.00,BATTERSEA FIELDS PRACTICE,SP0000844
WANDSWORTH COUNCIL,PH,,HEALTH,Revenue,HIV RAPID TESTING PILOT,897332,105141710,16/03/2016,415.00,BEDFORD HILL FAMILY PRACTICE H85009,SP0002543
WANDSWORTH COUNCIL,PH,,HEALTH,Revenue,HIV RAPID TESTING PILOT,896862,105141710,16/03/2016,5.00,CHATFIELD HEALTH CARE,SP0002903
WANDSWORTH COUNCIL,PH,,HEALTH,Revenue,HIV RAPID TESTING PILOT,901149,105141710,21/03/2016,20.00,CHATFIELD HEALTH CARE,SP0002903
WANDSWORTH COUNCIL,PH,,HEALTH,Revenue,HIV RAPID TESTING PILOT,896863,105141710,16/03/2016,30.00,BATTERSEA RISE GROUP PRACTICE H85049,SP0007572
WANDSWORTH COUNCIL,PH,,HEALTH,Revenue,HIV RAPID TESTING PILOT,896879,105141710,16/03/2016,35.00,DR K BEGG H85659,SP0007574
WANDSWORTH COUNCIL,PH,,HEALTH,Revenue,HIV RAPID TESTING PILOT,896864,105141710,16/03/2016,150.00,SOUTHFIELDS GROUP PRACTICE H85007,SP0007583
WANDSWORTH COUNCIL,PH,,HEALTH,Revenue,HIV RAPID TESTING PILOT,897337,105141710,16/03/2016,150.00,BROCKLEBANK GROUP PRACTICE,SP0007967
WANDSWORTH COUNCIL,PH,,HEALTH,Revenue,HIV RAPID TESTING PILOT,896866,105141710,16/03/2016,190.00,ST PAULS COTTAGE PRACTICE,SP0007978
WANDSWORTH COUNCIL,PH,,HEALTH,Revenue,HIV RAPID TESTING PILOT,900410,105141710,21/03/2016,5.00,CLAPHAM JUNCTION MEDICAL PRACTICE,SP0008135
WANDSWORTH COUNCIL,PH,,HEALTH,Revenue,HIV RAPID TESTING PILOT,896847,105141710,16/03/2016,450.00,THE OPEN DOOR SURGERY H85087,SP0008280
WANDSWORTH COUNCIL,PH,,HEALTH,Revenue,HIV RAPID TESTING PILOT,896848,105141710,16/03/2016,30.00,BOLINGBROKE MEDICAL CENTRE H85077,SP0008282
WANDSWORTH COUNCIL,PH,,HEALTH,Revenue,HIV RAPID TESTING PILOT,896869,105141710,16/03/2016,5.00,THE HAIDER PRACTICE H85075,SP0008283
WANDSWORTH COUNCIL,PH,,HEALTH,Revenue,CHLAMYDIA SCREENING,892319,105141760,10/03/2016,20.00,PEARL CHEMIST LTD,SP0004997
WANDSWORTH COUNCIL,PH,,HEALTH,Revenue,CHLAMYDIA SCREENING,891953,105141760,10/03/2016,60.00,SALASJI LTD FG443 T/A DUMLERS PHARMACY,SP0005003
WANDSWORTH COUNCIL,PH,,HEALTH,Revenue,CHLAMYDIA SCREENING,891965,105141760,10/03/2016,10.00,POLYPHARM LTD FNG23,SP0005011
WANDSWORTH COUNCIL,PH,,HEALTH,Revenue,CHLAMYDIA SCREENING,891962,105141760,10/03/2016,40.00,JAYACHOICE LTD,SP0007824
WANDSWORTH COUNCIL,PH,,HEALTH,Revenue,CHLAMYDIA SCREENING,892552,105141760,10/03/2016,20.00,OAKLON LIMITED FMC 35 T/A EAST HILL PHAR,SP0008379
WANDSWORTH COUNCIL,PH,,HEALTH,Revenue,CHLAMYDIA SCREENING,891959,105141760,10/03/2016,50.00,BOOTS UK LTD FYN24 T/A BOOTS THE CHEMIST,SP0008391
WANDSWORTH COUNCIL,PH,,HEALTH,Revenue,CHLAMYDIA SCREENING,892317,105141760,10/03/2016,10.00,JOTOSHOURNE LTD FR323 T/A BARRONS CHEMIS,SP0008416
WANDSWORTH COUNCIL,PH,,HEALTH,Revenue,CHLAMYDIA SCREENING,892318,105141760,10/03/2016,10.00,PEARL CHEMIST LTD FHL06 T/A AUCKLAND ROG,SP0008417
WANDSWORTH COUNCIL,PH,,HEALTH,Revenue,CHLAMYDIA SCREENING,892315,105141760,11/03/2016,10.00,PEARL CHEMIST LTD FDV93 T/A LORDS PHARMA,SP0008419
WANDSWORTH COUNCIL,PH,,HEALTH,Revenue,CHLAMYDIA SCREENING,892321,105141760,10/03/2016,20.00,AMICHEM LIMITED FNQ61 T/A KRYSTAL PHARMA,SP0008457
WANDSWORTH COUNCIL,PH,,HEALTH,Revenue,CHLAMYDIA SCREENING,891957,105141760,10/03/2016,20.00,BESTWAY NATIONAL CHEMIST LTD T/A WEL PHA,SP0009458
WANDSWORTH COUNCIL,PH,,HEALTH,Revenue,CONDOM DISTRIBUTION,904942,105241720,23/03/2016,"1,000.00",KATHERINE LOW SETTLEMENT,SP0009513
WANDSWORTH COUNCIL,PH,,HEALTH,Revenue,CONDOM DISTRIBUTION,904943,105241720,23/03/2016,"2,500.00",KATHERINE LOW SETTLEMENT,SP0009513
WANDSWORTH COUNCIL,PH,,HEALTH,Revenue,CONDOM DISTRIBUTION,904944,105241720,23/03/2016,809.00,KATHERINE LOW SETTLEMENT,SP0009513
WANDSWORTH COUNCIL,PH,,HEALTH,Revenue,COORDINATION&USER INVOLVEMENT,890534,105241860,08/03/2016,"2,400.00",PREVENTX LTD,SP0007592
WANDSWORTH COUNCIL,PH,,HEALTH,Revenue,LOCALLY ENHANCED SERVICES,896849,105341380,16/03/2016,"2,723.40",BRIDGE LANE GROUP PRACTICE,SP0000516
WANDSWORTH COUNCIL,PH,,HEALTH,Revenue,LOCALLY ENHANCED SERVICES,897334,105341380,16/03/2016,"2,208.98",BATTERSEA FIELDS PRACTICE,SP0000844
WANDSWORTH COUNCIL,PH,,HEALTH,Revenue,LOCALLY ENHANCED SERVICES,896858,105341380,16/03/2016,"1,966.90",BALHAM PARK SURGERY,SP0000925
WANDSWORTH COUNCIL,PH,,HEALTH,Revenue,LOCALLY ENHANCED SERVICES,896856,105341380,16/03/2016,"1,119.62",DR P ILVES T/A DANEBURY SURGERY H85067,SP0002029
WANDSWORTH COUNCIL,PH,,HEALTH,Revenue,LOCALLY ENHANCED SERVICES,901045,105341380,21/03/2016,817.02,MAYFIELD SURGERY,SP0002209
WANDSWORTH COUNCIL,PH,,HEALTH,Revenue,LOCALLY ENHANCED SERVICES,897332,105341380,16/03/2016,"1,755.08",BEDFORD HILL FAMILY PRACTICE H85009,SP0002543
WANDSWORTH COUNCIL,PH,,HEALTH,Revenue,LOCALLY ENHANCED SERVICES,896862,105341380,16/03/2016,"3,903.54",CHATFIELD HEALTH CARE,SP0002903
WANDSWORTH COUNCIL,PH,,HEALTH,Revenue,LOCALLY ENHANCED SERVICES,901149,105341380,21/03/2016,"2,451.06",CHATFIELD HEALTH CARE,SP0002903
WANDSWORTH COUNCIL,PH,,HEALTH,Revenue,LOCALLY ENHANCED SERVICES,896843,105341380,16/03/2016,"2,723.40",THURLEIGH ROAD PRACTICE H85114,SP0003310
WANDSWORTH COUNCIL,PH,,HEALTH,Revenue,LOCALLY ENHANCED SERVICES,906037,105341380,23/03/2016,600.00,LAVENDER HILL GROUP PRACTICE H85069,SP0003344
WANDSWORTH COUNCIL,PH,,HEALTH,Revenue,LOCALLY ENHANCED SERVICES,897331,105341380,16/03/2016,"3,086.52",TRINITY MEDICAL CENTRE,SP0003735
WANDSWORTH COUNCIL,PH,,HEALTH,Revenue,LOCALLY ENHANCED SERVICES,897330,105341380,16/03/2016,847.28,THE PRACTICE FURZEDOWN,SP0005025
WANDSWORTH COUNCIL,PH,,HEALTH,Revenue,LOCALLY ENHANCED SERVICES,897333,105341380,16/03/2016,"1,149.88",THE GREYSWOOD PRACTICE,SP0006936
WANDSWORTH COUNCIL,PH,,HEALTH,Revenue,LOCALLY ENHANCED SERVICES,896859,105341380,16/03/2016,"2,935.22",WANDSWORTH MEDICAL CENTRE,SP0007088
WANDSWORTH COUNCIL,PH,,HEALTH,Revenue,LOCALLY ENHANCED SERVICES,896863,105341380,16/03/2016,786.76,BATTERSEA RISE GROUP PRACTICE H85049,SP0007572
WANDSWORTH COUNCIL,PH,,HEALTH,Revenue,LOCALLY ENHANCED SERVICES,896879,105341380,16/03/2016,423.64,DR K BEGG H85659,SP0007574
WANDSWORTH COUNCIL,PH,,HEALTH,Revenue,LOCALLY ENHANCED SERVICES,896868,105341380,16/03/2016,"2,572.10",EARLSFIELD PRACTICE,SP0007581
WANDSWORTH COUNCIL,PH,,HEALTH,Revenue,LOCALLY ENHANCED SERVICES,896864,105341380,16/03/2016,"1,301.18",SOUTHFIELDS GROUP PRACTICE H85007,SP0007583
WANDSWORTH COUNCIL,PH,,HEALTH,Revenue,LOCALLY ENHANCED SERVICES,896860,105341380,16/03/2016,"1,331.44",THE FALCON ROAD MEDICAL CENTRE H85002,SP0007953
WANDSWORTH COUNCIL,PH,,HEALTH,Revenue,LOCALLY ENHANCED SERVICES,896844,105341380,16/03/2016,695.98,TOOTING SOUTH MEDICAL CENTRE,SP0007962
WANDSWORTH COUNCIL,PH,,HEALTH,Revenue,LOCALLY ENHANCED SERVICES,897337,105341380,16/03/2016,"1,119.62",BROCKLEBANK GROUP PRACTICE,SP0007967
WANDSWORTH COUNCIL,PH,,HEALTH,Revenue,LOCALLY ENHANCED SERVICES,897335,105341380,16/03/2016,"1,028.84",ELBOROUGH STREET SURGERY H85057,SP0007971
WANDSWORTH COUNCIL,PH,,HEALTH,Revenue,LOCALLY ENHANCED SERVICES,896866,105341380,16/03/2016,726.24,ST PAULS COTTAGE PRACTICE,SP0007978
WANDSWORTH COUNCIL,PH,,HEALTH,Revenue,LOCALLY ENHANCED SERVICES,896857,105341380,16/03/2016,"1,210.40",TRIANGLE SURGERY,SP0008056
WANDSWORTH COUNCIL,PH,,HEALTH,Revenue,LOCALLY ENHANCED SERVICES,900410,105341380,21/03/2016,484.16,CLAPHAM JUNCTION MEDICAL PRACTICE,SP0008135
WANDSWORTH COUNCIL,PH,,HEALTH,Revenue,LOCALLY ENHANCED SERVICES,896861,105341380,16/03/2016,"2,299.76",THE ROEHAMPTON SURGERY,SP0008174
WANDSWORTH COUNCIL,PH,,HEALTH,Revenue,LOCALLY ENHANCED SERVICES,896861,105341380,16/03/2016,580.83,THE ROEHAMPTON SURGERY,SP0008174
WANDSWORTH COUNCIL,PH,,HEALTH,Revenue,LOCALLY ENHANCED SERVICES,896847,105341380,16/03/2016,"3,086.52",THE OPEN DOOR SURGERY H85087,SP0008280
WANDSWORTH COUNCIL,PH,,HEALTH,Revenue,LOCALLY ENHANCED SERVICES,896848,105341380,16/03/2016,"1,180.14",BOLINGBROKE MEDICAL CENTRE H85077,SP0008282
WANDSWORTH COUNCIL,PH,,HEALTH,Revenue,LOCALLY ENHANCED SERVICES,896869,105341380,16/03/2016,514.42,THE HAIDER PRACTICE H85075,SP0008283
WANDSWORTH COUNCIL,PH,,HEALTH,Revenue,LOCALLY ENHANCED SERVICES,896845,105341380,16/03/2016,635.46,TOOTING BEC SURGERY,SP0008284
WANDSWORTH COUNCIL,PH,,HEALTH,Revenue,LOCALLY ENHANCED SERVICES,896850,105341380,16/03/2016,635.46,TUDOR LODGE HEALTH CENTRE H85682,SP0008309
WANDSWORTH COUNCIL,PH,,HEALTH,Revenue,LOCALLY ENHANCED SERVICES,900409,105341380,21/03/2016,665.72,INNER PARK ROAD HEALTH CENTRE H85643,SP0008368
WANDSWORTH COUNCIL,PH,,HEALTH,Revenue,LOCALLY ENHANCED SERVICES,900409,105341380,21/03/2016,203.80,INNER PARK ROAD HEALTH CENTRE H85643,SP0008368
WANDSWORTH COUNCIL,PH,,HEALTH,Revenue,LOCALLY ENHANCED SERVICES,896867,105341380,16/03/2016,"1,755.08",CHARTFIELD SURGERY Y01132,SP0008380
WANDSWORTH COUNCIL,PH,,HEALTH,Revenue,PHARMACY LES,892319,105341410,10/03/2016,42.00,PEARL CHEMIST LTD,SP0004997
WANDSWORTH COUNCIL,PH,,HEALTH,Revenue,PHARMACY LES,891966,105341410,10/03/2016,84.00,NSK LTD,SP0007000
WANDSWORTH COUNCIL,PH,,HEALTH,Revenue,EY OBESITY PREVENT/TREATMENT,907989,105741220,29/03/2016,"3,000.00",PURELY NUTRITION LTD,SP0010584
WANDSWORTH COUNCIL,PH,,HEALTH,Revenue,SUB/ACHL MISUSE CARERS SERVICE,903905,106141460,23/03/2016,"9,500.00",THE PARTICIPATION PEOPLE,SP0008294
WANDSWORTH COUNCIL,PH,,HEALTH,Revenue,PRESCRIBING SERVICES,897309,106340550,16/03/2016,48.00,PEARL CHEMIST LTD,SP0004997
WANDSWORTH COUNCIL,PH,,HEALTH,Revenue,PRESCRIBING SERVICES,897309,106340550,16/03/2016,465.48,PEARL CHEMIST LTD,SP0004997
WANDSWORTH COUNCIL,PH,,HEALTH,Revenue,PRESCRIBING SERVICES,885586,106340550,03/03/2016,24.00,BARKERS CHEMIST LTD,SP0005021
WANDSWORTH COUNCIL,PH,,HEALTH,Revenue,PRESCRIBING SERVICES,885586,106340550,03/03/2016,764.32,BARKERS CHEMIST LTD,SP0005021
WANDSWORTH COUNCIL,PH,,HEALTH,Revenue,PRESCRIBING SERVICES,897323,106340550,16/03/2016,46.00,BARKERS CHEMIST LTD,SP0005021
WANDSWORTH COUNCIL,PH,,HEALTH,Revenue,PRESCRIBING SERVICES,897323,106340550,16/03/2016,"1,226.12",BARKERS CHEMIST LTD,SP0005021
WANDSWORTH COUNCIL,PH,,HEALTH,Revenue,PRESCRIBING SERVICES,897318,106340550,16/03/2016,44.00,DAY LEWIS PLC,SP0007580
WANDSWORTH COUNCIL,PH,,HEALTH,Revenue,PRESCRIBING SERVICES,897318,106340550,16/03/2016,586.10,DAY LEWIS PLC,SP0007580
WANDSWORTH COUNCIL,PH,,HEALTH,Revenue,PRESCRIBING SERVICES,885581,106340550,03/03/2016,42.00,PEARL CHEMIST LTD FDV93 T/A LORDS PHARMA,SP0008419
WANDSWORTH COUNCIL,PH,,HEALTH,Revenue,PRESCRIBING SERVICES,885581,106340550,03/03/2016,623.23,PEARL CHEMIST LTD FDV93 T/A LORDS PHARMA,SP0008419
WANDSWORTH COUNCIL,PH,,HEALTH,Revenue,PRESCRIBING SERVICES,897315,106340550,16/03/2016,120.00,PEARL CHEMIST LTD FDV93 T/A LORDS PHARMA,SP0008419
WANDSWORTH COUNCIL,PH,,HEALTH,Revenue,PRESCRIBING SERVICES,897315,106340550,16/03/2016,"2,026.16",PEARL CHEMIST LTD FDV93 T/A LORDS PHARMA,SP0008419
WANDSWORTH COUNCIL,PH,,HEALTH,Revenue,PRESCRIBING SERVICES,897329,106340550,16/03/2016,489.21,AMICHEM LIMITED FNQ61 T/A KRYSTAL PHARMA,SP0008457
WANDSWORTH COUNCIL,PH,,HEALTH,Revenue,PRESCRIBING SERVICES,897329,106340550,16/03/2016,38.00,AMICHEM LIMITED FNQ61 T/A KRYSTAL PHARMA,SP0008457
WANDSWORTH COUNCIL,PH,,HEALTH,Revenue,PHARMACY LES,892319,106341410,10/03/2016,560.00,PEARL CHEMIST LTD,SP0004997
WANDSWORTH COUNCIL,PH,,HEALTH,Revenue,PHARMACY LES,891953,106341410,10/03/2016,420.00,SALASJI LTD FG443 T/A DUMLERS PHARMACY,SP0005003
WANDSWORTH COUNCIL,PH,,HEALTH,Revenue,PHARMACY LES,891965,106341410,10/03/2016,70.00,POLYPHARM LTD FNG23,SP0005011
WANDSWORTH COUNCIL,PH,,HEALTH,Revenue,PHARMACY LES,891971,106341410,10/03/2016,70.00,MARKRISE PHARMACY,SP0006464
WANDSWORTH COUNCIL,PH,,HEALTH,Revenue,PHARMACY LES,891966,106341410,10/03/2016,420.00,NSK LTD,SP0007000
WANDSWORTH COUNCIL,PH,,HEALTH,Revenue,PHARMACY LES,891952,106341410,10/03/2016,140.00,DAY LEWIS PLC,SP0007580
WANDSWORTH COUNCIL,PH,,HEALTH,Revenue,PHARMACY LES,892320,106341410,10/03/2016,140.00,CANTERBURY PHARMACIES LTD,SP0007593
WANDSWORTH COUNCIL,PH,,HEALTH,Revenue,PHARMACY LES,891962,106341410,10/03/2016,140.00,JAYACHOICE LTD,SP0007824
WANDSWORTH COUNCIL,PH,,HEALTH,Revenue,PHARMACY LES,892158,106341410,10/03/2016,210.00,GLENHAZEL LTD T/A BARKERS CHEMIST FMW60,SP0008163
WANDSWORTH COUNCIL,PH,,HEALTH,Revenue,PHARMACY LES,892552,106341410,10/03/2016,140.00,OAKLON LIMITED FMC 35 T/A EAST HILL PHAR,SP0008379
WANDSWORTH COUNCIL,PH,,HEALTH,Revenue,PHARMACY LES,891967,106341410,10/03/2016,70.00,BOOTS UK LTD FC061 T/A BOOTS THE CHEMIST,SP0008389
WANDSWORTH COUNCIL,PH,,HEALTH,Revenue,PHARMACY LES,892318,106341410,10/03/2016,70.00,PEARL CHEMIST LTD FHL06 T/A AUCKLAND ROG,SP0008417
WANDSWORTH COUNCIL,PH,,HEALTH,Revenue,PHARMACY LES,892315,106341410,11/03/2016,420.00,PEARL CHEMIST LTD FDV93 T/A LORDS PHARMA,SP0008419
WANDSWORTH COUNCIL,PH,,HEALTH,Revenue,PHARMACY LES,892321,106341410,10/03/2016,560.00,AMICHEM LIMITED FNQ61 T/A KRYSTAL PHARMA,SP0008457
WANDSWORTH COUNCIL,PH,,HEALTH,Revenue,GP LES CONTRACTS,896849,106341520,16/03/2016,630.00,BRIDGE LANE GROUP PRACTICE,SP0000516
WANDSWORTH COUNCIL,PH,,HEALTH,Revenue,GP LES CONTRACTS,897334,106341520,16/03/2016,70.00,BATTERSEA FIELDS PRACTICE,SP0000844
WANDSWORTH COUNCIL,PH,,HEALTH,Revenue,GP LES CONTRACTS,896858,106341520,16/03/2016,140.00,BALHAM PARK SURGERY,SP0000925
WANDSWORTH COUNCIL,PH,,HEALTH,Revenue,GP LES CONTRACTS,897332,106341520,16/03/2016,70.00,BEDFORD HILL FAMILY PRACTICE H85009,SP0002543
WANDSWORTH COUNCIL,PH,,HEALTH,Revenue,GP LES CONTRACTS,896862,106341520,16/03/2016,770.00,CHATFIELD HEALTH CARE,SP0002903
WANDSWORTH COUNCIL,PH,,HEALTH,Revenue,GP LES CONTRACTS,901149,106341520,21/03/2016,700.00,CHATFIELD HEALTH CARE,SP0002903
WANDSWORTH COUNCIL,PH,,HEALTH,Revenue,GP LES CONTRACTS,896859,106341520,16/03/2016,770.00,WANDSWORTH MEDICAL CENTRE,SP0007088
WANDSWORTH COUNCIL,PH,,HEALTH,Revenue,GP LES CONTRACTS,896879,106341520,16/03/2016,70.00,DR K BEGG H85659,SP0007574
WANDSWORTH COUNCIL,PH,,HEALTH,Revenue,GP LES CONTRACTS,901131,106341520,23/03/2016,"3,845.00",RIZPHARM LTD T/A R. WALJI CHEMIST FCK89,SP0007578
WANDSWORTH COUNCIL,PH,,HEALTH,Revenue,GP LES CONTRACTS,896868,106341520,16/03/2016,700.00,EARLSFIELD PRACTICE,SP0007581
WANDSWORTH COUNCIL,PH,,HEALTH,Revenue,GP LES CONTRACTS,896864,106341520,16/03/2016,70.00,SOUTHFIELDS GROUP PRACTICE H85007,SP0007583
WANDSWORTH COUNCIL,PH,,HEALTH,Revenue,GP LES CONTRACTS,896860,106341520,16/03/2016,560.00,THE FALCON ROAD MEDICAL CENTRE H85002,SP0007953
WANDSWORTH COUNCIL,PH,,HEALTH,Revenue,GP LES CONTRACTS,896844,106341520,16/03/2016,140.00,TOOTING SOUTH MEDICAL CENTRE,SP0007962
WANDSWORTH COUNCIL,PH,,HEALTH,Revenue,GP LES CONTRACTS,896850,106341520,16/03/2016,140.00,TUDOR LODGE HEALTH CENTRE H85682,SP0008309
WANDSWORTH COUNCIL,PH,,HEALTH,Revenue,GP LES CONTRACTS,896867,106341520,16/03/2016,70.00,CHARTFIELD SURGERY Y01132,SP0008380
WANDSWORTH COUNCIL,PH,,HEALTH,Revenue,CVD PREVENTION,905418,106341940,23/03/2016,"9,583.00",SOUTH WEST LONDON & ST GEORGES MENTAL HE,SP0000358
WANDSWORTH COUNCIL,PH,,HEALTH,Revenue,GP LES CONTRACTS,908241,106441520,31/03/2016,12.00,INTERMEDICAL (UK) LTD,SP0007594
WANDSWORTH COUNCIL,PH,,HEALTH,Revenue,GP LES CONTRACTS,908241,106441520,31/03/2016,"1,190.00",INTERMEDICAL (UK) LTD,SP0007594
WANDSWORTH COUNCIL,PH,,SERVICES,Revenue,RESEARCH PROJECTS,906024,106934860,23/03/2016,"10,097.00",PRESS RED LTD,SP0006431
WANDSWORTH COUNCIL,PH,,SERVICES,Revenue,PROJECT WORK,901178,107134800,23/03/2016,"2,040.00",WILLIAMS & ASSOCIATES,SP0008775
WANDSWORTH COUNCIL,PH,,SERVICES,Revenue,PROJECT WORK,901179,107134800,23/03/2016,"1,600.00",WILLIAMS & ASSOCIATES,SP0008775
WANDSWORTH COUNCIL,PH,,COMMUNICATIONS & COMP,Revenue,I.T. EQUIPMENT & MAINTENANCE,891864,107836210,21/03/2016,619.00,DELL CORPORATION LTD,SP0003352
WANDSWORTH COUNCIL,PH,,SERVICES,Revenue,PROJECT WORK,911155,108034800,31/03/2016,"2,096.42",GENERATE OPPORTUNITIES LTD,SP0000503
WANDSWORTH COUNCIL,PH,,SERVICES,Revenue,PROJECT WORK,911187,108034800,31/03/2016,"1,278.00",STORM FAMILY CENTRE LTD,SP0002613
WANDSWORTH COUNCIL,PH,,SERVICES,Revenue,PROJECT WORK,891897,108034800,15/03/2016,"2,694.15",AGE UK WANDSWORTH,SP0005795
WANDSWORTH COUNCIL,PH,,SERVICES,Revenue,PROJECT WORK,911167,108034800,31/03/2016,"1,250.00",THE RAIN TRUST,SP0009013
WANDSWORTH COUNCIL,PH,,SERVICES,Revenue,PROJECT WORK,904949,108134800,23/03/2016,"10,000.00",AIR SPORTS NETWORK,SP0006715
WANDSWORTH COUNCIL,PH,,HEALTH,Revenue,AWARENESS TRAINING,895141,108141210,31/03/2016,"4,951.00",KATHERINE LOW SETTLEMENT,SP0000515
WANDSWORTH COUNCIL,NGF HS,,SERVICES,Revenue,HIPS,911618,110034460,31/03/2016,"1,020.00",GORDON BROWN,SP0002176
WANDSWORTH COUNCIL,NGF CS,,PRIVATE,Revenue,REFUSE COLLECTN & PEST CONTROL,892574,111045500,09/03/2016,"1,202.69",SITA UK LTD,SP0000507
WANDSWORTH COUNCIL,NGF CS,,PRIVATE,Revenue,REFUSE COLLECTN & PEST CONTROL,892576,111045500,09/03/2016,534.79,SITA UK LTD,SP0000507
WANDSWORTH COUNCIL,NGF CS,,PRIVATE,Revenue,REFUSE COLLECTN & PEST CONTROL,893931,112245500,11/03/2016,505.17,SITA UK LTD,SP0000507
WANDSWORTH COUNCIL,NGF CS,,PRIVATE,Revenue,REFUSE COLLECTN & PEST CONTROL,893938,112945500,11/03/2016,690.83,SITA UK LTD,SP0000507
WANDSWORTH COUNCIL,NGF CS,,CLEANING & DOMESTIC SUPPLIES,Revenue,CLEANING CONTRACT,887496,113813020,02/03/2016,"54,082.46",OCEAN INTEGRATED SERVICES LTD,SP0001062
WANDSWORTH COUNCIL,NGF CS,,CLEANING & DOMESTIC SUPPLIES,Revenue,CLEANING CONTRACT,614601,113813020,14/03/2016,"1,181.75",PHS GROUP PLC,SP0001063
WANDSWORTH COUNCIL,NGF CS,,CLEANING & DOMESTIC SUPPLIES,Revenue,CLEANING CONTRACT,901105,113813020,22/03/2016,"1,684.85",PHS GROUP PLC,SP0001063
WANDSWORTH COUNCIL,NGF CS,,CLEANING & DOMESTIC SUPPLIES,Revenue,WINDOW CLEANING,887586,113813060,07/03/2016,"1,195.00",PARKERS CLEANING CONTRACTORS LTD,SP0002677
WANDSWORTH COUNCIL,NGF CS,,"EQUIPMENT, FURNITURE & MATS",Revenue,"EQUIPMENT, FURNITURE & MATS",891361,114030000,07/03/2016,550.00,DDS ENVIRONMENTAL,SP0008409
WANDSWORTH COUNCIL,NGF CS,,PRIVATE,Revenue,GENERAL CONTRACT WORK,898710,114045370,16/03/2016,"1,900.00",ELECTROLOK COMPANY (SECURITY) LTD,SP0000966
WANDSWORTH COUNCIL,NGF CS,,CLEANING & DOMESTIC SUPPLIES,Revenue,CLEANING & DOMESTIC SUPPLIES,893932,114413010,11/03/2016,"1,441.94",PHS GROUP PLC,SP0001063
WANDSWORTH COUNCIL,NGF CS,,WATER,Revenue,SEWERAGE & ENVIRONMENTAL SVCS,901107,114413800,22/03/2016,"2,594.41",BIFFA WASTE SERVICES LTD,SP0002818
WANDSWORTH COUNCIL,NGF CS,,"EQUIPMENT, FURNITURE & MATS",Revenue,"EQUIPMENT, FURNITURE & MATS",891871,114430000,10/03/2016,545.00,DELL CORPORATION LTD,SP0003352
WANDSWORTH COUNCIL,NGF CS,,CLEANING & DOMESTIC SUPPLIES,Revenue,CLEANING CONTRACT,887011,115013020,02/03/2016,"2,111.12",PHS GROUP PLC,SP0001063
WANDSWORTH COUNCIL,NGF CS,,CLEANING & DOMESTIC SUPPLIES,Revenue,CLEANING & DOMESTIC SUPPLIES,897852,115513010,17/03/2016,449.55,OCS GROUP UK LTD,SP0000940
WANDSWORTH COUNCIL,NGF CS,,CLEANING & DOMESTIC SUPPLIES,Revenue,CLEANING & DOMESTIC SUPPLIES,897854,115513010,17/03/2016,478.65,OCS GROUP UK LTD,SP0000940
WANDSWORTH COUNCIL,NGF CS,,"EQUIPMENT, FURNITURE & MATS",Revenue,"EQUIPMENT, FURNITURE & MATS",895840,120130000,17/03/2016,72.70,DANWOOD GROUP LTD,SP0002739
WANDSWORTH COUNCIL,NGF CS,,"EQUIPMENT, FURNITURE & MATS",Revenue,"EQUIPMENT, FURNITURE & MATS",895840,120130000,17/03/2016,183.42,DANWOOD GROUP LTD,SP0002739
WANDSWORTH COUNCIL,NGF CS,,"EQUIPMENT, FURNITURE & MATS",Revenue,"EQUIPMENT, FURNITURE & MATS",895840,120130000,17/03/2016,183.42,DANWOOD GROUP LTD,SP0002739
WANDSWORTH COUNCIL,NGF CS,,"EQUIPMENT, FURNITURE & MATS",Revenue,"EQUIPMENT, FURNITURE & MATS",895840,120130000,17/03/2016,183.42,DANWOOD GROUP LTD,SP0002739
WANDSWORTH COUNCIL,NGF CS,,OTHER AGENCIES,Revenue,DISBURSEMENTS,887554,120643250,03/03/2016,"3,798.00",SHARPE PRITCHARD LLP,SP0003677
WANDSWORTH COUNCIL,NGF CS,,OTHER AGENCIES,Revenue,DISBURSEMENTS,887554,120643250,03/03/2016,"2,385.00",SHARPE PRITCHARD LLP,SP0003677
WANDSWORTH COUNCIL,NGF CS,,OTHER AGENCIES,Revenue,DISBURSEMENTS,908607,120643250,30/03/2016,616.00,SHARPE PRITCHARD LLP,SP0003677
WANDSWORTH COUNCIL,NGF CS,,OTHER AGENCIES,Revenue,DISBURSEMENTS,908607,120643250,30/03/2016,"7,800.00",SHARPE PRITCHARD LLP,SP0003677
WANDSWORTH COUNCIL,NGF CS,,OTHER AGENCIES,Revenue,DISBURSEMENTS,887566,120643250,04/03/2016,"1,450.00",CORNERSTONE BACS,SP0004477
WANDSWORTH COUNCIL,NGF CS,,OTHER AGENCIES,Revenue,DISBURSEMENTS,906164,120643250,29/03/2016,650.00,CORNERSTONE BACS,SP0004477
WANDSWORTH COUNCIL,NGF CS,,OTHER AGENCIES,Revenue,DISBURSEMENTS,911662,120643250,31/03/2016,"1,900.00",CORNERSTONE BACS,SP0004477
WANDSWORTH COUNCIL,NGF CS,,OTHER AGENCIES,Revenue,DISBURSEMENTS,911664,120643250,31/03/2016,"2,500.00",CORNERSTONE BACS,SP0004477
WANDSWORTH COUNCIL,NGF CS,,OTHER AGENCIES,Revenue,DISBURSEMENTS,896851,120643250,17/03/2016,"1,300.00",4 BRICK COURT MANAGEMENT LIMITED,SP0007380
WANDSWORTH COUNCIL,NGF CS,,OTHER AGENCIES,Revenue,DISBURSEMENTS,896852,120643250,16/03/2016,"1,575.00",4 BRICK COURT MANAGEMENT LIMITED,SP0007380
WANDSWORTH COUNCIL,NGF CS,,OTHER AGENCIES,Revenue,DISBURSEMENTS,896853,120643250,16/03/2016,500.00,4 BRICK COURT MANAGEMENT LIMITED,SP0007380
WANDSWORTH COUNCIL,NGF CS,,OTHER AGENCIES,Revenue,DISBURSEMENTS,897303,120643250,17/03/2016,450.00,4 BRICK COURT MANAGEMENT LIMITED,SP0007380
WANDSWORTH COUNCIL,NGF CS,,OTHER AGENCIES,Revenue,DISBURSEMENTS,897304,120643250,17/03/2016,"1,066.66",4 BRICK COURT MANAGEMENT LIMITED,SP0007380
WANDSWORTH COUNCIL,NGF CS,,OTHER AGENCIES,Revenue,DISBURSEMENTS,897306,120643250,17/03/2016,"2,000.00",4 BRICK COURT MANAGEMENT LIMITED,SP0007380
WANDSWORTH COUNCIL,NGF CS,,OTHER AGENCIES,Revenue,DISBURSEMENTS,897307,120643250,17/03/2016,"2,692.00",4 BRICK COURT MANAGEMENT LIMITED,SP0007380
WANDSWORTH COUNCIL,NGF CS,,OTHER AGENCIES,Revenue,DISBURSEMENTS,904860,120643250,23/03/2016,"3,850.00",4 BRICK COURT MANAGEMENT LIMITED,SP0007380
WANDSWORTH COUNCIL,NGF CS,,OTHER AGENCIES,Revenue,DISBURSEMENTS,904867,120643250,23/03/2016,"7,250.00",4 BRICK COURT MANAGEMENT LIMITED,SP0007380
WANDSWORTH COUNCIL,NGF CS,,OTHER AGENCIES,Revenue,DISBURSEMENTS,904869,120643250,23/03/2016,900.00,4 BRICK COURT MANAGEMENT LIMITED,SP0007380
WANDSWORTH COUNCIL,NGF CS,,OTHER AGENCIES,Revenue,DISBURSEMENTS,904870,120643250,23/03/2016,"1,300.00",4 BRICK COURT MANAGEMENT LIMITED,SP0007380
WANDSWORTH COUNCIL,NGF CS,,OTHER AGENCIES,Revenue,DISBURSEMENTS,904871,120643250,23/03/2016,495.00,4 BRICK COURT MANAGEMENT LIMITED,SP0007380
WANDSWORTH COUNCIL,NGF CS,,OTHER AGENCIES,Revenue,DISBURSEMENTS,905394,120643250,23/03/2016,"2,625.00",4 BRICK COURT MANAGEMENT LIMITED,SP0007380
WANDSWORTH COUNCIL,NGF CS,,OTHER AGENCIES,Revenue,DISBURSEMENTS,905395,120643250,23/03/2016,"1,150.00",4 BRICK COURT MANAGEMENT LIMITED,SP0007380
WANDSWORTH COUNCIL,NGF CS,,OTHER AGENCIES,Revenue,DISBURSEMENTS,905419,120643250,23/03/2016,500.00,4 BRICK COURT MANAGEMENT LIMITED,SP0007380
WANDSWORTH COUNCIL,NGF CS,,OTHER AGENCIES,Revenue,DISBURSEMENTS,906010,120643250,23/03/2016,"1,300.00",4 BRICK COURT MANAGEMENT LIMITED,SP0007380
WANDSWORTH COUNCIL,NGF CS,,OTHER AGENCIES,Revenue,DISBURSEMENTS,906011,120643250,23/03/2016,600.00,4 BRICK COURT MANAGEMENT LIMITED,SP0007380
WANDSWORTH COUNCIL,NGF CS,,OTHER AGENCIES,Revenue,DISBURSEMENTS,906014,120643250,23/03/2016,850.00,4 BRICK COURT MANAGEMENT LIMITED,SP0007380
WANDSWORTH COUNCIL,NGF CS,,OTHER AGENCIES,Revenue,DISBURSEMENTS,906015,120643250,23/03/2016,500.00,4 BRICK COURT MANAGEMENT LIMITED,SP0007380
WANDSWORTH COUNCIL,NGF CS,,OTHER AGENCIES,Revenue,DISBURSEMENTS,906161,120643250,29/03/2016,700.00,4 BRICK COURT MANAGEMENT LIMITED,SP0007380
WANDSWORTH COUNCIL,NGF CS,,OTHER AGENCIES,Revenue,DISBURSEMENTS,911580,120643250,31/03/2016,700.00,4 BRICK COURT MANAGEMENT LIMITED,SP0007380
WANDSWORTH COUNCIL,NGF CS,,OTHER AGENCIES,Revenue,DISBURSEMENTS,911660,120643250,31/03/2016,"1,670.00",4 BRICK COURT MANAGEMENT LIMITED,SP0007380
WANDSWORTH COUNCIL,NGF CS,,OTHER AGENCIES,Revenue,DISBURSEMENTS,904855,120643250,23/03/2016,517.25,LEXTOX,SP0009034
WANDSWORTH COUNCIL,NGF CS,,OTHER AGENCIES,Revenue,DISBURSEMENTS,886473,120643250,03/03/2016,"1,000.00",FIVE PAPER,SP0009057
WANDSWORTH COUNCIL,NGF CS,,OTHER AGENCIES,Revenue,DISBURSEMENTS,887580,120643250,03/03/2016,950.00,FIVE PAPER,SP0009057
WANDSWORTH COUNCIL,NGF CS,,OTHER AGENCIES,Revenue,DISBURSEMENTS,891372,120643250,14/03/2016,500.00,FIVE PAPER,SP0009057
WANDSWORTH COUNCIL,NGF CS,,OTHER AGENCIES,Revenue,DISBURSEMENTS,899345,120643250,21/03/2016,"1,000.00",FIVE PAPER,SP0009057
WANDSWORTH COUNCIL,NGF CS,,OTHER AGENCIES,Revenue,DISBURSEMENTS,907097,120643250,29/03/2016,450.00,FIVE PAPER,SP0009057
WANDSWORTH COUNCIL,NGF CS,,OTHER AGENCIES,Revenue,DISBURSEMENTS,897305,120643250,17/03/2016,"1,100.00",1 GARDEN COURT CHAMBERS,SP0009291
WANDSWORTH COUNCIL,NGF CS,,OTHER AGENCIES,Revenue,DISBURSEMENTS,901065,120643250,21/03/2016,"2,166.66",1 GARDEN COURT CHAMBERS,SP0009291
WANDSWORTH COUNCIL,NGF CS,,OTHER AGENCIES,Revenue,DISBURSEMENTS,906160,120643250,29/03/2016,"1,350.00",1 GARDEN COURT CHAMBERS,SP0009291
WANDSWORTH COUNCIL,NGF CS,,OTHER AGENCIES,Revenue,DISBURSEMENTS,911659,120643250,31/03/2016,500.00,1 GARDEN COURT CHAMBERS,SP0009291
WANDSWORTH COUNCIL,NGF CS,,OTHER AGENCIES,Revenue,DISBURSEMENTS,887493,120643250,03/03/2016,550.00,42 BEDFORD ROW CHAMBERS,SP0009440
WANDSWORTH COUNCIL,NGF CS,,OTHER AGENCIES,Revenue,DISBURSEMENTS,897371,120643250,16/03/2016,"3,575.00",42 BEDFORD ROW CHAMBERS,SP0009440
WANDSWORTH COUNCIL,NGF CS,,OTHER AGENCIES,Revenue,DISBURSEMENTS,899323,120643250,21/03/2016,500.00,42 BEDFORD ROW CHAMBERS,SP0009440
WANDSWORTH COUNCIL,NGF CS,,OTHER AGENCIES,Revenue,DISBURSEMENTS,911599,120643250,31/03/2016,750.00,42 BEDFORD ROW CHAMBERS,SP0009440
WANDSWORTH COUNCIL,NGF CS,,OTHER AGENCIES,Revenue,DISBURSEMENTS,904857,120643250,23/03/2016,"2,290.00",FOURTEEN,SP0009555
WANDSWORTH COUNCIL,NGF CS,,OTHER AGENCIES,Revenue,DISBURSEMENTS,906007,120643250,23/03/2016,500.00,FOURTEEN,SP0009555
WANDSWORTH COUNCIL,NGF CS,,OTHER AGENCIES,Revenue,DISBURSEMENTS,906008,120643250,23/03/2016,500.00,FOURTEEN,SP0009555
WANDSWORTH COUNCIL,NGF CS,,OTHER AGENCIES,Revenue,DISBURSEMENTS,911593,120643250,31/03/2016,"3,400.00",FOURTEEN,SP0009555
WANDSWORTH COUNCIL,NGF CS,,OTHER AGENCIES,Revenue,DISBURSEMENTS,911594,120643250,31/03/2016,825.00,FOURTEEN,SP0009555
WANDSWORTH COUNCIL,NGF CS,,OTHER AGENCIES,Revenue,DISBURSEMENTS,911596,120643250,31/03/2016,625.00,FOURTEEN,SP0009555
WANDSWORTH COUNCIL,NGF CS,,OTHER AGENCIES,Revenue,DISBURSEMENTS,911597,120643250,31/03/2016,500.00,FOURTEEN,SP0009555
WANDSWORTH COUNCIL,NGF CS,,OTHER AGENCIES,Revenue,DISBURSEMENTS,911598,120643250,31/03/2016,"3,275.00",FOURTEEN,SP0009555
WANDSWORTH COUNCIL,NGF CS,,OTHER AGENCIES,Revenue,DISBURSEMENTS,907081,120643250,29/03/2016,834.00,DR SUMI RATNAM,SP0009603
WANDSWORTH COUNCIL,NGF CS,,OTHER AGENCIES,Revenue,DISBURSEMENTS,885513,120643250,07/03/2016,"1,371.76",DR A C JAMES,SP0009800
WANDSWORTH COUNCIL,NGF CS,,PRIVATE,Revenue,CONTRACT 4- LITIGATION,887553,120646160,03/03/2016,"29,547.23",SHARPE PRITCHARD LLP,SP0003677
WANDSWORTH COUNCIL,NGF CS,,PRIVATE,Revenue,CONTRACT 4- LITIGATION,908606,120646160,30/03/2016,"39,648.38",SHARPE PRITCHARD LLP,SP0003677
WANDSWORTH COUNCIL,NGF CS,,PRIVATE,Revenue,"CONTRACT 6- HWYS, PLAN ETC",897665,120646170,17/03/2016,"8,682.92",SHARPE PRITCHARD LLP,SP0003677
WANDSWORTH COUNCIL,NGF CS,,OTHER AGENCIES,Revenue,DISBURSEMENTS,893941,120743250,14/03/2016,"7,522.50",LAMBERT SMITH HAMPTON,SP0002515
WANDSWORTH COUNCIL,NGF CS,,PRIVATE,Revenue,LOT 1 - LLORD SERVS PROP MGMT,906075,120746180,29/03/2016,"1,795.50",LAMBERT SMITH HAMPTON,SP0002515
WANDSWORTH COUNCIL,NGF CS,,PRIVATE,Revenue,LOT 1 - LLORD SERVS PROP MGMT,911666,120746180,31/03/2016,"8,372.43",LAMBERT SMITH HAMPTON,SP0002515
WANDSWORTH COUNCIL,NGF CS,,PRIVATE,Revenue,LOT 2 - GEN VALUATIONS,893942,120746250,14/03/2016,"66,083.92",LAMBERT SMITH HAMPTON,SP0002515
WANDSWORTH COUNCIL,NGF CS,,PRIVATE,Revenue,LOT 2 - GEN VALUATIONS,906074,120746250,29/03/2016,"2,728.00",LAMBERT SMITH HAMPTON,SP0002515
WANDSWORTH COUNCIL,NGF CS,,PRIVATE,Revenue,LOT 4 - STAT VALS & PROP ADVIC,895266,120746260,14/03/2016,"4,147.50",G L HEARN LTD,SP0009602
WANDSWORTH COUNCIL,NGF CS,,COMMUNICATIONS & COMP,Revenue,I.T. EQUIPMENT & MAINTENANCE,895894,121136210,31/03/2016,770.00,VIEWDATA COMPUTING LTD,SP0002721
WANDSWORTH COUNCIL,NGF CS,,PRINTING STAT & GEN OFFICE EXP,Revenue,OUTWORK - WEB OFFSET,899970,121333580,17/03/2016,"3,319.11",GARNETT DICKINSON PRINT LTD,SP0010495
WANDSWORTH COUNCIL,NGF CS,,PRINTING STAT & GEN OFFICE EXP,Revenue,OUTWORK - WEB OFFSET,911938,121333580,31/03/2016,"10,551.31",GARNETT DICKINSON PRINT LTD,SP0010495
WANDSWORTH COUNCIL,NGF CS,,PRINTING STAT & GEN OFFICE EXP,Revenue,OUTWORK - LITHO,902665,121333590,21/03/2016,482.24,KALL KWIK,SP0003093
WANDSWORTH COUNCIL,NGF CS,,PRINTING STAT & GEN OFFICE EXP,Revenue,OUTWORK - LITHO,911939,121333590,31/03/2016,450.00,KALL KWIK,SP0003093
WANDSWORTH COUNCIL,NGF CS,,PRINTING STAT & GEN OFFICE EXP,Revenue,OUTWORK - LITHO,911941,121333590,31/03/2016,"1,255.50",KALL KWIK,SP0003093
WANDSWORTH COUNCIL,NGF CS,,PRINTING STAT & GEN OFFICE EXP,Revenue,OUTWORK - LITHO,911942,121333590,31/03/2016,"6,150.00",KALL KWIK,SP0003093
WANDSWORTH COUNCIL,NGF CS,,PRINTING STAT & GEN OFFICE EXP,Revenue,OUTWORK - LITHO,891585,121333590,07/03/2016,705.00,IMPRESS PRINT SERVICES LTD,SP0003209
WANDSWORTH COUNCIL,NGF CS,,PRINTING STAT & GEN OFFICE EXP,Revenue,OUTWORK - LITHO,899972,121333590,17/03/2016,680.00,IMPRESS PRINT SERVICES LTD,SP0003209
WANDSWORTH COUNCIL,NGF CS,,PRINTING STAT & GEN OFFICE EXP,Revenue,OUTWORK - LITHO,899973,121333590,17/03/2016,"3,085.00",IMPRESS PRINT SERVICES LTD,SP0003209
WANDSWORTH COUNCIL,NGF CS,,PRINTING STAT & GEN OFFICE EXP,Revenue,OUTWORK - LITHO,899975,121333590,17/03/2016,515.00,IMPRESS PRINT SERVICES LTD,SP0003209
WANDSWORTH COUNCIL,NGF CS,,PRINTING STAT & GEN OFFICE EXP,Revenue,OUTWORK - LITHO,899976,121333590,17/03/2016,805.00,IMPRESS PRINT SERVICES LTD,SP0003209
WANDSWORTH COUNCIL,NGF CS,,PRINTING STAT & GEN OFFICE EXP,Revenue,OUTWORK - LITHO,899978,121333590,17/03/2016,818.00,IMPRESS PRINT SERVICES LTD,SP0003209
WANDSWORTH COUNCIL,NGF CS,,PRINTING STAT & GEN OFFICE EXP,Revenue,OUTWORK - LITHO,899979,121333590,17/03/2016,"1,220.00",IMPRESS PRINT SERVICES LTD,SP0003209
WANDSWORTH COUNCIL,NGF CS,,PRINTING STAT & GEN OFFICE EXP,Revenue,OUTWORK - LITHO,902657,121333590,21/03/2016,487.00,IMPRESS PRINT SERVICES LTD,SP0003209
WANDSWORTH COUNCIL,NGF CS,,PRINTING STAT & GEN OFFICE EXP,Revenue,OUTWORK - LITHO,902672,121333590,21/03/2016,987.41,SLS PRINT,SP0006470
WANDSWORTH COUNCIL,NGF CS,,PRINTING STAT & GEN OFFICE EXP,Revenue,OUTWORK - LITHO,902673,121333590,21/03/2016,530.58,SLS PRINT,SP0006470
WANDSWORTH COUNCIL,NGF CS,,PRINTING STAT & GEN OFFICE EXP,Revenue,OUTWORK - LITHO,902674,121333590,21/03/2016,"1,255.68",SLS PRINT,SP0006470
WANDSWORTH COUNCIL,NGF CS,,PRINTING STAT & GEN OFFICE EXP,Revenue,OUTWORK - LITHO,911949,121333590,31/03/2016,"1,240.10",SLS PRINT,SP0006470
WANDSWORTH COUNCIL,NGF CS,,PRINTING STAT & GEN OFFICE EXP,Revenue,OUTWORK - LITHO,891576,121333590,07/03/2016,604.77,DELTOR COMMUNICATIONS LTD,SP0007714
WANDSWORTH COUNCIL,NGF CS,,PRINTING STAT & GEN OFFICE EXP,Revenue,OUTWORK - LITHO,899965,121333590,17/03/2016,593.00,DELTOR COMMUNICATIONS LTD,SP0007714
WANDSWORTH COUNCIL,NGF CS,,PRINTING STAT & GEN OFFICE EXP,Revenue,OUTWORK - LITHO,899966,121333590,17/03/2016,644.00,DELTOR COMMUNICATIONS LTD,SP0007714
WANDSWORTH COUNCIL,NGF CS,,PRINTING STAT & GEN OFFICE EXP,Revenue,OUTWORK - LITHO,899967,121333590,17/03/2016,644.34,DELTOR COMMUNICATIONS LTD,SP0007714
WANDSWORTH COUNCIL,NGF CS,,PRINTING STAT & GEN OFFICE EXP,Revenue,OUTWORK - LITHO,911934,121333590,31/03/2016,424.86,DELTOR COMMUNICATIONS LTD,SP0007714
WANDSWORTH COUNCIL,NGF CS,,PRINTING STAT & GEN OFFICE EXP,Revenue,OUTWORK - LITHO,911936,121333590,31/03/2016,644.34,DELTOR COMMUNICATIONS LTD,SP0007714
WANDSWORTH COUNCIL,NGF CS,,PRINTING STAT & GEN OFFICE EXP,Revenue,OUTWORK - EXTERN NON FRAMEWORK,891602,121333600,07/03/2016,594.10,THAMES DIGITAL REPROGRAPHICS LTD,SP0002730
WANDSWORTH COUNCIL,NGF CS,,PRINTING STAT & GEN OFFICE EXP,Revenue,OUTWORK - EXTERN NON FRAMEWORK,891581,121333600,07/03/2016,"1,010.20",DISPLAYS (UK) LTD,SP0010149
WANDSWORTH COUNCIL,NGF CS,,MISC,Revenue,MISCELLANEOUS EXPENSES,911945,121338500,31/03/2016,555.22,LONDON LETTERBOX MARKETING,SP0000546
WANDSWORTH COUNCIL,NGF CS,,"EQUIPMENT, FURNITURE & MATS",Revenue,OP COSTS - QUICKPRINT MACHINE,903900,121430230,24/03/2016,629.77,RICOH UK LTD,SP0002316
WANDSWORTH COUNCIL,NGF CS,,"EQUIPMENT, FURNITURE & MATS",Revenue,OP COSTS - QUICKPRINT MACHINE,903902,121430230,24/03/2016,878.47,RICOH UK LTD,SP0002316
WANDSWORTH COUNCIL,NGF CS,,"EQUIPMENT, FURNITURE & MATS",Revenue,OP COSTS - QUICKPRINT MACHINE,903893,121430230,24/03/2016,15.55,KONICA MINOLTA BUSINESS SOLUTIONS(UK)LIM,SP0008220
WANDSWORTH COUNCIL,NGF CS,,"EQUIPMENT, FURNITURE & MATS",Revenue,OP COSTS - QUICKPRINT MACHINE,903894,121430230,24/03/2016,81.96,KONICA MINOLTA BUSINESS SOLUTIONS(UK)LIM,SP0008220
WANDSWORTH COUNCIL,NGF CS,,"EQUIPMENT, FURNITURE & MATS",Revenue,OP COSTS -COLOUR COPIER RENTAL,903893,121430240,24/03/2016,448.94,KONICA MINOLTA BUSINESS SOLUTIONS(UK)LIM,SP0008220
WANDSWORTH COUNCIL,NGF CS,,"EQUIPMENT, FURNITURE & MATS",Revenue,OP COSTS -COLOUR COPIER RENTAL,903894,121430240,24/03/2016,"1,277.58",KONICA MINOLTA BUSINESS SOLUTIONS(UK)LIM,SP0008220
WANDSWORTH COUNCIL,NGF CDC,,PRINTING STAT & GEN OFFICE EXP,Revenue,PUBLIC RELATIONS,901077,122033460,23/03/2016,510.00,TONI MARSHALL,SP0003984
WANDSWORTH COUNCIL,NGF CDC,,PRINTING STAT & GEN OFFICE EXP,Revenue,PUBLICITY,890217,122033470,08/03/2016,649.00,DOTMAILER LTD,SP0006264
WANDSWORTH COUNCIL,NGF CS,,"EQUIPMENT, FURNITURE & MATS",Revenue,EQUIP.FURN & MATS-REPS & MTCE,889808,122130010,07/03/2016,"2,435.42",NEOPOST LTD,SP0003054
WANDSWORTH COUNCIL,NGF CS,,INDIRECT,Revenue,IN-SERVICE TRAINING-SLA,897341,123000740,17/03/2016,450.00,TATTERSALL TRAINING,SP0002713
WANDSWORTH COUNCIL,NGF CS,,INDIRECT,Revenue,IN-SERVICE TRAINING-SLA,901181,123000740,23/03/2016,760.00,LUCY JAQUES TRAINING,SP0003553
WANDSWORTH COUNCIL,NGF CS,,INDIRECT,Revenue,IN-SERVICE TRAINING-SLA,903899,123000740,23/03/2016,"1,320.00",VERITY BARTON,SP0003778
WANDSWORTH COUNCIL,NGF CS,,INDIRECT,Revenue,IN-SERVICE TRAINING-SLA,886509,123000740,04/03/2016,650.00,FIRST RESPONSE TRAINING,SP0005439
WANDSWORTH COUNCIL,NGF CS,,INDIRECT,Revenue,IN-SERVICE TRAINING-SLA,886793,123000740,04/03/2016,650.00,FIRST RESPONSE TRAINING,SP0005439
WANDSWORTH COUNCIL,NGF CS,,INDIRECT,Revenue,IN-SERVICE TRAINING-SLA,907484,123000740,29/03/2016,"1,761.00",MARCEL HIRSHMAN LTD,SP0006983
WANDSWORTH COUNCIL,NGF CS,,INDIRECT,Revenue,IN-SERVICE TRAINING-SLA,886790,123000740,04/03/2016,"1,500.00",ISV SOFTWARE LTD,SP0007152
WANDSWORTH COUNCIL,NGF CS,,INDIRECT,Revenue,IN-SERVICE TRAINING-SLA,895136,123000740,14/03/2016,499.00,KNOWLEDGE TRAIN LIMITED,SP0008750
WANDSWORTH COUNCIL,NGF CS,,INDIRECT,Revenue,IN-SERVICE TRAINING-SLA,906078,123000740,29/03/2016,600.00,TRAINING OUTSOURCE LIMITED,SP0008861
WANDSWORTH COUNCIL,NGF CS,,INDIRECT,Revenue,IN-SERVICE TRAINING-SLA,906080,123000740,29/03/2016,600.00,TRAINING OUTSOURCE LIMITED,SP0008861
WANDSWORTH COUNCIL,NGF CS,,INDIRECT,Revenue,IN-SERVICE TRAINING-SLA,890235,123000740,08/03/2016,895.00,STAYAHEAD TRAINING LTD,SP0010543
WANDSWORTH COUNCIL,NGF CS,,INDIRECT,Revenue,IN-SERVICE TRAINING-SLA,906025,123000740,23/03/2016,425.00,STAYAHEAD TRAINING LTD,SP0010543
WANDSWORTH COUNCIL,NGF CS,,INDIRECT,Revenue,TRAINING - EXTERNAL COURSES,901184,123000770,23/03/2016,"1,225.00",SPA CONSULTING,SP0000594
WANDSWORTH COUNCIL,NGF CS,,INDIRECT,Revenue,TRAINING - EXTERNAL COURSES,901184,123000770,23/03/2016,24.30,SPA CONSULTING,SP0000594
WANDSWORTH COUNCIL,NGF CS,,INDIRECT,Revenue,HEALTH CARE PROMOTIONAL,890164,123200630,08/03/2016,450.00,WORKPLACE OPTIONS,SP0005551
WANDSWORTH COUNCIL,NGF CS,,INDIRECT,Revenue,HEALTH CARE,893146,123200640,16/03/2016,568.58,MEDISAVE (UK) LTD,SP0004467
WANDSWORTH COUNCIL,NGF CS,,INDIRECT,Revenue,HEALTH CARE,897869,123200640,17/03/2016,"2,256.18",MEDISAVE (UK) LTD,SP0004467
WANDSWORTH COUNCIL,NGF CS,,INDIRECT,Revenue,CHILDCARE VOUCHERS,893212,123200650,14/03/2016,680.18,COMPUTERSHARE VOUCHER SERVICES,SP0003037
WANDSWORTH COUNCIL,NGF CS,,INDIRECT,Revenue,CHILDCARE VOUCHERS,908684,123200650,31/03/2016,134.45,COMPUTERSHARE VOUCHER SERVICES,SP0003037
WANDSWORTH COUNCIL,NGF CS,,INDIRECT,Revenue,TRAINING - APPROVED QUALS,901129,123200760,23/03/2016,110.00,THE RAPID RESULTS COLLEGE LTD,SP0007425
WANDSWORTH COUNCIL,NGF CS,,INDIRECT,Revenue,TRAINING - APPROVED QUALS,901129,123200760,23/03/2016,"1,495.00",THE RAPID RESULTS COLLEGE LTD,SP0007425
WANDSWORTH COUNCIL,NGF CS,,PRINTING STAT & GEN OFFICE EXP,Revenue,PRINTING AND STATIONERY,886504,123233420,04/03/2016,366.84,DANWOOD GROUP LTD,SP0002739
WANDSWORTH COUNCIL,NGF CS,,PRINTING STAT & GEN OFFICE EXP,Revenue,PRINTING AND STATIONERY,886504,123233420,04/03/2016,275.13,DANWOOD GROUP LTD,SP0002739
WANDSWORTH COUNCIL,NGF CS,,PRINTING STAT & GEN OFFICE EXP,Revenue,PRINTING AND STATIONERY,886504,123233420,04/03/2016,275.13,DANWOOD GROUP LTD,SP0002739
WANDSWORTH COUNCIL,NGF CS,,SERVICES,Revenue,OHS SESSIONAL DOCTOR,906163,123234690,29/03/2016,"3,944.16",HJM ASSOCIATES,SP0003667
WANDSWORTH COUNCIL,NGF CS,,MISC,Revenue,MISCELLANEOUS EXPENSES,897645,123238500,21/03/2016,"2,377.25",EDENRED UK GROUP LTD,SP0000238
WANDSWORTH COUNCIL,NGF CS,,PRIVATE,Revenue,GENERAL CONTRACT WORK,901182,123245370,23/03/2016,"3,451.20",HAYS SPECIALIST RECRUITMENT GROUP,SP0000087
WANDSWORTH COUNCIL,NGF CDC,,COMMUNICATIONS & COMP,Revenue,I.T. EQUIPMENT & MAINTENANCE,891865,124036210,21/03/2016,619.00,DELL CORPORATION LTD,SP0003352
WANDSWORTH COUNCIL,NGF CDC,,COMMUNICATIONS & COMP,Revenue,WEBSITE,901033,124236550,21/03/2016,"3,000.00",MODERN MINDSET LTD,SP0007534
WANDSWORTH COUNCIL,NGF CS,,SERVICES,Revenue,LEGAL & COURT COSTS,901262,124734600,23/03/2016,"3,514.00",BEVAN BRITTAN LLP CLIENT ACCOUNT,SP0009446
WANDSWORTH COUNCIL,NGF CS,,SERVICES,Revenue,LEGAL & COURT COSTS,901514,124734600,23/03/2016,"1,337.50",BEVAN BRITTAN LLP CLIENT ACCOUNT,SP0009446
WANDSWORTH COUNCIL,PH,,SERVICES,Revenue,PROJECT WORK,904873,125134800,29/03/2016,"7,000.00",4 CHILDREN (TRADING) LTD,SP0002728
WANDSWORTH COUNCIL,PH,,SERVICES,Revenue,PROJECT WORK,899322,125134800,21/03/2016,"2,923.83",PLACES FOR PEOPLE - LATCHMERE LEISURE CT,SP0006367
WANDSWORTH COUNCIL,NGF CS,,SERVICES,Revenue,SERVICES - GENERAL,892342,126034870,09/03/2016,595.00,SERVICE DESK INSTITUTE,SP0006793
WANDSWORTH COUNCIL,NGF CS,,SERVICES,Revenue,SERVICES - GENERAL,908644,126034870,30/03/2016,"1,250.00",LANDESK INTERNATIONAL LTD,SP0008498
WANDSWORTH COUNCIL,NGF CS,,COMMUNICATIONS & COMP,Revenue,I.T. EQUIPMENT & MAINTENANCE,807440,126036210,21/03/2016,2.95,KINGSFIELD COMPUTER PRODUCTS LTD,SP0001948
WANDSWORTH COUNCIL,NGF CS,,COMMUNICATIONS & COMP,Revenue,I.T. EQUIPMENT & MAINTENANCE,807440,126036210,21/03/2016,665.00,KINGSFIELD COMPUTER PRODUCTS LTD,SP0001948
WANDSWORTH COUNCIL,NGF CS,,"EQUIPMENT, FURNITURE & MATS",Revenue,CCTV CONTROL ROOM DEVELOPMENT,898644,126130030,17/03/2016,"14,428.77",VIRGIN MEDIA BUSINESS,SP0003737
WANDSWORTH COUNCIL,NGF CS,,"EQUIPMENT, FURNITURE & MATS",Revenue,CCTV CONTROL ROOM DEVELOPMENT,898645,126130030,17/03/2016,834.98,VIRGIN MEDIA BUSINESS,SP0003737
WANDSWORTH COUNCIL,NGF CS,,"EQUIPMENT, FURNITURE & MATS",Revenue,CCTV CONTROL ROOM DEVELOPMENT,901111,126130030,21/03/2016,"8,342.60",VIRGIN MEDIA BUSINESS,SP0003737
WANDSWORTH COUNCIL,NGF CS,,"EQUIPMENT, FURNITURE & MATS",Revenue,CCTV CONTROL ROOM DEVELOPMENT,901113,126130030,21/03/2016,"7,524.45",VIRGIN MEDIA BUSINESS,SP0003737
WANDSWORTH COUNCIL,NGF CS,,"EQUIPMENT, FURNITURE & MATS",Revenue,CCTV FIBRE RENTALS,898649,126130040,17/03/2016,"5,438.17",VODAFONE CORPORATE,SP0001107
WANDSWORTH COUNCIL,NGF CS,,"EQUIPMENT, FURNITURE & MATS",Revenue,CCTV FIBRE RENTALS,898650,126130040,17/03/2016,640.00,VODAFONE CORPORATE,SP0001107
WANDSWORTH COUNCIL,NGF CS,,"EQUIPMENT, FURNITURE & MATS",Revenue,"EQUIPMENT, FURNITURE & MATS",864753,126330000,21/03/2016,"3,500.00",INCOM TELECOMMUNICATIONS,SP0000568
WANDSWORTH COUNCIL,NGF CS,,"EQUIPMENT, FURNITURE & MATS",Revenue,"EQUIPMENT, FURNITURE & MATS",901157,126330000,22/03/2016,"1,475.00",INCOM TELECOMMUNICATIONS,SP0000568
WANDSWORTH COUNCIL,NGF CS,,"EQUIPMENT, FURNITURE & MATS",Revenue,"EQUIPMENT, FURNITURE & MATS",901157,126330000,22/03/2016,175.00,INCOM TELECOMMUNICATIONS,SP0000568
WANDSWORTH COUNCIL,NGF CS,,"EQUIPMENT, FURNITURE & MATS",Revenue,"EQUIPMENT, FURNITURE & MATS",901157,126330000,22/03/2016,8.75,INCOM TELECOMMUNICATIONS,SP0000568
WANDSWORTH COUNCIL,NGF CS,,"EQUIPMENT, FURNITURE & MATS",Revenue,"EQUIPMENT, FURNITURE & MATS",841679,126330000,09/03/2016,"3,000.00",DIGITAL EXCHANGE PRODUCTS LTD,SP0005272
WANDSWORTH COUNCIL,NGF CS,,"EQUIPMENT, FURNITURE & MATS",Revenue,EQUIP.FURN & MATS-REPS & MTCE,909316,126330010,29/03/2016,539.71,ACR LONDON LTD,SP0000193
WANDSWORTH COUNCIL,NGF CS,,"EQUIPMENT, FURNITURE & MATS",Revenue,EQUIP.FURN & MATS-REPS & MTCE,909319,126330010,29/03/2016,689.31,ACR LONDON LTD,SP0000193
WANDSWORTH COUNCIL,NGF CS,,"EQUIPMENT, FURNITURE & MATS",Revenue,"EQUIPMENT, FURNITURE & MATS",863651,126530000,14/03/2016,750.00,QMATIC UK LTD,SP0000660
WANDSWORTH COUNCIL,NGF CS,,"EQUIPMENT, FURNITURE & MATS",Revenue,"EQUIPMENT, FURNITURE & MATS",908676,126530000,30/03/2016,"1,269.80",MISCO,SP0000739
WANDSWORTH COUNCIL,NGF CS,,"EQUIPMENT, FURNITURE & MATS",Revenue,"EQUIPMENT, FURNITURE & MATS",904202,126530000,22/03/2016,984.00,PHOENIX ECS LTD,SP0001284
WANDSWORTH COUNCIL,NGF CS,,"EQUIPMENT, FURNITURE & MATS",Revenue,"EQUIPMENT, FURNITURE & MATS",885495,126530000,04/03/2016,14.95,KINGSFIELD COMPUTER PRODUCTS LTD,SP0001948
WANDSWORTH COUNCIL,NGF CS,,"EQUIPMENT, FURNITURE & MATS",Revenue,"EQUIPMENT, FURNITURE & MATS",885495,126530000,04/03/2016,599.00,KINGSFIELD COMPUTER PRODUCTS LTD,SP0001948
WANDSWORTH COUNCIL,NGF CS,,"EQUIPMENT, FURNITURE & MATS",Revenue,"EQUIPMENT, FURNITURE & MATS",892558,126530000,10/03/2016,599.00,KINGSFIELD COMPUTER PRODUCTS LTD,SP0001948
WANDSWORTH COUNCIL,NGF CS,,"EQUIPMENT, FURNITURE & MATS",Revenue,"EQUIPMENT, FURNITURE & MATS",884605,126530000,30/03/2016,990.00,HARDWARE.COM,SP0006707
WANDSWORTH COUNCIL,NGF CS,,"EQUIPMENT, FURNITURE & MATS",Revenue,"EQUIPMENT, FURNITURE & MATS",896888,126530000,21/03/2016,"5,249.79",COMPUTACENTER (UK) LTD,SP0007199
WANDSWORTH COUNCIL,NGF CS,,COMMUNICATIONS & COMP,Revenue,I.T. EQUIPMENT & MAINTENANCE,890252,126536210,21/03/2016,"13,496.00",KELWAY UK LTD,SP0006327
WANDSWORTH COUNCIL,NGF CS,,COMMUNICATIONS & COMP,Revenue,I.T. EQUIPMENT & MAINTENANCE,890252,126536210,21/03/2016,"1,095.22",KELWAY UK LTD,SP0006327
WANDSWORTH COUNCIL,NGF CS,,COMMUNICATIONS & COMP,Revenue,I.T. SOFTWARE,892394,126536240,10/03/2016,"5,000.00",LANDESK INTERNATIONAL LTD,SP0008498
WANDSWORTH COUNCIL,NGF CS,,"EQUIPMENT, FURNITURE & MATS",Revenue,"EQUIPMENT, FURNITURE & MATS",899376,126630000,21/03/2016,"5,200.00",AMT DATA TECHNOLOGIES LTD T/A AMT EVOLVE,SP0003972
WANDSWORTH COUNCIL,NGF CS,,"EQUIPMENT, FURNITURE & MATS",Revenue,"EQUIPMENT, FURNITURE & MATS",911162,126630000,31/03/2016,"1,920.00",DISCOVER IT (UK) LTD,SP0006575
WANDSWORTH COUNCIL,NGF CS,,"EQUIPMENT, FURNITURE & MATS",Revenue,"EQUIPMENT, FURNITURE & MATS",889043,126830000,04/03/2016,795.00,REPROPOINT,SP0001643
WANDSWORTH COUNCIL,NGF CS,,COMMUNICATIONS & COMP,Revenue,I.T. SLA RECHARGE,904308,126836230,29/03/2016,"1,421.94",DORSET SOFTWARE SERVICES LIMITED,SP0001072
WANDSWORTH COUNCIL,NGF CS,,COMMUNICATIONS & COMP,Revenue,I.T. SLA RECHARGE,882537,126836230,03/03/2016,"5,110.55",RESPONSE TECHNICAL,SP0001837
WANDSWORTH COUNCIL,NGF CS,,COMMUNICATIONS & COMP,Revenue,I.T. - SAFFRON,897098,126836260,15/03/2016,"3,800.00",ROCC COMPUTERS,SP0002889
WANDSWORTH COUNCIL,NGF CS,,COMMUNICATIONS & COMP,Revenue,I.T. - SAFFRON,890212,126836260,21/03/2016,315.17,BANNER MANAGED COMMUNICATION,SP0003555
WANDSWORTH COUNCIL,NGF CS,,COMMUNICATIONS & COMP,Revenue,I.T. - SAFFRON,890213,126836260,10/03/2016,254.71,BANNER MANAGED COMMUNICATION,SP0003555
WANDSWORTH COUNCIL,NGF CS,,COMMUNICATIONS & COMP,Revenue,I.T. - SYSTEMS DEVELOPMENT,911186,126836270,31/03/2016,"1,065.00",CIVICA UK LTD,SP0000394
WANDSWORTH COUNCIL,NGF CS,,COMMUNICATIONS & COMP,Revenue,I.T. - SYSTEMS DEVELOPMENT,907466,126836270,29/03/2016,"3,500.00",EBASE TECHNOLOGY LTD,SP0006389
WANDSWORTH COUNCIL,NGF CS,,CATERING,Revenue,CATERING,897702,127031000,17/03/2016,"1,086.50",NOVAL CATERING LTD,SP0006160
WANDSWORTH COUNCIL,NGF CS,,COMMUNICATIONS & COMP,Revenue,CORELOGIC MAINTENANCE & SUPPT,908714,127236300,31/03/2016,"1,800.00",KYBS CONSULTANCY LTD,SP0010643
WANDSWORTH COUNCIL,CS,,DIRECT2,Revenue,AGENCY STAFF,890138,128000510,08/03/2016,"17,787.35",MATRIX SCM LIMITED,SP0004572
WANDSWORTH COUNCIL,CS,,DIRECT2,Revenue,AGENCY STAFF,894469,128000510,14/03/2016,"14,407.83",MATRIX SCM LIMITED,SP0004572
WANDSWORTH COUNCIL,CS,,DIRECT2,Revenue,AGENCY STAFF,901122,128000510,21/03/2016,"17,135.98",MATRIX SCM LIMITED,SP0004572
WANDSWORTH COUNCIL,CS,,DIRECT2,Revenue,AGENCY STAFF,907987,128000510,29/03/2016,"23,048.57",MATRIX SCM LIMITED,SP0004572
WANDSWORTH COUNCIL,CS,,INDIRECT,Revenue,STAFF ADVERTISING - VACANCIES,887508,128000960,03/03/2016,"4,083.00",PENNA PLC,SP0006290
WANDSWORTH COUNCIL,CS,,INDIRECT,Revenue,STAFF ADVERTISING - VACANCIES,887598,128000960,08/03/2016,"1,254.08",PENNA PLC,SP0006290
WANDSWORTH COUNCIL,CS,,INDIRECT,Revenue,STAFF ADVERTISING - VACANCIES,889518,128000960,08/03/2016,"1,363.00",PENNA PLC,SP0006290
WANDSWORTH COUNCIL,CS,,INDIRECT,Revenue,STAFF ADVERTISING - VACANCIES,890133,128000960,08/03/2016,"10,843.68",PENNA PLC,SP0006290
WANDSWORTH COUNCIL,CS,,PRINTING STAT & GEN OFFICE EXP,Revenue,PUBLICITY,886480,128033470,02/03/2016,555.90,LONDON WEEKLY NEWSPAPERS LTD,SP0005656
WANDSWORTH COUNCIL,CS,,PRINTING STAT & GEN OFFICE EXP,Revenue,PUBLICITY,886481,128033470,02/03/2016,555.90,LONDON WEEKLY NEWSPAPERS LTD,SP0005656
WANDSWORTH COUNCIL,ASC,SOCIAL SERVICES,HIRE,Revenue,HIRE - TRANSPORT,897068,130220410,15/03/2016,670.96,BECKETT CORPORATION LTD T/A TINAS CARS,SP0000729
WANDSWORTH COUNCIL,ASC,SOCIAL SERVICES,HIRE,Revenue,HIRE - TRANSPORT,897072,130220410,15/03/2016,630.80,BECKETT CORPORATION LTD T/A TINAS CARS,SP0000729
WANDSWORTH COUNCIL,ASC,SOCIAL SERVICES,HIRE,Revenue,HIRE - TRANSPORT,897073,130220410,15/03/2016,"1,566.00",BECKETT CORPORATION LTD T/A TINAS CARS,SP0000729
WANDSWORTH COUNCIL,ASC,SOCIAL SERVICES,HIRE,Revenue,HIRE - TRANSPORT,897077,130220410,15/03/2016,490.72,BECKETT CORPORATION LTD T/A TINAS CARS,SP0000729
WANDSWORTH COUNCIL,ASC,SOCIAL SERVICES,HIRE,Revenue,HIRE - TRANSPORT,897078,130220410,15/03/2016,880.00,BECKETT CORPORATION LTD T/A TINAS CARS,SP0000729
WANDSWORTH COUNCIL,ASC,SOCIAL SERVICES,HIRE,Revenue,HIRE - TRANSPORT,897079,130220410,15/03/2016,432.00,BECKETT CORPORATION LTD T/A TINAS CARS,SP0000729
WANDSWORTH COUNCIL,ASC,SOCIAL SERVICES,HIRE,Revenue,HIRE - TRANSPORT,897081,130220410,15/03/2016,"1,160.00",BECKETT CORPORATION LTD T/A TINAS CARS,SP0000729
WANDSWORTH COUNCIL,ASC,SOCIAL SERVICES,HIRE,Revenue,HIRE - TRANSPORT,897082,130220410,15/03/2016,780.00,BECKETT CORPORATION LTD T/A TINAS CARS,SP0000729
WANDSWORTH COUNCIL,ASC,SOCIAL SERVICES,HIRE,Revenue,HIRE - TRANSPORT,897083,130220410,15/03/2016,"1,540.00",BECKETT CORPORATION LTD T/A TINAS CARS,SP0000729
WANDSWORTH COUNCIL,ASC,SOCIAL SERVICES,HIRE,Revenue,HIRE - TRANSPORT,901924,130220410,21/03/2016,34.28,BECKETT CORPORATION LTD T/A TINAS CARS,SP0000729
WANDSWORTH COUNCIL,ASC,SOCIAL SERVICES,HIRE,Revenue,HIRE - TRANSPORT,901925,130220410,21/03/2016,576.44,BECKETT CORPORATION LTD T/A TINAS CARS,SP0000729
WANDSWORTH COUNCIL,ASC,SOCIAL SERVICES,HIRE,Revenue,HIRE - TRANSPORT,901927,130220410,21/03/2016,554.82,BECKETT CORPORATION LTD T/A TINAS CARS,SP0000729
WANDSWORTH COUNCIL,ASC,SOCIAL SERVICES,HIRE,Revenue,HIRE - TRANSPORT,901928,130220410,21/03/2016,832.50,BECKETT CORPORATION LTD T/A TINAS CARS,SP0000729
WANDSWORTH COUNCIL,ASC,SOCIAL SERVICES,HIRE,Revenue,HIRE - TRANSPORT,901929,130220410,21/03/2016,832.50,BECKETT CORPORATION LTD T/A TINAS CARS,SP0000729
WANDSWORTH COUNCIL,ASC,SOCIAL SERVICES,HIRE,Revenue,HIRE - TRANSPORT,908841,130220410,29/03/2016,525.00,BECKETT CORPORATION LTD T/A TINAS CARS,SP0000729
WANDSWORTH COUNCIL,ASC,SOCIAL SERVICES,HIRE,Revenue,HIRE - TRANSPORT,908842,130220410,29/03/2016,420.00,BECKETT CORPORATION LTD T/A TINAS CARS,SP0000729
WANDSWORTH COUNCIL,ASC,SOCIAL SERVICES,HIRE,Revenue,HIRE - TRANSPORT,908843,130220410,29/03/2016,525.00,BECKETT CORPORATION LTD T/A TINAS CARS,SP0000729
WANDSWORTH COUNCIL,ASC,SOCIAL SERVICES,HIRE,Revenue,HIRE - TRANSPORT,908847,130220410,29/03/2016,420.00,BECKETT CORPORATION LTD T/A TINAS CARS,SP0000729
WANDSWORTH COUNCIL,ASC,SOCIAL SERVICES,HIRE,Revenue,HIRE - TRANSPORT,900110,130220410,17/03/2016,748.50,A STAR TRANSPORT LTD,SP0000866
WANDSWORTH COUNCIL,ASC,SOCIAL SERVICES,HIRE,Revenue,HIRE - TRANSPORT,900111,130220410,17/03/2016,366.00,A STAR TRANSPORT LTD,SP0000866
WANDSWORTH COUNCIL,ASC,SOCIAL SERVICES,HIRE,Revenue,HIRE - TRANSPORT,900114,130220410,17/03/2016,522.00,A STAR TRANSPORT LTD,SP0000866
WANDSWORTH COUNCIL,ASC,SOCIAL SERVICES,HIRE,Revenue,HIRE - TRANSPORT,900115,130220410,17/03/2016,544.00,A STAR TRANSPORT LTD,SP0000866
WANDSWORTH COUNCIL,ASC,SOCIAL SERVICES,HIRE,Revenue,HIRE - TRANSPORT,900116,130220410,17/03/2016,880.00,A STAR TRANSPORT LTD,SP0000866
WANDSWORTH COUNCIL,ASC,SOCIAL SERVICES,HIRE,Revenue,HIRE - TRANSPORT,900117,130220410,17/03/2016,454.00,A STAR TRANSPORT LTD,SP0000866
WANDSWORTH COUNCIL,ASC,SOCIAL SERVICES,HIRE,Revenue,HIRE - TRANSPORT,900120,130220410,17/03/2016,"1,280.00",A STAR TRANSPORT LTD,SP0000866
WANDSWORTH COUNCIL,ASC,SOCIAL SERVICES,HIRE,Revenue,HIRE - TRANSPORT,900124,130220410,17/03/2016,565.80,A STAR TRANSPORT LTD,SP0000866
WANDSWORTH COUNCIL,ASC,SOCIAL SERVICES,HIRE,Revenue,HIRE - TRANSPORT,900125,130220410,17/03/2016,"1,000.00",A STAR TRANSPORT LTD,SP0000866
WANDSWORTH COUNCIL,ASC,SOCIAL SERVICES,HIRE,Revenue,HIRE - TRANSPORT,900128,130220410,17/03/2016,588.00,A STAR TRANSPORT LTD,SP0000866
WANDSWORTH COUNCIL,ASC,SOCIAL SERVICES,HIRE,Revenue,HIRE - TRANSPORT,900133,130220410,17/03/2016,441.00,A STAR TRANSPORT LTD,SP0000866
WANDSWORTH COUNCIL,ASC,SOCIAL SERVICES,HIRE,Revenue,HIRE - TRANSPORT,900139,130220410,17/03/2016,826.66,A STAR TRANSPORT LTD,SP0000866
WANDSWORTH COUNCIL,ASC,SOCIAL SERVICES,HIRE,Revenue,HIRE - TRANSPORT,900140,130220410,17/03/2016,621.64,A STAR TRANSPORT LTD,SP0000866
WANDSWORTH COUNCIL,ASC,SOCIAL SERVICES,HIRE,Revenue,HIRE - TRANSPORT,900141,130220410,17/03/2016,"1,464.00",A STAR TRANSPORT LTD,SP0000866
WANDSWORTH COUNCIL,ASC,SOCIAL SERVICES,HIRE,Revenue,HIRE - TRANSPORT,900142,130220410,17/03/2016,624.00,A STAR TRANSPORT LTD,SP0000866
WANDSWORTH COUNCIL,ASC,SOCIAL SERVICES,HIRE,Revenue,HIRE - TRANSPORT,900143,130220410,17/03/2016,"1,535.00",A STAR TRANSPORT LTD,SP0000866
WANDSWORTH COUNCIL,ASC,SOCIAL SERVICES,HIRE,Revenue,HIRE - TRANSPORT,900144,130220410,17/03/2016,"1,178.00",A STAR TRANSPORT LTD,SP0000866
WANDSWORTH COUNCIL,ASC,SOCIAL SERVICES,HIRE,Revenue,HIRE - TRANSPORT,900145,130220410,17/03/2016,"1,064.00",A STAR TRANSPORT LTD,SP0000866
WANDSWORTH COUNCIL,ASC,SOCIAL SERVICES,HIRE,Revenue,HIRE - TRANSPORT,900147,130220410,17/03/2016,"1,350.00",A STAR TRANSPORT LTD,SP0000866
WANDSWORTH COUNCIL,ASC,SOCIAL SERVICES,HIRE,Revenue,HIRE - TRANSPORT,900148,130220410,17/03/2016,572.26,A STAR TRANSPORT LTD,SP0000866
WANDSWORTH COUNCIL,ASC,SOCIAL SERVICES,HIRE,Revenue,HIRE - TRANSPORT,900151,130220410,17/03/2016,528.00,A STAR TRANSPORT LTD,SP0000866
WANDSWORTH COUNCIL,ASC,SOCIAL SERVICES,HIRE,Revenue,HIRE - TRANSPORT,900155,130220410,17/03/2016,"1,160.00",A STAR TRANSPORT LTD,SP0000866
WANDSWORTH COUNCIL,ASC,SOCIAL SERVICES,HIRE,Revenue,HIRE - TRANSPORT,900156,130220410,17/03/2016,630.00,A STAR TRANSPORT LTD,SP0000866
WANDSWORTH COUNCIL,ASC,SOCIAL SERVICES,HIRE,Revenue,HIRE - TRANSPORT,900157,130220410,17/03/2016,630.00,A STAR TRANSPORT LTD,SP0000866
WANDSWORTH COUNCIL,ASC,SOCIAL SERVICES,HIRE,Revenue,HIRE - TRANSPORT,900159,130220410,17/03/2016,574.00,A STAR TRANSPORT LTD,SP0000866
WANDSWORTH COUNCIL,ASC,SOCIAL SERVICES,HIRE,Revenue,HIRE - TRANSPORT,900163,130220410,17/03/2016,546.36,A STAR TRANSPORT LTD,SP0000866
WANDSWORTH COUNCIL,ASC,SOCIAL SERVICES,HIRE,Revenue,HIRE - TRANSPORT,900510,130220410,17/03/2016,"1,000.00",A STAR TRANSPORT LTD,SP0000866
WANDSWORTH COUNCIL,ASC,SOCIAL SERVICES,HIRE,Revenue,HIRE - TRANSPORT,900511,130220410,17/03/2016,"1,000.00",A STAR TRANSPORT LTD,SP0000866
WANDSWORTH COUNCIL,ASC,SOCIAL SERVICES,HIRE,Revenue,HIRE - TRANSPORT,900513,130220410,17/03/2016,950.00,A STAR TRANSPORT LTD,SP0000866
WANDSWORTH COUNCIL,ASC,SOCIAL SERVICES,HIRE,Revenue,HIRE - TRANSPORT,900514,130220410,17/03/2016,480.93,A STAR TRANSPORT LTD,SP0000866
WANDSWORTH COUNCIL,ASC,SOCIAL SERVICES,HIRE,Revenue,HIRE - TRANSPORT,900515,130220410,17/03/2016,900.00,A STAR TRANSPORT LTD,SP0000866
WANDSWORTH COUNCIL,ASC,SOCIAL SERVICES,HIRE,Revenue,HIRE - TRANSPORT,900516,130220410,17/03/2016,"1,000.00",A STAR TRANSPORT LTD,SP0000866
WANDSWORTH COUNCIL,ASC,SOCIAL SERVICES,HIRE,Revenue,HIRE - TRANSPORT,905118,130220410,22/03/2016,"1,768.00",A STAR TRANSPORT LTD,SP0000866
WANDSWORTH COUNCIL,ASC,SOCIAL SERVICES,HIRE,Revenue,HIRE - TRANSPORT,905119,130220410,22/03/2016,"2,080.00",A STAR TRANSPORT LTD,SP0000866
WANDSWORTH COUNCIL,ASC,SOCIAL SERVICES,HIRE,Revenue,HIRE - TRANSPORT,905120,130220410,22/03/2016,"1,612.00",A STAR TRANSPORT LTD,SP0000866
WANDSWORTH COUNCIL,ASC,SOCIAL SERVICES,HIRE,Revenue,HIRE - TRANSPORT,905121,130220410,22/03/2016,"1,560.00",A STAR TRANSPORT LTD,SP0000866
WANDSWORTH COUNCIL,ASC,SOCIAL SERVICES,HIRE,Revenue,HIRE - TRANSPORT,905122,130220410,22/03/2016,"2,080.00",A STAR TRANSPORT LTD,SP0000866
WANDSWORTH COUNCIL,ASC,SOCIAL SERVICES,HIRE,Revenue,HIRE - TRANSPORT,906838,130220410,23/03/2016,637.77,ADDISON LEE LTD,SP0003268
WANDSWORTH COUNCIL,ASC,SOCIAL SERVICES,HIRE,Revenue,HIRE - TRANSPORT,906840,130220410,23/03/2016,736.32,ADDISON LEE LTD,SP0003268
WANDSWORTH COUNCIL,ASC,SOCIAL SERVICES,HIRE,Revenue,HIRE - TRANSPORT,906842,130220410,23/03/2016,445.20,ADDISON LEE LTD,SP0003268
WANDSWORTH COUNCIL,ASC,SOCIAL SERVICES,HIRE,Revenue,HIRE - TRANSPORT,895719,130220410,14/03/2016,852.50,PARKER CARS LIMITED,SP0005826
WANDSWORTH COUNCIL,ASC,SOCIAL SERVICES,HIRE,Revenue,HIRE - TRANSPORT,895721,130220410,14/03/2016,427.50,PARKER CARS LIMITED,SP0005826
WANDSWORTH COUNCIL,ASC,SOCIAL SERVICES,HIRE,Revenue,HIRE - TRANSPORT,897062,130220410,15/03/2016,931.00,PARKER CARS LIMITED,SP0005826
WANDSWORTH COUNCIL,ASC,SOCIAL SERVICES,HIRE,Revenue,NEW TRANSPORT CONTRACT,897074,130220430,15/03/2016,"1,566.00",BECKETT CORPORATION LTD T/A TINAS CARS,SP0000729
WANDSWORTH COUNCIL,ASC,SOCIAL SERVICES,HIRE,Revenue,NEW TRANSPORT CONTRACT,901924,130220430,21/03/2016,407.28,BECKETT CORPORATION LTD T/A TINAS CARS,SP0000729
WANDSWORTH COUNCIL,ASC,SOCIAL SERVICES,HIRE,Revenue,NEW TRANSPORT CONTRACT,900111,130220430,17/03/2016,210.00,A STAR TRANSPORT LTD,SP0000866
WANDSWORTH COUNCIL,ASC,SOCIAL SERVICES,SERVICES,Revenue,TRAVEL BUDDY SCHEME,891496,130234970,07/03/2016,597.58,HARINGEY ASSOCIATION FOR INDEPENDENT LIV,SP0000222
WANDSWORTH COUNCIL,ASC,SOCIAL SERVICES,SERVICES,Revenue,TRAVEL BUDDY SCHEME,891497,130234970,07/03/2016,633.20,HARINGEY ASSOCIATION FOR INDEPENDENT LIV,SP0000222
WANDSWORTH COUNCIL,ASC,SOCIAL SERVICES,SERVICES,Revenue,TRAVEL BUDDY SCHEME,891508,130234970,07/03/2016,635.84,HARINGEY ASSOCIATION FOR INDEPENDENT LIV,SP0000222
WANDSWORTH COUNCIL,ASC,SOCIAL SERVICES,SERVICES,Revenue,TRAVEL BUDDY SCHEME,891509,130234970,07/03/2016,759.84,HARINGEY ASSOCIATION FOR INDEPENDENT LIV,SP0000222
WANDSWORTH COUNCIL,ASC,SOCIAL SERVICES,SERVICES,Revenue,TRAVEL BUDDY SCHEME,891516,130234970,07/03/2016,514.48,HARINGEY ASSOCIATION FOR INDEPENDENT LIV,SP0000222
WANDSWORTH COUNCIL,ASC,SOCIAL SERVICES,SERVICES,Revenue,TRAVEL BUDDY SCHEME,891520,130234970,07/03/2016,569.88,HARINGEY ASSOCIATION FOR INDEPENDENT LIV,SP0000222
WANDSWORTH COUNCIL,ASC,SOCIAL SERVICES,SERVICES,Revenue,TRAVEL BUDDY SCHEME,892625,130234970,10/03/2016,600.38,SOUTHSIDE PARTNERSHIP,SP0000692
WANDSWORTH COUNCIL,ASC,SOCIAL SERVICES,SERVICES,Revenue,TRAVEL BUDDY SCHEME,892626,130234970,10/03/2016,502.58,SOUTHSIDE PARTNERSHIP,SP0000692
WANDSWORTH COUNCIL,ASC,SOCIAL SERVICES,SERVICES,Revenue,TRAVEL BUDDY SCHEME,892627,130234970,10/03/2016,649.28,SOUTHSIDE PARTNERSHIP,SP0000692
WANDSWORTH COUNCIL,ASC,SOCIAL SERVICES,SERVICES,Revenue,TRAVEL BUDDY SCHEME,892629,130234970,10/03/2016,575.29,SOUTHSIDE PARTNERSHIP,SP0000692
WANDSWORTH COUNCIL,ASC,SOCIAL SERVICES,SERVICES,Revenue,TRAVEL BUDDY SCHEME,892630,130234970,10/03/2016,635.70,SOUTHSIDE PARTNERSHIP,SP0000692
WANDSWORTH COUNCIL,ASC,SOCIAL SERVICES,SERVICES,Revenue,TRAVEL BUDDY SCHEME,892631,130234970,10/03/2016,652.00,SOUTHSIDE PARTNERSHIP,SP0000692
WANDSWORTH COUNCIL,ASC,SOCIAL SERVICES,HEALTH,Revenue,EXT RES S28A 100% OLD LONGSTAY,894769,130241010,11/03/2016,"5,862.51",VOYAGE CARE LTD,SP0000366
WANDSWORTH COUNCIL,ASC,SOCIAL SERVICES,HEALTH,Revenue,EXT RES S28A 100% OLD LONGSTAY,897781,130241010,16/03/2016,"8,326.49",VOYAGE CARE LTD,SP0000366
WANDSWORTH COUNCIL,ASC,SOCIAL SERVICES,HEALTH,Revenue,EXT RES S28A 100% OLD LONGSTAY,889127,130241010,03/03/2016,"3,865.17",PARKGATE MANOR,SP0000521
WANDSWORTH COUNCIL,ASC,SOCIAL SERVICES,HEALTH,Revenue,EXTERNAL RESIDENTIAL CARE S28A,906696,130241080,23/03/2016,"7,215.87",PROGRESS HOUSING LULWORTH,SP0000921
WANDSWORTH COUNCIL,ASC,SOCIAL SERVICES,HEALTH,Revenue,EXTERNAL RESIDENTIAL CARE S28A,906697,130241080,23/03/2016,"7,215.87",PROGRESS HOUSING LULWORTH,SP0000921
WANDSWORTH COUNCIL,ASC,SOCIAL SERVICES,HEALTH,Revenue,EXT RES CARE S28A 100%,894770,130241090,11/03/2016,"5,862.64",VOYAGE CARE LTD,SP0000366
WANDSWORTH COUNCIL,ASC,SOCIAL SERVICES,HEALTH,Revenue,EXT RES CARE S28A 100%,906701,130241090,23/03/2016,"6,746.04",HOME FROM HOME CARE LIMITED,SP0001373
WANDSWORTH COUNCIL,ASC,SOCIAL SERVICES,HEALTH,Revenue,EXT RES RESPITE CARE S28A,891375,130241100,07/03/2016,"5,739.97",THE BRANDON TRUST,SP0005337
WANDSWORTH COUNCIL,ASC,SOCIAL SERVICES,HEALTH,Revenue,EXT RES S28A OLD LONG STAY,906695,130241110,23/03/2016,"2,975.96",ELEANOR NURSING & SOCIAL CARE,SP0000110
WANDSWORTH COUNCIL,ASC,SOCIAL SERVICES,HEALTH,Revenue,EXT RES S28A OLD LONG STAY,892594,130241110,09/03/2016,"4,967.71",THE COMMUNITY CARE COMPANY UK LTD,SP0000576
WANDSWORTH COUNCIL,ASC,SOCIAL SERVICES,HEALTH,Revenue,EXT RES S28A OLD LONG STAY,889142,130241110,03/03/2016,"4,709.79",METROPOLITAN HOUSING TRUST,SP0000626
WANDSWORTH COUNCIL,ASC,SOCIAL SERVICES,HEALTH,Revenue,EXT RES S28A OLD LONG STAY,907990,130241110,24/03/2016,"2,498.01",ASHTON CARE,SP0000695
WANDSWORTH COUNCIL,ASC,SOCIAL SERVICES,HEALTH,Revenue,EXT RES S28A OLD LONG STAY,887604,130241110,02/03/2016,"4,351.72",ANTHONY TOBY HOMES TRUST,SP0000755
WANDSWORTH COUNCIL,ASC,SOCIAL SERVICES,HEALTH,Revenue,EXT RES S28A OLD LONG STAY,908000,130241110,24/03/2016,"4,351.72",ANTHONY TOBY HOMES TRUST,SP0000755
WANDSWORTH COUNCIL,ASC,,INDEPENDENT UNITS,Revenue,DAY CARE MUTUAL,890206,130242040,07/03/2016,"31,301.65",ONE TRUST,SP0010206
WANDSWORTH COUNCIL,ASC,,INDEPENDENT UNITS,Revenue,DAY CARE MUTUAL,891938,130242040,09/03/2016,"45,277.28",ONE TRUST,SP0010206
WANDSWORTH COUNCIL,ASC,,OTHER AGENCIES,Revenue,ENABLERS/EDUCATION FEES,901059,130243280,22/03/2016,"7,539.24",YOUNG EPILEPSY,SP0005433
WANDSWORTH COUNCIL,ASC,SOCIAL SERVICES,OTHER AGENCIES,Revenue,EXTERNAL OUTREACH,894804,130243330,11/03/2016,456.32,RAINBOW MEDICAL SERVICES,SP0000037
WANDSWORTH COUNCIL,ASC,SOCIAL SERVICES,OTHER AGENCIES,Revenue,EXTERNAL OUTREACH,894806,130243330,11/03/2016,"1,693.94",RAINBOW MEDICAL SERVICES,SP0000037
WANDSWORTH COUNCIL,ASC,SOCIAL SERVICES,OTHER AGENCIES,Revenue,EXTERNAL OUTREACH,891484,130243330,07/03/2016,950.00,PROTOCOL EDUCATION LTD,SP0000171
WANDSWORTH COUNCIL,ASC,SOCIAL SERVICES,OTHER AGENCIES,Revenue,EXTERNAL OUTREACH,894797,130243330,11/03/2016,950.00,PROTOCOL EDUCATION LTD,SP0000171
WANDSWORTH COUNCIL,ASC,SOCIAL SERVICES,OTHER AGENCIES,Revenue,EXTERNAL OUTREACH,894798,130243330,11/03/2016,950.00,PROTOCOL EDUCATION LTD,SP0000171
WANDSWORTH COUNCIL,ASC,SOCIAL SERVICES,OTHER AGENCIES,Revenue,EXTERNAL OUTREACH,894799,130243330,11/03/2016,950.00,PROTOCOL EDUCATION LTD,SP0000171
WANDSWORTH COUNCIL,ASC,SOCIAL SERVICES,OTHER AGENCIES,Revenue,EXTERNAL OUTREACH,894800,130243330,11/03/2016,950.00,PROTOCOL EDUCATION LTD,SP0000171
WANDSWORTH COUNCIL,ASC,SOCIAL SERVICES,OTHER AGENCIES,Revenue,EXTERNAL OUTREACH,894801,130243330,11/03/2016,950.00,PROTOCOL EDUCATION LTD,SP0000171
WANDSWORTH COUNCIL,ASC,SOCIAL SERVICES,OTHER AGENCIES,Revenue,EXTERNAL OUTREACH,895712,130243330,14/03/2016,950.00,PROTOCOL EDUCATION LTD,SP0000171
WANDSWORTH COUNCIL,ASC,SOCIAL SERVICES,OTHER AGENCIES,Revenue,EXTERNAL OUTREACH,902642,130243330,21/03/2016,950.00,PROTOCOL EDUCATION LTD,SP0000171
WANDSWORTH COUNCIL,ASC,SOCIAL SERVICES,OTHER AGENCIES,Revenue,EXTERNAL OUTREACH,906832,130243330,23/03/2016,950.00,PROTOCOL EDUCATION LTD,SP0000171
WANDSWORTH COUNCIL,ASC,SOCIAL SERVICES,OTHER AGENCIES,Revenue,EXTERNAL OUTREACH,891489,130243330,07/03/2016,506.56,HARINGEY ASSOCIATION FOR INDEPENDENT LIV,SP0000222
WANDSWORTH COUNCIL,ASC,SOCIAL SERVICES,OTHER AGENCIES,Revenue,EXTERNAL OUTREACH,891492,130243330,07/03/2016,753.60,HARINGEY ASSOCIATION FOR INDEPENDENT LIV,SP0000222
WANDSWORTH COUNCIL,ASC,SOCIAL SERVICES,OTHER AGENCIES,Revenue,EXTERNAL OUTREACH,891494,130243330,07/03/2016,628.00,HARINGEY ASSOCIATION FOR INDEPENDENT LIV,SP0000222
WANDSWORTH COUNCIL,ASC,SOCIAL SERVICES,OTHER AGENCIES,Revenue,EXTERNAL OUTREACH,901917,130243330,21/03/2016,506.56,HARINGEY ASSOCIATION FOR INDEPENDENT LIV,SP0000222
WANDSWORTH COUNCIL,ASC,SOCIAL SERVICES,OTHER AGENCIES,Revenue,EXTERNAL OUTREACH,901920,130243330,21/03/2016,753.60,HARINGEY ASSOCIATION FOR INDEPENDENT LIV,SP0000222
WANDSWORTH COUNCIL,ASC,SOCIAL SERVICES,OTHER AGENCIES,Revenue,EXTERNAL OUTREACH,901922,130243330,21/03/2016,628.00,HARINGEY ASSOCIATION FOR INDEPENDENT LIV,SP0000222
WANDSWORTH COUNCIL,ASC,SOCIAL SERVICES,OTHER AGENCIES,Revenue,EXTERNAL OUTREACH,893078,130243330,09/03/2016,507.33,REED,SP0000295
WANDSWORTH COUNCIL,ASC,SOCIAL SERVICES,OTHER AGENCIES,Revenue,EXTERNAL OUTREACH,897979,130243330,16/03/2016,"2,185.32",C M CARE LTD,SP0000455
WANDSWORTH COUNCIL,ASC,SOCIAL SERVICES,OTHER AGENCIES,Revenue,EXTERNAL OUTREACH,897982,130243330,16/03/2016,"1,287.20",C M CARE LTD,SP0000455
WANDSWORTH COUNCIL,ASC,SOCIAL SERVICES,OTHER AGENCIES,Revenue,EXTERNAL OUTREACH,897984,130243330,16/03/2016,576.00,C M CARE LTD,SP0000455
WANDSWORTH COUNCIL,ASC,SOCIAL SERVICES,OTHER AGENCIES,Revenue,EXTERNAL OUTREACH,897985,130243330,16/03/2016,"1,540.00",C M CARE LTD,SP0000455
WANDSWORTH COUNCIL,ASC,SOCIAL SERVICES,OTHER AGENCIES,Revenue,EXTERNAL OUTREACH,886582,130243330,01/03/2016,717.84,GENERATE OPPORTUNITIES LTD,SP0000503
WANDSWORTH COUNCIL,ASC,SOCIAL SERVICES,OTHER AGENCIES,Revenue,EXTERNAL OUTREACH,886587,130243330,01/03/2016,598.20,GENERATE OPPORTUNITIES LTD,SP0000503
WANDSWORTH COUNCIL,ASC,SOCIAL SERVICES,OTHER AGENCIES,Revenue,EXTERNAL OUTREACH,886589,130243330,01/03/2016,428.00,GENERATE OPPORTUNITIES LTD,SP0000503
WANDSWORTH COUNCIL,ASC,SOCIAL SERVICES,OTHER AGENCIES,Revenue,EXTERNAL OUTREACH,886594,130243330,01/03/2016,797.60,GENERATE OPPORTUNITIES LTD,SP0000503
WANDSWORTH COUNCIL,ASC,SOCIAL SERVICES,OTHER AGENCIES,Revenue,EXTERNAL OUTREACH,886605,130243330,01/03/2016,"2,233.28",GENERATE OPPORTUNITIES LTD,SP0000503
WANDSWORTH COUNCIL,ASC,SOCIAL SERVICES,OTHER AGENCIES,Revenue,EXTERNAL OUTREACH,886611,130243330,01/03/2016,957.12,GENERATE OPPORTUNITIES LTD,SP0000503
WANDSWORTH COUNCIL,ASC,SOCIAL SERVICES,OTHER AGENCIES,Revenue,EXTERNAL OUTREACH,886615,130243330,01/03/2016,322.24,GENERATE OPPORTUNITIES LTD,SP0000503
WANDSWORTH COUNCIL,ASC,SOCIAL SERVICES,OTHER AGENCIES,Revenue,EXTERNAL OUTREACH,889227,130243330,03/03/2016,"2,273.16",GENERATE OPPORTUNITIES LTD,SP0000503
WANDSWORTH COUNCIL,ASC,SOCIAL SERVICES,OTHER AGENCIES,Revenue,EXTERNAL OUTREACH,892801,130243330,09/03/2016,677.60,GENERATE OPPORTUNITIES LTD,SP0000503
WANDSWORTH COUNCIL,ASC,SOCIAL SERVICES,OTHER AGENCIES,Revenue,EXTERNAL OUTREACH,892803,130243330,09/03/2016,576.00,GENERATE OPPORTUNITIES LTD,SP0000503
WANDSWORTH COUNCIL,ASC,SOCIAL SERVICES,OTHER AGENCIES,Revenue,EXTERNAL OUTREACH,892811,130243330,09/03/2016,"2,233.28",GENERATE OPPORTUNITIES LTD,SP0000503
WANDSWORTH COUNCIL,ASC,SOCIAL SERVICES,OTHER AGENCIES,Revenue,EXTERNAL OUTREACH,892820,130243330,09/03/2016,957.12,GENERATE OPPORTUNITIES LTD,SP0000503
WANDSWORTH COUNCIL,ASC,SOCIAL SERVICES,OTHER AGENCIES,Revenue,EXTERNAL OUTREACH,892825,130243330,09/03/2016,638.08,GENERATE OPPORTUNITIES LTD,SP0000503
WANDSWORTH COUNCIL,ASC,SOCIAL SERVICES,OTHER AGENCIES,Revenue,EXTERNAL OUTREACH,892830,130243330,09/03/2016,"1,196.40",GENERATE OPPORTUNITIES LTD,SP0000503
WANDSWORTH COUNCIL,ASC,SOCIAL SERVICES,OTHER AGENCIES,Revenue,EXTERNAL OUTREACH,892847,130243330,09/03/2016,717.84,GENERATE OPPORTUNITIES LTD,SP0000503
WANDSWORTH COUNCIL,ASC,SOCIAL SERVICES,OTHER AGENCIES,Revenue,EXTERNAL OUTREACH,892855,130243330,09/03/2016,797.60,GENERATE OPPORTUNITIES LTD,SP0000503
WANDSWORTH COUNCIL,ASC,SOCIAL SERVICES,OTHER AGENCIES,Revenue,EXTERNAL OUTREACH,892860,130243330,09/03/2016,322.24,GENERATE OPPORTUNITIES LTD,SP0000503
WANDSWORTH COUNCIL,ASC,SOCIAL SERVICES,OTHER AGENCIES,Revenue,EXTERNAL OUTREACH,894808,130243330,11/03/2016,"1,357.50",ROYAL ASSOCIATION FOR DEAF PEOPLE,SP0001251
WANDSWORTH COUNCIL,ASC,SOCIAL SERVICES,OTHER AGENCIES,Revenue,EXTERNAL OUTREACH,889242,130243330,03/03/2016,733.04,THE BRANDON TRUST,SP0005337
WANDSWORTH COUNCIL,ASC,SOCIAL SERVICES,OTHER AGENCIES,Revenue,EXTERNAL OUTREACH,891458,130243330,07/03/2016,189.48,THE BRANDON TRUST,SP0005337
WANDSWORTH COUNCIL,ASC,SOCIAL SERVICES,OTHER AGENCIES,Revenue,EXTERNAL OUTREACH,891460,130243330,07/03/2016,189.48,THE BRANDON TRUST,SP0005337
WANDSWORTH COUNCIL,ASC,SOCIAL SERVICES,OTHER AGENCIES,Revenue,EXTERNAL OUTREACH,891474,130243330,07/03/2016,733.04,THE BRANDON TRUST,SP0005337
WANDSWORTH COUNCIL,ASC,SOCIAL SERVICES,OTHER AGENCIES,Revenue,EXTERNAL OUTREACH,891475,130243330,07/03/2016,886.31,THE BRANDON TRUST,SP0005337
WANDSWORTH COUNCIL,ASC,SOCIAL SERVICES,OTHER AGENCIES,Revenue,EXTERNAL OUTREACH,891476,130243330,07/03/2016,599.76,THE BRANDON TRUST,SP0005337
WANDSWORTH COUNCIL,ASC,SOCIAL SERVICES,OTHER AGENCIES,Revenue,EXTERNAL OUTREACH,891478,130243330,07/03/2016,757.10,THE BRANDON TRUST,SP0005337
WANDSWORTH COUNCIL,ASC,SOCIAL SERVICES,OTHER AGENCIES,Revenue,EXTERNAL OUTREACH,892939,130243330,09/03/2016,"3,486.00",THE BRANDON TRUST,SP0005337
WANDSWORTH COUNCIL,ASC,SOCIAL SERVICES,OTHER AGENCIES,Revenue,EXTERNAL OUTREACH,892945,130243330,09/03/2016,331.20,THE BRANDON TRUST,SP0005337
WANDSWORTH COUNCIL,ASC,SOCIAL SERVICES,OTHER AGENCIES,Revenue,EXTERNAL OUTREACH,892960,130243330,09/03/2016,757.92,THE BRANDON TRUST,SP0005337
WANDSWORTH COUNCIL,ASC,SOCIAL SERVICES,OTHER AGENCIES,Revenue,EXTERNAL OUTREACH,892991,130243330,09/03/2016,631.60,THE BRANDON TRUST,SP0005337
WANDSWORTH COUNCIL,ASC,SOCIAL SERVICES,OTHER AGENCIES,Revenue,EXTERNAL OUTREACH,893002,130243330,09/03/2016,568.44,THE BRANDON TRUST,SP0005337
WANDSWORTH COUNCIL,ASC,SOCIAL SERVICES,OTHER AGENCIES,Revenue,EXTERNAL OUTREACH,893003,130243330,09/03/2016,505.28,THE BRANDON TRUST,SP0005337
WANDSWORTH COUNCIL,ASC,SOCIAL SERVICES,OTHER AGENCIES,Revenue,EXTERNAL OUTREACH,893004,130243330,09/03/2016,189.08,THE BRANDON TRUST,SP0005337
WANDSWORTH COUNCIL,ASC,SOCIAL SERVICES,OTHER AGENCIES,Revenue,EXTERNAL OUTREACH,893009,130243330,09/03/2016,947.40,THE BRANDON TRUST,SP0005337
WANDSWORTH COUNCIL,ASC,SOCIAL SERVICES,OTHER AGENCIES,Revenue,EXTERNAL OUTREACH,893010,130243330,09/03/2016,"1,170.80",THE BRANDON TRUST,SP0005337
WANDSWORTH COUNCIL,ASC,SOCIAL SERVICES,OTHER AGENCIES,Revenue,EXTERNAL OUTREACH,893026,130243330,09/03/2016,189.48,THE BRANDON TRUST,SP0005337
WANDSWORTH COUNCIL,ASC,SOCIAL SERVICES,OTHER AGENCIES,Revenue,EXTERNAL OUTREACH,893038,130243330,09/03/2016,694.76,THE BRANDON TRUST,SP0005337
WANDSWORTH COUNCIL,ASC,SOCIAL SERVICES,OTHER AGENCIES,Revenue,EXTERNAL OUTREACH,908039,130243330,24/03/2016,252.64,THE BRANDON TRUST,SP0005337
WANDSWORTH COUNCIL,ASC,SOCIAL SERVICES,OTHER AGENCIES,Revenue,EXTERNAL OUTREACH,908040,130243330,24/03/2016,694.76,THE BRANDON TRUST,SP0005337
WANDSWORTH COUNCIL,ASC,SOCIAL SERVICES,OTHER AGENCIES,Revenue,EXTERNAL OUTREACH,908042,130243330,24/03/2016,733.04,THE BRANDON TRUST,SP0005337
WANDSWORTH COUNCIL,ASC,SOCIAL SERVICES,OTHER AGENCIES,Revenue,EXTERNAL OUTREACH,908043,130243330,24/03/2016,886.31,THE BRANDON TRUST,SP0005337
WANDSWORTH COUNCIL,ASC,SOCIAL SERVICES,OTHER AGENCIES,Revenue,EXTERNAL OUTREACH,908044,130243330,24/03/2016,599.76,THE BRANDON TRUST,SP0005337
WANDSWORTH COUNCIL,ASC,SOCIAL SERVICES,OTHER AGENCIES,Revenue,EXTERNAL OUTREACH,908052,130243330,24/03/2016,331.20,THE BRANDON TRUST,SP0005337
WANDSWORTH COUNCIL,ASC,SOCIAL SERVICES,OTHER AGENCIES,Revenue,EXTERNAL OUTREACH,908066,130243330,24/03/2016,757.92,THE BRANDON TRUST,SP0005337
WANDSWORTH COUNCIL,ASC,SOCIAL SERVICES,OTHER AGENCIES,Revenue,EXTERNAL OUTREACH,894437,130243330,10/03/2016,"2,640.00",RELIABLE PERSONNEL LTD,SP0005657
WANDSWORTH COUNCIL,ASC,SOCIAL SERVICES,OTHER AGENCIES,Revenue,EXTERNAL OUTREACH,887133,130243330,01/03/2016,720.00,LIVE TOO LIMITED,SP0010112
WANDSWORTH COUNCIL,ASC,,OTHER AGENCIES,Revenue,APS SHARED LIVES SCHEME,854561,130243820,10/03/2016,"49,772.28",SOUTHSIDE PARTNERSHIP,SP0000692
WANDSWORTH COUNCIL,ASC,,OTHER AGENCIES,Revenue,APS SHARED LIVES SCHEME,854562,130243820,10/03/2016,"51,554.28",SOUTHSIDE PARTNERSHIP,SP0000692
WANDSWORTH COUNCIL,ASC,,OTHER AGENCIES,Revenue,APS SHARED LIVES SCHEME,854564,130243820,10/03/2016,"8,355.26",SOUTHSIDE PARTNERSHIP,SP0000692
WANDSWORTH COUNCIL,ASC,,OTHER AGENCIES,Revenue,APS SHARED LIVES SCHEME,855002,130243820,10/03/2016,"15,619.00",SOUTHSIDE PARTNERSHIP,SP0000692
WANDSWORTH COUNCIL,ASC,,OTHER AGENCIES,Revenue,APS SHARED LIVES SCHEME,884621,130243820,17/03/2016,"48,032.28",SOUTHSIDE PARTNERSHIP,SP0000692
WANDSWORTH COUNCIL,ASC,,OTHER AGENCIES,Revenue,APS SHARED LIVES SCHEME,893957,130243820,17/03/2016,589.05,SOUTHSIDE PARTNERSHIP,SP0000692
WANDSWORTH COUNCIL,ASC,,OTHER AGENCIES,Revenue,APS SHARED LIVES SCHEME,893958,130243820,17/03/2016,"16,107.32",SOUTHSIDE PARTNERSHIP,SP0000692
WANDSWORTH COUNCIL,ASC,,OTHER AGENCIES,Revenue,APS SHARED LIVES SCHEME,893963,130243820,17/03/2016,"15,619.00",SOUTHSIDE PARTNERSHIP,SP0000692
WANDSWORTH COUNCIL,ASC,,OTHER AGENCIES,Revenue,APS SHARED LIVES SCHEME,893964,130243820,17/03/2016,649.04,SOUTHSIDE PARTNERSHIP,SP0000692
WANDSWORTH COUNCIL,ASC,SOCIAL SERVICES,PRIVATE,Revenue,EXTERNAL DAYCARE,887107,130245290,01/03/2016,878.48,ORCHARD VALE TRUST,SP0000214
WANDSWORTH COUNCIL,ASC,SOCIAL SERVICES,PRIVATE,Revenue,EXTERNAL DAYCARE,908823,130245290,29/03/2016,500.00,ST MARYS RESIDENTIAL HOME,SP0000215
WANDSWORTH COUNCIL,ASC,SOCIAL SERVICES,PRIVATE,Revenue,EXTERNAL DAYCARE,908824,130245290,29/03/2016,"2,171.05",ST MARYS RESIDENTIAL HOME,SP0000215
WANDSWORTH COUNCIL,ASC,SOCIAL SERVICES,PRIVATE,Revenue,EXTERNAL DAYCARE,908825,130245290,29/03/2016,885.65,ST MARYS RESIDENTIAL HOME,SP0000215
WANDSWORTH COUNCIL,ASC,SOCIAL SERVICES,PRIVATE,Revenue,EXTERNAL DAYCARE,908826,130245290,29/03/2016,516.10,ST MARYS RESIDENTIAL HOME,SP0000215
WANDSWORTH COUNCIL,ASC,SOCIAL SERVICES,PRIVATE,Revenue,EXTERNAL DAYCARE,908827,130245290,29/03/2016,516.50,ST MARYS RESIDENTIAL HOME,SP0000215
WANDSWORTH COUNCIL,ASC,SOCIAL SERVICES,PRIVATE,Revenue,EXTERNAL DAYCARE,908828,130245290,29/03/2016,"1,196.00",ST MARYS RESIDENTIAL HOME,SP0000215
WANDSWORTH COUNCIL,ASC,SOCIAL SERVICES,PRIVATE,Revenue,EXTERNAL DAYCARE,908829,130245290,29/03/2016,516.10,ST MARYS RESIDENTIAL HOME,SP0000215
WANDSWORTH COUNCIL,ASC,SOCIAL SERVICES,PRIVATE,Revenue,EXTERNAL DAYCARE,908831,130245290,29/03/2016,667.85,ST MARYS RESIDENTIAL HOME,SP0000215
WANDSWORTH COUNCIL,ASC,SOCIAL SERVICES,PRIVATE,Revenue,EXTERNAL DAYCARE,894411,130245290,10/03/2016,"3,781.40",NAS SERVICES LIMITED,SP0000217
WANDSWORTH COUNCIL,ASC,SOCIAL SERVICES,PRIVATE,Revenue,EXTERNAL DAYCARE,894412,130245290,10/03/2016,"1,583.68",NAS SERVICES LIMITED,SP0000217
WANDSWORTH COUNCIL,ASC,SOCIAL SERVICES,PRIVATE,Revenue,EXTERNAL DAYCARE,894413,130245290,10/03/2016,"3,719.00",NAS SERVICES LIMITED,SP0000217
WANDSWORTH COUNCIL,ASC,SOCIAL SERVICES,PRIVATE,Revenue,EXTERNAL DAYCARE,894414,130245290,10/03/2016,"2,314.80",NAS SERVICES LIMITED,SP0000217
WANDSWORTH COUNCIL,ASC,SOCIAL SERVICES,PRIVATE,Revenue,EXTERNAL DAYCARE,894415,130245290,10/03/2016,"2,314.80",NAS SERVICES LIMITED,SP0000217
WANDSWORTH COUNCIL,ASC,SOCIAL SERVICES,PRIVATE,Revenue,EXTERNAL DAYCARE,892861,130245290,11/03/2016,806.04,CRAEGMOOR FACILITIES CO LTD,SP0000306
WANDSWORTH COUNCIL,ASC,SOCIAL SERVICES,PRIVATE,Revenue,EXTERNAL DAYCARE,895672,130245290,14/03/2016,713.16,SHARE COMMUNITY,SP0000329
WANDSWORTH COUNCIL,ASC,SOCIAL SERVICES,PRIVATE,Revenue,EXTERNAL DAYCARE,895674,130245290,14/03/2016,950.84,SHARE COMMUNITY,SP0000329
WANDSWORTH COUNCIL,ASC,SOCIAL SERVICES,PRIVATE,Revenue,EXTERNAL DAYCARE,895675,130245290,14/03/2016,713.16,SHARE COMMUNITY,SP0000329
WANDSWORTH COUNCIL,ASC,SOCIAL SERVICES,PRIVATE,Revenue,EXTERNAL DAYCARE,895678,130245290,14/03/2016,713.16,SHARE COMMUNITY,SP0000329
WANDSWORTH COUNCIL,ASC,SOCIAL SERVICES,PRIVATE,Revenue,EXTERNAL DAYCARE,895680,130245290,14/03/2016,950.84,SHARE COMMUNITY,SP0000329
WANDSWORTH COUNCIL,ASC,SOCIAL SERVICES,PRIVATE,Revenue,EXTERNAL DAYCARE,895681,130245290,14/03/2016,950.84,SHARE COMMUNITY,SP0000329
WANDSWORTH COUNCIL,ASC,SOCIAL SERVICES,PRIVATE,Revenue,EXTERNAL DAYCARE,895682,130245290,14/03/2016,"1,188.56",SHARE COMMUNITY,SP0000329
WANDSWORTH COUNCIL,ASC,SOCIAL SERVICES,PRIVATE,Revenue,EXTERNAL DAYCARE,895683,130245290,14/03/2016,713.16,SHARE COMMUNITY,SP0000329
WANDSWORTH COUNCIL,ASC,SOCIAL SERVICES,PRIVATE,Revenue,EXTERNAL DAYCARE,895684,130245290,14/03/2016,"1,188.56",SHARE COMMUNITY,SP0000329
WANDSWORTH COUNCIL,ASC,SOCIAL SERVICES,PRIVATE,Revenue,EXTERNAL DAYCARE,895685,130245290,14/03/2016,713.16,SHARE COMMUNITY,SP0000329
WANDSWORTH COUNCIL,ASC,SOCIAL SERVICES,PRIVATE,Revenue,EXTERNAL DAYCARE,895686,130245290,14/03/2016,950.84,SHARE COMMUNITY,SP0000329
WANDSWORTH COUNCIL,ASC,SOCIAL SERVICES,PRIVATE,Revenue,EXTERNAL DAYCARE,895688,130245290,14/03/2016,713.16,SHARE COMMUNITY,SP0000329
WANDSWORTH COUNCIL,ASC,SOCIAL SERVICES,PRIVATE,Revenue,EXTERNAL DAYCARE,895690,130245290,14/03/2016,594.28,SHARE COMMUNITY,SP0000329
WANDSWORTH COUNCIL,ASC,SOCIAL SERVICES,PRIVATE,Revenue,EXTERNAL DAYCARE,895691,130245290,14/03/2016,713.16,SHARE COMMUNITY,SP0000329
WANDSWORTH COUNCIL,ASC,SOCIAL SERVICES,PRIVATE,Revenue,EXTERNAL DAYCARE,895695,130245290,14/03/2016,713.16,SHARE COMMUNITY,SP0000329
WANDSWORTH COUNCIL,ASC,SOCIAL SERVICES,PRIVATE,Revenue,EXTERNAL DAYCARE,895696,130245290,14/03/2016,"1,188.56",SHARE COMMUNITY,SP0000329
WANDSWORTH COUNCIL,ASC,SOCIAL SERVICES,PRIVATE,Revenue,EXTERNAL DAYCARE,895701,130245290,14/03/2016,713.16,SHARE COMMUNITY,SP0000329
WANDSWORTH COUNCIL,ASC,SOCIAL SERVICES,PRIVATE,Revenue,EXTERNAL DAYCARE,895704,130245290,14/03/2016,713.16,SHARE COMMUNITY,SP0000329
WANDSWORTH COUNCIL,ASC,SOCIAL SERVICES,PRIVATE,Revenue,EXTERNAL DAYCARE,895705,130245290,14/03/2016,713.16,SHARE COMMUNITY,SP0000329
WANDSWORTH COUNCIL,ASC,SOCIAL SERVICES,PRIVATE,Revenue,EXTERNAL DAYCARE,895706,130245290,14/03/2016,950.84,SHARE COMMUNITY,SP0000329
WANDSWORTH COUNCIL,ASC,SOCIAL SERVICES,PRIVATE,Revenue,EXTERNAL DAYCARE,895707,130245290,14/03/2016,713.16,SHARE COMMUNITY,SP0000329
WANDSWORTH COUNCIL,ASC,SOCIAL SERVICES,PRIVATE,Revenue,EXTERNAL DAYCARE,897002,130245290,15/03/2016,713.16,SHARE COMMUNITY,SP0000329
WANDSWORTH COUNCIL,ASC,SOCIAL SERVICES,PRIVATE,Revenue,EXTERNAL DAYCARE,897004,130245290,15/03/2016,950.84,SHARE COMMUNITY,SP0000329
WANDSWORTH COUNCIL,ASC,SOCIAL SERVICES,PRIVATE,Revenue,EXTERNAL DAYCARE,897005,130245290,15/03/2016,713.16,SHARE COMMUNITY,SP0000329
WANDSWORTH COUNCIL,ASC,SOCIAL SERVICES,PRIVATE,Revenue,EXTERNAL DAYCARE,897008,130245290,15/03/2016,713.16,SHARE COMMUNITY,SP0000329
WANDSWORTH COUNCIL,ASC,SOCIAL SERVICES,PRIVATE,Revenue,EXTERNAL DAYCARE,897009,130245290,15/03/2016,713.16,SHARE COMMUNITY,SP0000329
WANDSWORTH COUNCIL,ASC,SOCIAL SERVICES,PRIVATE,Revenue,EXTERNAL DAYCARE,897012,130245290,15/03/2016,713.16,SHARE COMMUNITY,SP0000329
WANDSWORTH COUNCIL,ASC,SOCIAL SERVICES,PRIVATE,Revenue,EXTERNAL DAYCARE,897015,130245290,15/03/2016,713.16,SHARE COMMUNITY,SP0000329
WANDSWORTH COUNCIL,ASC,SOCIAL SERVICES,PRIVATE,Revenue,EXTERNAL DAYCARE,897017,130245290,15/03/2016,950.84,SHARE COMMUNITY,SP0000329
WANDSWORTH COUNCIL,ASC,SOCIAL SERVICES,PRIVATE,Revenue,EXTERNAL DAYCARE,902590,130245290,21/03/2016,950.84,SHARE COMMUNITY,SP0000329
WANDSWORTH COUNCIL,ASC,SOCIAL SERVICES,PRIVATE,Revenue,EXTERNAL DAYCARE,902591,130245290,21/03/2016,950.84,SHARE COMMUNITY,SP0000329
WANDSWORTH COUNCIL,ASC,SOCIAL SERVICES,PRIVATE,Revenue,EXTERNAL DAYCARE,902593,130245290,21/03/2016,"1,188.55",SHARE COMMUNITY,SP0000329
WANDSWORTH COUNCIL,ASC,SOCIAL SERVICES,PRIVATE,Revenue,EXTERNAL DAYCARE,902594,130245290,21/03/2016,950.84,SHARE COMMUNITY,SP0000329
WANDSWORTH COUNCIL,ASC,SOCIAL SERVICES,PRIVATE,Revenue,EXTERNAL DAYCARE,892797,130245290,09/03/2016,973.60,DOLPHIN HOMES LTD,SP0000331
WANDSWORTH COUNCIL,ASC,SOCIAL SERVICES,PRIVATE,Revenue,EXTERNAL DAYCARE,892798,130245290,09/03/2016,"2,000.16",NORWOOD SCHOOLS LTD,SP0000332
WANDSWORTH COUNCIL,ASC,SOCIAL SERVICES,PRIVATE,Revenue,EXTERNAL DAYCARE,892794,130245290,09/03/2016,"1,654.08",VOYAGE CARE LTD,SP0000366
WANDSWORTH COUNCIL,ASC,SOCIAL SERVICES,PRIVATE,Revenue,EXTERNAL DAYCARE,895710,130245290,14/03/2016,"1,654.08",VOYAGE CARE LTD,SP0000366
WANDSWORTH COUNCIL,ASC,SOCIAL SERVICES,PRIVATE,Revenue,EXTERNAL DAYCARE,901899,130245290,21/03/2016,"1,057.00",ST DAVIDS CARE IN THE COMMUNITY,SP0000379
WANDSWORTH COUNCIL,ASC,SOCIAL SERVICES,PRIVATE,Revenue,EXTERNAL DAYCARE,901900,130245290,21/03/2016,"1,057.00",ST DAVIDS CARE IN THE COMMUNITY,SP0000379
WANDSWORTH COUNCIL,ASC,SOCIAL SERVICES,PRIVATE,Revenue,EXTERNAL DAYCARE,901901,130245290,21/03/2016,"1,057.00",ST DAVIDS CARE IN THE COMMUNITY,SP0000379
WANDSWORTH COUNCIL,ASC,SOCIAL SERVICES,PRIVATE,Revenue,EXTERNAL DAYCARE,906732,130245290,23/03/2016,760.00,WANDSWORTH BENGALI WELFARE ASSOCIATION,SP0000479
WANDSWORTH COUNCIL,ASC,SOCIAL SERVICES,PRIVATE,Revenue,EXTERNAL DAYCARE,897001,130245290,15/03/2016,"2,013.20",SURREY & BORDERS PARTNERSHIP NHS TRUST,SP0000501
WANDSWORTH COUNCIL,ASC,SOCIAL SERVICES,PRIVATE,Revenue,EXTERNAL DAYCARE,900496,130245290,17/03/2016,848.00,SURREY & BORDERS PARTNERSHIP NHS TRUST,SP0000501
WANDSWORTH COUNCIL,ASC,SOCIAL SERVICES,PRIVATE,Revenue,EXTERNAL DAYCARE,886580,130245290,01/03/2016,640.00,GENERATE OPPORTUNITIES LTD,SP0000503
WANDSWORTH COUNCIL,ASC,SOCIAL SERVICES,PRIVATE,Revenue,EXTERNAL DAYCARE,886587,130245290,01/03/2016,519.40,GENERATE OPPORTUNITIES LTD,SP0000503
WANDSWORTH COUNCIL,ASC,SOCIAL SERVICES,PRIVATE,Revenue,EXTERNAL DAYCARE,886589,130245290,01/03/2016,148.00,GENERATE OPPORTUNITIES LTD,SP0000503
WANDSWORTH COUNCIL,ASC,SOCIAL SERVICES,PRIVATE,Revenue,EXTERNAL DAYCARE,886591,130245290,01/03/2016,800.00,GENERATE OPPORTUNITIES LTD,SP0000503
WANDSWORTH COUNCIL,ASC,SOCIAL SERVICES,PRIVATE,Revenue,EXTERNAL DAYCARE,886609,130245290,01/03/2016,576.00,GENERATE OPPORTUNITIES LTD,SP0000503
WANDSWORTH COUNCIL,ASC,SOCIAL SERVICES,PRIVATE,Revenue,EXTERNAL DAYCARE,886615,130245290,01/03/2016,280.00,GENERATE OPPORTUNITIES LTD,SP0000503
WANDSWORTH COUNCIL,ASC,SOCIAL SERVICES,PRIVATE,Revenue,EXTERNAL DAYCARE,892801,130245290,09/03/2016,440.00,GENERATE OPPORTUNITIES LTD,SP0000503
WANDSWORTH COUNCIL,ASC,SOCIAL SERVICES,PRIVATE,Revenue,EXTERNAL DAYCARE,892815,130245290,09/03/2016,576.00,GENERATE OPPORTUNITIES LTD,SP0000503
WANDSWORTH COUNCIL,ASC,SOCIAL SERVICES,PRIVATE,Revenue,EXTERNAL DAYCARE,892824,130245290,09/03/2016,518.46,GENERATE OPPORTUNITIES LTD,SP0000503
WANDSWORTH COUNCIL,ASC,SOCIAL SERVICES,PRIVATE,Revenue,EXTERNAL DAYCARE,892827,130245290,09/03/2016,"1,100.00",GENERATE OPPORTUNITIES LTD,SP0000503
WANDSWORTH COUNCIL,ASC,SOCIAL SERVICES,PRIVATE,Revenue,EXTERNAL DAYCARE,892846,130245290,09/03/2016,640.00,GENERATE OPPORTUNITIES LTD,SP0000503
WANDSWORTH COUNCIL,ASC,SOCIAL SERVICES,PRIVATE,Revenue,EXTERNAL DAYCARE,892852,130245290,09/03/2016,800.00,GENERATE OPPORTUNITIES LTD,SP0000503
WANDSWORTH COUNCIL,ASC,SOCIAL SERVICES,PRIVATE,Revenue,EXTERNAL DAYCARE,892860,130245290,09/03/2016,280.00,GENERATE OPPORTUNITIES LTD,SP0000503
WANDSWORTH COUNCIL,ASC,SOCIAL SERVICES,PRIVATE,Revenue,EXTERNAL DAYCARE,906829,130245290,23/03/2016,720.00,GENERATE OPPORTUNITIES LTD,SP0000503
WANDSWORTH COUNCIL,ASC,SOCIAL SERVICES,PRIVATE,Revenue,EXTERNAL DAYCARE,906830,130245290,23/03/2016,576.00,GENERATE OPPORTUNITIES LTD,SP0000503
WANDSWORTH COUNCIL,ASC,SOCIAL SERVICES,PRIVATE,Revenue,EXTERNAL DAYCARE,908832,130245290,29/03/2016,576.00,GENERATE OPPORTUNITIES LTD,SP0000503
WANDSWORTH COUNCIL,ASC,SOCIAL SERVICES,PRIVATE,Revenue,EXTERNAL DAYCARE,895711,130245290,14/03/2016,"1,371.44",THE REGARD PARTNERSHIP,SP0000588
WANDSWORTH COUNCIL,ASC,SOCIAL SERVICES,PRIVATE,Revenue,EXTERNAL DAYCARE,904007,130245290,22/03/2016,914.13,ASHFIELD CARE HOMES LTD,SP0000590
WANDSWORTH COUNCIL,ASC,SOCIAL SERVICES,PRIVATE,Revenue,EXTERNAL DAYCARE,892795,130245290,09/03/2016,892.50,DORSET SCOPE,SP0000591
WANDSWORTH COUNCIL,ASC,SOCIAL SERVICES,PRIVATE,Revenue,EXTERNAL DAYCARE,895189,130245290,11/03/2016,528.00,THRIVE,SP0000601
WANDSWORTH COUNCIL,ASC,SOCIAL SERVICES,PRIVATE,Revenue,EXTERNAL DAYCARE,895207,130245290,11/03/2016,528.00,THRIVE,SP0000601
WANDSWORTH COUNCIL,ASC,SOCIAL SERVICES,PRIVATE,Revenue,EXTERNAL DAYCARE,889226,130245290,03/03/2016,602.56,HIGH HURLANDS HOMES,SP0000668
WANDSWORTH COUNCIL,ASC,SOCIAL SERVICES,PRIVATE,Revenue,EXTERNAL DAYCARE,889228,130245290,03/03/2016,974.40,CREST COOPERATIVE LTD,SP0000683
WANDSWORTH COUNCIL,ASC,SOCIAL SERVICES,PRIVATE,Revenue,EXTERNAL DAYCARE,900100,130245290,17/03/2016,"1,153.04",CREST COOPERATIVE LTD,SP0000683
WANDSWORTH COUNCIL,ASC,SOCIAL SERVICES,PRIVATE,Revenue,EXTERNAL DAYCARE,904012,130245290,22/03/2016,"1,215.55",THE MANOR HOUSE,SP0000728
WANDSWORTH COUNCIL,ASC,SOCIAL SERVICES,PRIVATE,Revenue,EXTERNAL DAYCARE,887625,130245290,02/03/2016,"1,258.79",ANTHONY TOBY HOMES TRUST,SP0000755
WANDSWORTH COUNCIL,ASC,SOCIAL SERVICES,PRIVATE,Revenue,EXTERNAL DAYCARE,887626,130245290,02/03/2016,"1,149.33",ANTHONY TOBY HOMES TRUST,SP0000755
WANDSWORTH COUNCIL,ASC,SOCIAL SERVICES,PRIVATE,Revenue,EXTERNAL DAYCARE,887627,130245290,02/03/2016,"1,149.33",ANTHONY TOBY HOMES TRUST,SP0000755
WANDSWORTH COUNCIL,ASC,SOCIAL SERVICES,PRIVATE,Revenue,EXTERNAL DAYCARE,908029,130245290,24/03/2016,"1,258.79",ANTHONY TOBY HOMES TRUST,SP0000755
WANDSWORTH COUNCIL,ASC,SOCIAL SERVICES,PRIVATE,Revenue,EXTERNAL DAYCARE,903930,130245290,22/03/2016,527.36,UNITED RESPONSE,SP0000797
WANDSWORTH COUNCIL,ASC,SOCIAL SERVICES,PRIVATE,Revenue,EXTERNAL DAYCARE,905111,130245290,22/03/2016,540.00,PROSPECTS,SP0000800
WANDSWORTH COUNCIL,ASC,SOCIAL SERVICES,PRIVATE,Revenue,EXTERNAL DAYCARE,900097,130245290,17/03/2016,"1,586.84",STALLCOMBE HOUSE,SP0000843
WANDSWORTH COUNCIL,ASC,SOCIAL SERVICES,PRIVATE,Revenue,EXTERNAL DAYCARE,902587,130245290,21/03/2016,"1,586.84",STALLCOMBE HOUSE,SP0000843
WANDSWORTH COUNCIL,ASC,SOCIAL SERVICES,PRIVATE,Revenue,EXTERNAL DAYCARE,891991,130245290,08/03/2016,738.72,ACT TOO LTD,SP0000855
WANDSWORTH COUNCIL,ASC,SOCIAL SERVICES,PRIVATE,Revenue,EXTERNAL DAYCARE,891994,130245290,08/03/2016,738.72,ACT TOO LTD,SP0000855
WANDSWORTH COUNCIL,ASC,SOCIAL SERVICES,PRIVATE,Revenue,EXTERNAL DAYCARE,891995,130245290,08/03/2016,738.72,ACT TOO LTD,SP0000855
WANDSWORTH COUNCIL,ASC,SOCIAL SERVICES,PRIVATE,Revenue,EXTERNAL DAYCARE,892000,130245290,08/03/2016,923.40,ACT TOO LTD,SP0000855
WANDSWORTH COUNCIL,ASC,SOCIAL SERVICES,PRIVATE,Revenue,EXTERNAL DAYCARE,892003,130245290,08/03/2016,738.72,ACT TOO LTD,SP0000855
WANDSWORTH COUNCIL,ASC,SOCIAL SERVICES,PRIVATE,Revenue,EXTERNAL DAYCARE,892004,130245290,08/03/2016,738.72,ACT TOO LTD,SP0000855
WANDSWORTH COUNCIL,ASC,SOCIAL SERVICES,PRIVATE,Revenue,EXTERNAL DAYCARE,892005,130245290,08/03/2016,738.72,ACT TOO LTD,SP0000855
WANDSWORTH COUNCIL,ASC,SOCIAL SERVICES,PRIVATE,Revenue,EXTERNAL DAYCARE,892009,130245290,08/03/2016,554.04,ACT TOO LTD,SP0000855
WANDSWORTH COUNCIL,ASC,SOCIAL SERVICES,PRIVATE,Revenue,EXTERNAL DAYCARE,892010,130245290,08/03/2016,554.04,ACT TOO LTD,SP0000855
WANDSWORTH COUNCIL,ASC,SOCIAL SERVICES,PRIVATE,Revenue,EXTERNAL DAYCARE,892011,130245290,08/03/2016,554.04,ACT TOO LTD,SP0000855
WANDSWORTH COUNCIL,ASC,SOCIAL SERVICES,PRIVATE,Revenue,EXTERNAL DAYCARE,892013,130245290,08/03/2016,"1,108.08",ACT TOO LTD,SP0000855
WANDSWORTH COUNCIL,ASC,SOCIAL SERVICES,PRIVATE,Revenue,EXTERNAL DAYCARE,892015,130245290,08/03/2016,738.72,ACT TOO LTD,SP0000855
WANDSWORTH COUNCIL,ASC,SOCIAL SERVICES,PRIVATE,Revenue,EXTERNAL DAYCARE,892016,130245290,08/03/2016,738.72,ACT TOO LTD,SP0000855
WANDSWORTH COUNCIL,ASC,SOCIAL SERVICES,PRIVATE,Revenue,EXTERNAL DAYCARE,892017,130245290,08/03/2016,554.04,ACT TOO LTD,SP0000855
WANDSWORTH COUNCIL,ASC,SOCIAL SERVICES,PRIVATE,Revenue,EXTERNAL DAYCARE,892021,130245290,08/03/2016,554.04,ACT TOO LTD,SP0000855
WANDSWORTH COUNCIL,ASC,SOCIAL SERVICES,PRIVATE,Revenue,EXTERNAL DAYCARE,892024,130245290,08/03/2016,554.04,ACT TOO LTD,SP0000855
WANDSWORTH COUNCIL,ASC,SOCIAL SERVICES,PRIVATE,Revenue,EXTERNAL DAYCARE,892025,130245290,08/03/2016,554.04,ACT TOO LTD,SP0000855
WANDSWORTH COUNCIL,ASC,SOCIAL SERVICES,PRIVATE,Revenue,EXTERNAL DAYCARE,892027,130245290,08/03/2016,554.04,ACT TOO LTD,SP0000855
WANDSWORTH COUNCIL,ASC,SOCIAL SERVICES,PRIVATE,Revenue,EXTERNAL DAYCARE,892029,130245290,08/03/2016,554.04,ACT TOO LTD,SP0000855
WANDSWORTH COUNCIL,ASC,SOCIAL SERVICES,PRIVATE,Revenue,EXTERNAL DAYCARE,892030,130245290,08/03/2016,923.40,ACT TOO LTD,SP0000855
WANDSWORTH COUNCIL,ASC,SOCIAL SERVICES,PRIVATE,Revenue,EXTERNAL DAYCARE,892031,130245290,08/03/2016,554.04,ACT TOO LTD,SP0000855
WANDSWORTH COUNCIL,ASC,SOCIAL SERVICES,PRIVATE,Revenue,EXTERNAL DAYCARE,892039,130245290,08/03/2016,923.40,ACT TOO LTD,SP0000855
WANDSWORTH COUNCIL,ASC,SOCIAL SERVICES,PRIVATE,Revenue,EXTERNAL DAYCARE,892044,130245290,08/03/2016,923.40,ACT TOO LTD,SP0000855
WANDSWORTH COUNCIL,ASC,SOCIAL SERVICES,PRIVATE,Revenue,EXTERNAL DAYCARE,892045,130245290,08/03/2016,554.04,ACT TOO LTD,SP0000855
WANDSWORTH COUNCIL,ASC,SOCIAL SERVICES,PRIVATE,Revenue,EXTERNAL DAYCARE,892046,130245290,08/03/2016,"1,108.08",ACT TOO LTD,SP0000855
WANDSWORTH COUNCIL,ASC,SOCIAL SERVICES,PRIVATE,Revenue,EXTERNAL DAYCARE,892047,130245290,08/03/2016,738.72,ACT TOO LTD,SP0000855
WANDSWORTH COUNCIL,ASC,SOCIAL SERVICES,PRIVATE,Revenue,EXTERNAL DAYCARE,892050,130245290,08/03/2016,554.04,ACT TOO LTD,SP0000855
WANDSWORTH COUNCIL,ASC,SOCIAL SERVICES,PRIVATE,Revenue,EXTERNAL DAYCARE,892051,130245290,08/03/2016,554.04,ACT TOO LTD,SP0000855
WANDSWORTH COUNCIL,ASC,SOCIAL SERVICES,PRIVATE,Revenue,EXTERNAL DAYCARE,892055,130245290,08/03/2016,554.04,ACT TOO LTD,SP0000855
WANDSWORTH COUNCIL,ASC,SOCIAL SERVICES,PRIVATE,Revenue,EXTERNAL DAYCARE,892061,130245290,08/03/2016,738.72,ACT TOO LTD,SP0000855
WANDSWORTH COUNCIL,ASC,SOCIAL SERVICES,PRIVATE,Revenue,EXTERNAL DAYCARE,892064,130245290,08/03/2016,554.04,ACT TOO LTD,SP0000855
WANDSWORTH COUNCIL,ASC,SOCIAL SERVICES,PRIVATE,Revenue,EXTERNAL DAYCARE,906741,130245290,23/03/2016,738.72,ACT TOO LTD,SP0000855
WANDSWORTH COUNCIL,ASC,SOCIAL SERVICES,PRIVATE,Revenue,EXTERNAL DAYCARE,906742,130245290,23/03/2016,738.72,ACT TOO LTD,SP0000855
WANDSWORTH COUNCIL,ASC,SOCIAL SERVICES,PRIVATE,Revenue,EXTERNAL DAYCARE,906745,130245290,23/03/2016,738.72,ACT TOO LTD,SP0000855
WANDSWORTH COUNCIL,ASC,SOCIAL SERVICES,PRIVATE,Revenue,EXTERNAL DAYCARE,906749,130245290,23/03/2016,"1,108.08",ACT TOO LTD,SP0000855
WANDSWORTH COUNCIL,ASC,SOCIAL SERVICES,PRIVATE,Revenue,EXTERNAL DAYCARE,906752,130245290,23/03/2016,738.72,ACT TOO LTD,SP0000855
WANDSWORTH COUNCIL,ASC,SOCIAL SERVICES,PRIVATE,Revenue,EXTERNAL DAYCARE,906753,130245290,23/03/2016,738.72,ACT TOO LTD,SP0000855
WANDSWORTH COUNCIL,ASC,SOCIAL SERVICES,PRIVATE,Revenue,EXTERNAL DAYCARE,906757,130245290,23/03/2016,923.40,ACT TOO LTD,SP0000855
WANDSWORTH COUNCIL,ASC,SOCIAL SERVICES,PRIVATE,Revenue,EXTERNAL DAYCARE,906759,130245290,23/03/2016,738.72,ACT TOO LTD,SP0000855
WANDSWORTH COUNCIL,ASC,SOCIAL SERVICES,PRIVATE,Revenue,EXTERNAL DAYCARE,906762,130245290,23/03/2016,554.04,ACT TOO LTD,SP0000855
WANDSWORTH COUNCIL,ASC,SOCIAL SERVICES,PRIVATE,Revenue,EXTERNAL DAYCARE,906763,130245290,23/03/2016,554.04,ACT TOO LTD,SP0000855
WANDSWORTH COUNCIL,ASC,SOCIAL SERVICES,PRIVATE,Revenue,EXTERNAL DAYCARE,906764,130245290,23/03/2016,554.04,ACT TOO LTD,SP0000855
WANDSWORTH COUNCIL,ASC,SOCIAL SERVICES,PRIVATE,Revenue,EXTERNAL DAYCARE,906767,130245290,23/03/2016,738.72,ACT TOO LTD,SP0000855
WANDSWORTH COUNCIL,ASC,SOCIAL SERVICES,PRIVATE,Revenue,EXTERNAL DAYCARE,906768,130245290,23/03/2016,738.72,ACT TOO LTD,SP0000855
WANDSWORTH COUNCIL,ASC,SOCIAL SERVICES,PRIVATE,Revenue,EXTERNAL DAYCARE,906769,130245290,23/03/2016,554.04,ACT TOO LTD,SP0000855
WANDSWORTH COUNCIL,ASC,SOCIAL SERVICES,PRIVATE,Revenue,EXTERNAL DAYCARE,906772,130245290,23/03/2016,554.04,ACT TOO LTD,SP0000855
WANDSWORTH COUNCIL,ASC,SOCIAL SERVICES,PRIVATE,Revenue,EXTERNAL DAYCARE,906775,130245290,23/03/2016,554.04,ACT TOO LTD,SP0000855
WANDSWORTH COUNCIL,ASC,SOCIAL SERVICES,PRIVATE,Revenue,EXTERNAL DAYCARE,906776,130245290,23/03/2016,554.04,ACT TOO LTD,SP0000855
WANDSWORTH COUNCIL,ASC,SOCIAL SERVICES,PRIVATE,Revenue,EXTERNAL DAYCARE,906777,130245290,23/03/2016,554.04,ACT TOO LTD,SP0000855
WANDSWORTH COUNCIL,ASC,SOCIAL SERVICES,PRIVATE,Revenue,EXTERNAL DAYCARE,906778,130245290,23/03/2016,554.04,ACT TOO LTD,SP0000855
WANDSWORTH COUNCIL,ASC,SOCIAL SERVICES,PRIVATE,Revenue,EXTERNAL DAYCARE,906779,130245290,23/03/2016,923.40,ACT TOO LTD,SP0000855
WANDSWORTH COUNCIL,ASC,SOCIAL SERVICES,PRIVATE,Revenue,EXTERNAL DAYCARE,906780,130245290,23/03/2016,554.04,ACT TOO LTD,SP0000855
WANDSWORTH COUNCIL,ASC,SOCIAL SERVICES,PRIVATE,Revenue,EXTERNAL DAYCARE,906789,130245290,23/03/2016,923.40,ACT TOO LTD,SP0000855
WANDSWORTH COUNCIL,ASC,SOCIAL SERVICES,PRIVATE,Revenue,EXTERNAL DAYCARE,906794,130245290,23/03/2016,923.40,ACT TOO LTD,SP0000855
WANDSWORTH COUNCIL,ASC,SOCIAL SERVICES,PRIVATE,Revenue,EXTERNAL DAYCARE,906795,130245290,23/03/2016,554.04,ACT TOO LTD,SP0000855
WANDSWORTH COUNCIL,ASC,SOCIAL SERVICES,PRIVATE,Revenue,EXTERNAL DAYCARE,906796,130245290,23/03/2016,"1,108.08",ACT TOO LTD,SP0000855
WANDSWORTH COUNCIL,ASC,SOCIAL SERVICES,PRIVATE,Revenue,EXTERNAL DAYCARE,906797,130245290,23/03/2016,738.72,ACT TOO LTD,SP0000855
WANDSWORTH COUNCIL,ASC,SOCIAL SERVICES,PRIVATE,Revenue,EXTERNAL DAYCARE,906800,130245290,23/03/2016,554.04,ACT TOO LTD,SP0000855
WANDSWORTH COUNCIL,ASC,SOCIAL SERVICES,PRIVATE,Revenue,EXTERNAL DAYCARE,906801,130245290,23/03/2016,554.04,ACT TOO LTD,SP0000855
WANDSWORTH COUNCIL,ASC,SOCIAL SERVICES,PRIVATE,Revenue,EXTERNAL DAYCARE,906807,130245290,23/03/2016,554.04,ACT TOO LTD,SP0000855
WANDSWORTH COUNCIL,ASC,SOCIAL SERVICES,PRIVATE,Revenue,EXTERNAL DAYCARE,906811,130245290,23/03/2016,738.72,ACT TOO LTD,SP0000855
WANDSWORTH COUNCIL,ASC,SOCIAL SERVICES,PRIVATE,Revenue,EXTERNAL DAYCARE,906814,130245290,23/03/2016,554.04,ACT TOO LTD,SP0000855
WANDSWORTH COUNCIL,ASC,SOCIAL SERVICES,PRIVATE,Revenue,EXTERNAL DAYCARE,894791,130245290,11/03/2016,"1,416.24",WINSLOW COURT,SP0000886
WANDSWORTH COUNCIL,ASC,SOCIAL SERVICES,PRIVATE,Revenue,EXTERNAL DAYCARE,894792,130245290,11/03/2016,"1,416.24",WINSLOW COURT,SP0000886
WANDSWORTH COUNCIL,ASC,SOCIAL SERVICES,PRIVATE,Revenue,EXTERNAL DAYCARE,900098,130245290,17/03/2016,"1,416.24",WINSLOW COURT,SP0000886
WANDSWORTH COUNCIL,ASC,SOCIAL SERVICES,PRIVATE,Revenue,EXTERNAL DAYCARE,900099,130245290,17/03/2016,"1,416.24",WINSLOW COURT,SP0000886
WANDSWORTH COUNCIL,ASC,SOCIAL SERVICES,PRIVATE,Revenue,EXTERNAL DAYCARE,886621,130245290,01/03/2016,750.56,ORIONE CARE,SP0000961
WANDSWORTH COUNCIL,ASC,SOCIAL SERVICES,PRIVATE,Revenue,EXTERNAL DAYCARE,886623,130245290,01/03/2016,562.92,ORIONE CARE,SP0000961
WANDSWORTH COUNCIL,ASC,SOCIAL SERVICES,PRIVATE,Revenue,EXTERNAL DAYCARE,900497,130245290,17/03/2016,750.56,ORIONE CARE,SP0000961
WANDSWORTH COUNCIL,ASC,SOCIAL SERVICES,PRIVATE,Revenue,EXTERNAL DAYCARE,900499,130245290,17/03/2016,609.83,ORIONE CARE,SP0000961
WANDSWORTH COUNCIL,ASC,SOCIAL SERVICES,PRIVATE,Revenue,EXTERNAL DAYCARE,897835,130245290,16/03/2016,"1,138.40",RIDGEWOOD CARE SERVICES LTD,SP0000969
WANDSWORTH COUNCIL,ASC,SOCIAL SERVICES,PRIVATE,Revenue,EXTERNAL DAYCARE,899996,130245290,17/03/2016,"1,176.00",RIDGEWOOD CARE SERVICES LTD,SP0000969
WANDSWORTH COUNCIL,ASC,SOCIAL SERVICES,PRIVATE,Revenue,EXTERNAL DAYCARE,904008,130245290,22/03/2016,969.80,SCOPE,SP0000991
WANDSWORTH COUNCIL,ASC,SOCIAL SERVICES,PRIVATE,Revenue,EXTERNAL DAYCARE,904009,130245290,22/03/2016,596.80,SCOPE,SP0000991
WANDSWORTH COUNCIL,ASC,SOCIAL SERVICES,PRIVATE,Revenue,EXTERNAL DAYCARE,886620,130245290,01/03/2016,880.00,THE HOME FARM TRUST LTD,SP0001048
WANDSWORTH COUNCIL,ASC,SOCIAL SERVICES,PRIVATE,Revenue,EXTERNAL DAYCARE,892800,130245290,09/03/2016,990.00,THE HOME FARM TRUST LTD,SP0001048
WANDSWORTH COUNCIL,ASC,SOCIAL SERVICES,PRIVATE,Revenue,EXTERNAL DAYCARE,900032,130245290,17/03/2016,"1,245.27",SUSSEX HEALTH CARE,SP0001115
WANDSWORTH COUNCIL,ASC,SOCIAL SERVICES,PRIVATE,Revenue,EXTERNAL DAYCARE,903998,130245290,22/03/2016,"1,551.24",LONDON CARE PARTNERSHIP LTD,SP0001138
WANDSWORTH COUNCIL,ASC,SOCIAL SERVICES,PRIVATE,Revenue,EXTERNAL DAYCARE,892799,130245290,09/03/2016,756.48,HARROW MENCAP,SP0001347
WANDSWORTH COUNCIL,ASC,SOCIAL SERVICES,PRIVATE,Revenue,EXTERNAL DAYCARE,895629,130245290,14/03/2016,"1,126.08",WORKSHOP 305,SP0001403
WANDSWORTH COUNCIL,ASC,SOCIAL SERVICES,PRIVATE,Revenue,EXTERNAL DAYCARE,895636,130245290,14/03/2016,962.88,WORKSHOP 305,SP0001403
WANDSWORTH COUNCIL,ASC,SOCIAL SERVICES,PRIVATE,Revenue,EXTERNAL DAYCARE,895640,130245290,14/03/2016,722.16,WORKSHOP 305,SP0001403
WANDSWORTH COUNCIL,ASC,SOCIAL SERVICES,PRIVATE,Revenue,EXTERNAL DAYCARE,895647,130245290,14/03/2016,844.56,WORKSHOP 305,SP0001403
WANDSWORTH COUNCIL,ASC,SOCIAL SERVICES,PRIVATE,Revenue,EXTERNAL DAYCARE,895648,130245290,14/03/2016,722.16,WORKSHOP 305,SP0001403
WANDSWORTH COUNCIL,ASC,SOCIAL SERVICES,PRIVATE,Revenue,EXTERNAL DAYCARE,895651,130245290,14/03/2016,722.16,WORKSHOP 305,SP0001403
WANDSWORTH COUNCIL,ASC,SOCIAL SERVICES,PRIVATE,Revenue,EXTERNAL DAYCARE,895656,130245290,14/03/2016,722.16,WORKSHOP 305,SP0001403
WANDSWORTH COUNCIL,ASC,SOCIAL SERVICES,PRIVATE,Revenue,EXTERNAL DAYCARE,895668,130245290,14/03/2016,962.88,WORKSHOP 305,SP0001403
WANDSWORTH COUNCIL,ASC,SOCIAL SERVICES,PRIVATE,Revenue,EXTERNAL DAYCARE,894417,130245290,10/03/2016,520.00,THE CAMDEN SOCIETY,SP0001674
WANDSWORTH COUNCIL,ASC,SOCIAL SERVICES,PRIVATE,Revenue,EXTERNAL DAYCARE,894418,130245290,10/03/2016,520.00,THE CAMDEN SOCIETY,SP0001674
WANDSWORTH COUNCIL,ASC,SOCIAL SERVICES,PRIVATE,Revenue,EXTERNAL DAYCARE,894786,130245290,11/03/2016,520.00,THE CAMDEN SOCIETY,SP0001674
WANDSWORTH COUNCIL,ASC,SOCIAL SERVICES,PRIVATE,Revenue,EXTERNAL DAYCARE,894787,130245290,11/03/2016,520.00,THE CAMDEN SOCIETY,SP0001674
WANDSWORTH COUNCIL,ASC,SOCIAL SERVICES,PRIVATE,Revenue,EXTERNAL DAYCARE,894788,130245290,11/03/2016,520.00,THE CAMDEN SOCIETY,SP0001674
WANDSWORTH COUNCIL,ASC,SOCIAL SERVICES,PRIVATE,Revenue,EXTERNAL DAYCARE,894789,130245290,11/03/2016,520.00,THE CAMDEN SOCIETY,SP0001674
WANDSWORTH COUNCIL,ASC,SOCIAL SERVICES,PRIVATE,Revenue,EXTERNAL DAYCARE,894790,130245290,11/03/2016,520.00,THE CAMDEN SOCIETY,SP0001674
WANDSWORTH COUNCIL,ASC,SOCIAL SERVICES,PRIVATE,Revenue,EXTERNAL DAYCARE,886624,130245290,01/03/2016,726.19,LUCKETTS FARM LIMNITED T/A THE JOHN GRAH,SP0009847
WANDSWORTH COUNCIL,ASC,SOCIAL SERVICES,PRIVATE,Revenue,EXTERNAL DAYCARE,900501,130245290,17/03/2016,786.71,LUCKETTS FARM LIMNITED T/A THE JOHN GRAH,SP0009847
WANDSWORTH COUNCIL,ASC,SOCIAL SERVICES,PRIVATE,Revenue,EXTERNAL HOMECARE,889162,130245300,03/03/2016,"1,093.62",RAINBOW MEDICAL SERVICES,SP0000037
WANDSWORTH COUNCIL,ASC,SOCIAL SERVICES,PRIVATE,Revenue,EXTERNAL HOMECARE,889163,130245300,03/03/2016,891.31,RAINBOW MEDICAL SERVICES,SP0000037
WANDSWORTH COUNCIL,ASC,SOCIAL SERVICES,PRIVATE,Revenue,EXTERNAL HOMECARE,889164,130245300,03/03/2016,"2,150.12",RAINBOW MEDICAL SERVICES,SP0000037
WANDSWORTH COUNCIL,ASC,SOCIAL SERVICES,PRIVATE,Revenue,EXTERNAL HOMECARE,894776,130245300,11/03/2016,"2,030.38",RAINBOW MEDICAL SERVICES,SP0000037
WANDSWORTH COUNCIL,ASC,SOCIAL SERVICES,PRIVATE,Revenue,EXTERNAL HOMECARE,894781,130245300,11/03/2016,944.00,RAINBOW MEDICAL SERVICES,SP0000037
WANDSWORTH COUNCIL,ASC,SOCIAL SERVICES,PRIVATE,Revenue,EXTERNAL HOMECARE,905086,130245300,22/03/2016,757.13,ASIAN ELDERS SUPPORT SCHEME,SP0000190
WANDSWORTH COUNCIL,ASC,SOCIAL SERVICES,PRIVATE,Revenue,EXTERNAL HOMECARE,902462,130245300,21/03/2016,566.06,MUSHKIL AASAAN LTD,SP0000978
WANDSWORTH COUNCIL,ASC,SOCIAL SERVICES,PRIVATE,Revenue,EXTERNAL HOMECARE,902524,130245300,21/03/2016,796.64,MUSHKIL AASAAN LTD,SP0000978
WANDSWORTH COUNCIL,ASC,SOCIAL SERVICES,PRIVATE,Revenue,EXTERNAL HOMECARE,892773,130245300,09/03/2016,601.95,CARE OUTLOOK LTD,SP0001545
WANDSWORTH COUNCIL,ASC,SOCIAL SERVICES,PRIVATE,Revenue,EXTERNAL HOMECARE,897831,130245300,16/03/2016,557.00,CARE OUTLOOK LTD,SP0001545
WANDSWORTH COUNCIL,ASC,SOCIAL SERVICES,PRIVATE,Revenue,EXTERNAL HOMECARE,889193,130245300,03/03/2016,"3,232.00",CHRISTIES CARE LTD,SP0005440
WANDSWORTH COUNCIL,ASC,SOCIAL SERVICES,PRIVATE,Revenue,EXTERNAL HOMECARE,902273,130245300,21/03/2016,616.53,LONDON HOMECARE LTD,SP0009029
WANDSWORTH COUNCIL,ASC,SOCIAL SERVICES,PRIVATE,Revenue,EXTERNAL HOMECARE,902275,130245300,21/03/2016,"1,778.88",LONDON HOMECARE LTD,SP0009029
WANDSWORTH COUNCIL,ASC,SOCIAL SERVICES,PRIVATE,Revenue,EXTERNAL HOMECARE,902304,130245300,21/03/2016,759.90,LONDON HOMECARE LTD,SP0009029
WANDSWORTH COUNCIL,ASC,SOCIAL SERVICES,PRIVATE,Revenue,EXTERNAL HOMECARE,902358,130245300,21/03/2016,661.69,LONDON HOMECARE LTD,SP0009029
WANDSWORTH COUNCIL,ASC,SOCIAL SERVICES,PRIVATE,Revenue,EXTERNAL HOMECARE,902400,130245300,21/03/2016,761.10,LONDON HOMECARE LTD,SP0009029
WANDSWORTH COUNCIL,ASC,SOCIAL SERVICES,PRIVATE,Revenue,EXTERNAL NURSING CARE,889157,130245310,03/03/2016,"6,111.24",WINGHAM COURT,SP0000025
WANDSWORTH COUNCIL,ASC,SOCIAL SERVICES,PRIVATE,Revenue,EXTERNAL NURSING CARE,908726,130245310,29/03/2016,"6,111.24",WINGHAM COURT,SP0000025
WANDSWORTH COUNCIL,ASC,SOCIAL SERVICES,PRIVATE,Revenue,EXTERNAL NURSING CARE,900050,130245310,17/03/2016,"3,481.53",ROSEDENE NURSING HOME,SP0000316
WANDSWORTH COUNCIL,ASC,SOCIAL SERVICES,PRIVATE,Revenue,EXTERNAL NURSING CARE,892585,130245310,09/03/2016,"4,181.88",VOYAGE CARE LTD,SP0000366
WANDSWORTH COUNCIL,ASC,SOCIAL SERVICES,PRIVATE,Revenue,EXTERNAL NURSING CARE,892587,130245310,09/03/2016,"5,325.08",VOYAGE CARE LTD,SP0000366
WANDSWORTH COUNCIL,ASC,SOCIAL SERVICES,PRIVATE,Revenue,EXTERNAL NURSING CARE,894320,130245310,10/03/2016,"4,181.88",VOYAGE CARE LTD,SP0000366
WANDSWORTH COUNCIL,ASC,SOCIAL SERVICES,PRIVATE,Revenue,EXTERNAL NURSING CARE,894322,130245310,10/03/2016,"5,325.08",VOYAGE CARE LTD,SP0000366
WANDSWORTH COUNCIL,ASC,SOCIAL SERVICES,PRIVATE,Revenue,EXTERNAL NURSING CARE,900081,130245310,17/03/2016,"4,181.88",VOYAGE CARE LTD,SP0000366
WANDSWORTH COUNCIL,ASC,SOCIAL SERVICES,PRIVATE,Revenue,EXTERNAL NURSING CARE,900082,130245310,17/03/2016,"4,181.88",VOYAGE CARE LTD,SP0000366
WANDSWORTH COUNCIL,ASC,SOCIAL SERVICES,PRIVATE,Revenue,EXTERNAL NURSING CARE,900083,130245310,17/03/2016,"7,889.81",VOYAGE CARE LTD,SP0000366
WANDSWORTH COUNCIL,ASC,SOCIAL SERVICES,PRIVATE,Revenue,EXTERNAL NURSING CARE,897782,130245310,16/03/2016,"9,108.12",CHOICE SUPPORT,SP0000398
WANDSWORTH COUNCIL,ASC,SOCIAL SERVICES,PRIVATE,Revenue,EXTERNAL NURSING CARE,897783,130245310,16/03/2016,"9,108.12",CHOICE SUPPORT,SP0000398
WANDSWORTH COUNCIL,ASC,SOCIAL SERVICES,PRIVATE,Revenue,EXTERNAL NURSING CARE,897784,130245310,16/03/2016,"9,108.12",CHOICE SUPPORT,SP0000398
WANDSWORTH COUNCIL,ASC,SOCIAL SERVICES,PRIVATE,Revenue,EXTERNAL NURSING CARE,897785,130245310,16/03/2016,"9,108.12",CHOICE SUPPORT,SP0000398
WANDSWORTH COUNCIL,ASC,SOCIAL SERVICES,PRIVATE,Revenue,EXTERNAL NURSING CARE,892596,130245310,09/03/2016,"8,974.81",THE COMMUNITY CARE COMPANY UK LTD,SP0000576
WANDSWORTH COUNCIL,ASC,SOCIAL SERVICES,PRIVATE,Revenue,EXTERNAL NURSING CARE,898460,130245310,16/03/2016,"3,058.12",BUPA CARE SERVICES BACS RECEIPTS,SP0000644
WANDSWORTH COUNCIL,ASC,SOCIAL SERVICES,PRIVATE,Revenue,EXTERNAL NURSING CARE,898484,130245310,16/03/2016,"3,058.12",BUPA CARE SERVICES BACS RECEIPTS,SP0000644
WANDSWORTH COUNCIL,ASC,SOCIAL SERVICES,PRIVATE,Revenue,EXTERNAL NURSING CARE,889145,130245310,03/03/2016,"5,382.08",HIGH HURLANDS HOMES,SP0000668
WANDSWORTH COUNCIL,ASC,SOCIAL SERVICES,PRIVATE,Revenue,EXTERNAL NURSING CARE,898409,130245310,16/03/2016,"2,857.72",TRINITY COURT NURSING HOME,SP0001001
WANDSWORTH COUNCIL,ASC,SOCIAL SERVICES,PRIVATE,Revenue,EXTERNAL NURSING CARE,897800,130245310,16/03/2016,"7,909.42",SUSSEX HEALTH CARE,SP0001115
WANDSWORTH COUNCIL,ASC,SOCIAL SERVICES,PRIVATE,Revenue,EXTERNAL NURSING CARE,900033,130245310,17/03/2016,"8,455.11",SUSSEX HEALTH CARE,SP0001115
WANDSWORTH COUNCIL,ASC,SOCIAL SERVICES,PRIVATE,Revenue,EXTERNAL RESIDENTIAL CARE,887605,130245330,02/03/2016,"5,674.36",CMG HOMES LTD,SP0000075
WANDSWORTH COUNCIL,ASC,SOCIAL SERVICES,PRIVATE,Revenue,EXTERNAL RESIDENTIAL CARE,887606,130245330,02/03/2016,"3,940.80",CMG HOMES LTD,SP0000075
WANDSWORTH COUNCIL,ASC,SOCIAL SERVICES,PRIVATE,Revenue,EXTERNAL RESIDENTIAL CARE,887607,130245330,02/03/2016,"6,052.16",CMG HOMES LTD,SP0000075
WANDSWORTH COUNCIL,ASC,SOCIAL SERVICES,PRIVATE,Revenue,EXTERNAL RESIDENTIAL CARE,887608,130245330,02/03/2016,"5,594.64",CMG HOMES LTD,SP0000075
WANDSWORTH COUNCIL,ASC,SOCIAL SERVICES,PRIVATE,Revenue,EXTERNAL RESIDENTIAL CARE,887609,130245330,02/03/2016,"4,404.80",CMG HOMES LTD,SP0000075
WANDSWORTH COUNCIL,ASC,SOCIAL SERVICES,PRIVATE,Revenue,EXTERNAL RESIDENTIAL CARE,887610,130245330,02/03/2016,"8,121.44",CMG HOMES LTD,SP0000075
WANDSWORTH COUNCIL,ASC,SOCIAL SERVICES,PRIVATE,Revenue,EXTERNAL RESIDENTIAL CARE,887611,130245330,02/03/2016,"4,902.84",CMG HOMES LTD,SP0000075
WANDSWORTH COUNCIL,ASC,SOCIAL SERVICES,PRIVATE,Revenue,EXTERNAL RESIDENTIAL CARE,887612,130245330,02/03/2016,"4,680.84",CMG HOMES LTD,SP0000075
WANDSWORTH COUNCIL,ASC,SOCIAL SERVICES,PRIVATE,Revenue,EXTERNAL RESIDENTIAL CARE,887613,130245330,02/03/2016,"7,177.08",CMG HOMES LTD,SP0000075
WANDSWORTH COUNCIL,ASC,SOCIAL SERVICES,PRIVATE,Revenue,EXTERNAL RESIDENTIAL CARE,887614,130245330,02/03/2016,"4,448.72",CMG HOMES LTD,SP0000075
WANDSWORTH COUNCIL,ASC,SOCIAL SERVICES,PRIVATE,Revenue,EXTERNAL RESIDENTIAL CARE,903996,130245330,22/03/2016,"6,623.15",NATIONAL SOCIETY FOR EPILEPSY,SP0000120
WANDSWORTH COUNCIL,ASC,SOCIAL SERVICES,PRIVATE,Revenue,EXTERNAL RESIDENTIAL CARE,898571,130245330,16/03/2016,"2,481.72",SANCTUARY CARE LTD,SP0000121
WANDSWORTH COUNCIL,ASC,SOCIAL SERVICES,PRIVATE,Revenue,EXTERNAL RESIDENTIAL CARE,896987,130245330,15/03/2016,"4,732.47",IN CHORUS LTD,SP0000129
WANDSWORTH COUNCIL,ASC,SOCIAL SERVICES,PRIVATE,Revenue,EXTERNAL RESIDENTIAL CARE,887062,130245330,01/03/2016,"3,718.63",CENTRUST CARE HOMES LTD,SP0000141
WANDSWORTH COUNCIL,ASC,SOCIAL SERVICES,PRIVATE,Revenue,EXTERNAL RESIDENTIAL CARE,903911,130245330,22/03/2016,"4,835.91",FRANCES TAYLOR FOUNDATION,SP0000142
WANDSWORTH COUNCIL,ASC,SOCIAL SERVICES,PRIVATE,Revenue,EXTERNAL RESIDENTIAL CARE,903912,130245330,22/03/2016,"4,343.46",FRANCES TAYLOR FOUNDATION,SP0000142
WANDSWORTH COUNCIL,ASC,SOCIAL SERVICES,PRIVATE,Revenue,EXTERNAL RESIDENTIAL CARE,903913,130245330,22/03/2016,"4,191.15",FRANCES TAYLOR FOUNDATION,SP0000142
WANDSWORTH COUNCIL,ASC,SOCIAL SERVICES,PRIVATE,Revenue,EXTERNAL RESIDENTIAL CARE,886526,130245330,01/03/2016,"5,555.20",THE CHESTNUTS,SP0000182
WANDSWORTH COUNCIL,ASC,SOCIAL SERVICES,PRIVATE,Revenue,EXTERNAL RESIDENTIAL CARE,892607,130245330,09/03/2016,"23,983.36",THE CHESTNUTS,SP0000182
WANDSWORTH COUNCIL,ASC,SOCIAL SERVICES,PRIVATE,Revenue,EXTERNAL RESIDENTIAL CARE,903997,130245330,22/03/2016,"11,980.50",TRELOAR SCHOOL,SP0000200
WANDSWORTH COUNCIL,ASC,SOCIAL SERVICES,PRIVATE,Revenue,EXTERNAL RESIDENTIAL CARE,887088,130245330,01/03/2016,"1,647.40",ORCHARD VALE TRUST,SP0000214
WANDSWORTH COUNCIL,ASC,SOCIAL SERVICES,PRIVATE,Revenue,EXTERNAL RESIDENTIAL CARE,894317,130245330,10/03/2016,"3,678.85",ST MARYS RESIDENTIAL HOME,SP0000215
WANDSWORTH COUNCIL,ASC,SOCIAL SERVICES,PRIVATE,Revenue,EXTERNAL RESIDENTIAL CARE,897856,130245330,16/03/2016,"4,885.71",ST MARYS RESIDENTIAL HOME,SP0000215
WANDSWORTH COUNCIL,ASC,SOCIAL SERVICES,PRIVATE,Revenue,EXTERNAL RESIDENTIAL CARE,897937,130245330,16/03/2016,"3,956.18",ST MARYS RESIDENTIAL HOME,SP0000215
WANDSWORTH COUNCIL,ASC,SOCIAL SERVICES,PRIVATE,Revenue,EXTERNAL RESIDENTIAL CARE,897938,130245330,16/03/2016,"3,898.74",ST MARYS RESIDENTIAL HOME,SP0000215
WANDSWORTH COUNCIL,ASC,SOCIAL SERVICES,PRIVATE,Revenue,EXTERNAL RESIDENTIAL CARE,897939,130245330,16/03/2016,"3,569.83",ST MARYS RESIDENTIAL HOME,SP0000215
WANDSWORTH COUNCIL,ASC,SOCIAL SERVICES,PRIVATE,Revenue,EXTERNAL RESIDENTIAL CARE,897940,130245330,16/03/2016,"3,711.63",ST MARYS RESIDENTIAL HOME,SP0000215
WANDSWORTH COUNCIL,ASC,SOCIAL SERVICES,PRIVATE,Revenue,EXTERNAL RESIDENTIAL CARE,897941,130245330,16/03/2016,"3,046.94",ST MARYS RESIDENTIAL HOME,SP0000215
WANDSWORTH COUNCIL,ASC,SOCIAL SERVICES,PRIVATE,Revenue,EXTERNAL RESIDENTIAL CARE,897942,130245330,16/03/2016,"5,040.24",ST MARYS RESIDENTIAL HOME,SP0000215
WANDSWORTH COUNCIL,ASC,SOCIAL SERVICES,PRIVATE,Revenue,EXTERNAL RESIDENTIAL CARE,897943,130245330,16/03/2016,"3,619.79",ST MARYS RESIDENTIAL HOME,SP0000215
WANDSWORTH COUNCIL,ASC,SOCIAL SERVICES,PRIVATE,Revenue,EXTERNAL RESIDENTIAL CARE,897944,130245330,16/03/2016,"3,582.71",ST MARYS RESIDENTIAL HOME,SP0000215
WANDSWORTH COUNCIL,ASC,SOCIAL SERVICES,PRIVATE,Revenue,EXTERNAL RESIDENTIAL CARE,897945,130245330,16/03/2016,"2,313.48",ST MARYS RESIDENTIAL HOME,SP0000215
WANDSWORTH COUNCIL,ASC,SOCIAL SERVICES,PRIVATE,Revenue,EXTERNAL RESIDENTIAL CARE,897946,130245330,16/03/2016,"3,269.48",ST MARYS RESIDENTIAL HOME,SP0000215
WANDSWORTH COUNCIL,ASC,SOCIAL SERVICES,PRIVATE,Revenue,EXTERNAL RESIDENTIAL CARE,897947,130245330,16/03/2016,"3,801.48",ST MARYS RESIDENTIAL HOME,SP0000215
WANDSWORTH COUNCIL,ASC,SOCIAL SERVICES,PRIVATE,Revenue,EXTERNAL RESIDENTIAL CARE,897948,130245330,16/03/2016,"3,542.86",ST MARYS RESIDENTIAL HOME,SP0000215
WANDSWORTH COUNCIL,ASC,SOCIAL SERVICES,PRIVATE,Revenue,EXTERNAL RESIDENTIAL CARE,897949,130245330,16/03/2016,"3,097.12",ST MARYS RESIDENTIAL HOME,SP0000215
WANDSWORTH COUNCIL,ASC,SOCIAL SERVICES,PRIVATE,Revenue,EXTERNAL RESIDENTIAL CARE,897950,130245330,16/03/2016,"3,539.72",ST MARYS RESIDENTIAL HOME,SP0000215
WANDSWORTH COUNCIL,ASC,SOCIAL SERVICES,PRIVATE,Revenue,EXTERNAL RESIDENTIAL CARE,895110,130245330,11/03/2016,"6,440.76",NAS SERVICES LIMITED,SP0000217
WANDSWORTH COUNCIL,ASC,SOCIAL SERVICES,PRIVATE,Revenue,EXTERNAL RESIDENTIAL CARE,895111,130245330,11/03/2016,"2,248.36",NAS SERVICES LIMITED,SP0000217
WANDSWORTH COUNCIL,ASC,SOCIAL SERVICES,PRIVATE,Revenue,EXTERNAL RESIDENTIAL CARE,895130,130245330,14/03/2016,"5,436.36",NAS SERVICES LIMITED,SP0000217
WANDSWORTH COUNCIL,ASC,SOCIAL SERVICES,PRIVATE,Revenue,EXTERNAL RESIDENTIAL CARE,900418,130245330,17/03/2016,"3,724.72",HAYDON PARK LODGE LTD,SP0000231
WANDSWORTH COUNCIL,ASC,SOCIAL SERVICES,PRIVATE,Revenue,EXTERNAL RESIDENTIAL CARE,902243,130245330,21/03/2016,"7,708.95",THE DISABILITIES TRUST,SP0000239
WANDSWORTH COUNCIL,ASC,SOCIAL SERVICES,PRIVATE,Revenue,EXTERNAL RESIDENTIAL CARE,900416,130245330,17/03/2016,"4,689.36",CAMERON LODGE LIMITED,SP0000271
WANDSWORTH COUNCIL,ASC,SOCIAL SERVICES,PRIVATE,Revenue,EXTERNAL RESIDENTIAL CARE,907143,130245330,24/03/2016,"8,046.53",BROOKDALE CARE,SP0000282
WANDSWORTH COUNCIL,ASC,SOCIAL SERVICES,PRIVATE,Revenue,EXTERNAL RESIDENTIAL CARE,892623,130245330,11/03/2016,"2,950.92",CRAEGMOOR FACILITIES CO LTD,SP0000306
WANDSWORTH COUNCIL,ASC,SOCIAL SERVICES,PRIVATE,Revenue,EXTERNAL RESIDENTIAL CARE,887050,130245330,01/03/2016,"6,206.86",RESIDENTIAL COMMUNITY CARE,SP0000315
WANDSWORTH COUNCIL,ASC,SOCIAL SERVICES,PRIVATE,Revenue,EXTERNAL RESIDENTIAL CARE,887051,130245330,01/03/2016,"6,263.46",RESIDENTIAL COMMUNITY CARE,SP0000315
WANDSWORTH COUNCIL,ASC,SOCIAL SERVICES,PRIVATE,Revenue,EXTERNAL RESIDENTIAL CARE,903922,130245330,22/03/2016,"6,206.87",RESIDENTIAL COMMUNITY CARE,SP0000315
WANDSWORTH COUNCIL,ASC,SOCIAL SERVICES,PRIVATE,Revenue,EXTERNAL RESIDENTIAL CARE,903923,130245330,22/03/2016,"6,263.46",RESIDENTIAL COMMUNITY CARE,SP0000315
WANDSWORTH COUNCIL,ASC,SOCIAL SERVICES,PRIVATE,Revenue,EXTERNAL RESIDENTIAL CARE,907991,130245330,24/03/2016,"5,806.42",RESIDENTIAL COMMUNITY CARE,SP0000315
WANDSWORTH COUNCIL,ASC,SOCIAL SERVICES,PRIVATE,Revenue,EXTERNAL RESIDENTIAL CARE,907992,130245330,24/03/2016,"5,859.36",RESIDENTIAL COMMUNITY CARE,SP0000315
WANDSWORTH COUNCIL,ASC,SOCIAL SERVICES,PRIVATE,Revenue,EXTERNAL RESIDENTIAL CARE,892592,130245330,09/03/2016,"4,946.29",DOLPHIN HOMES LTD,SP0000331
WANDSWORTH COUNCIL,ASC,SOCIAL SERVICES,PRIVATE,Revenue,EXTERNAL RESIDENTIAL CARE,892593,130245330,09/03/2016,"3,893.95",DOLPHIN HOMES LTD,SP0000331
WANDSWORTH COUNCIL,ASC,SOCIAL SERVICES,PRIVATE,Revenue,EXTERNAL RESIDENTIAL CARE,900031,130245330,17/03/2016,"2,571.36",HEYWOODS GRANGE LTD,SP0000361
WANDSWORTH COUNCIL,ASC,SOCIAL SERVICES,PRIVATE,Revenue,EXTERNAL RESIDENTIAL CARE,892586,130245330,09/03/2016,"7,444.36",VOYAGE CARE LTD,SP0000366
WANDSWORTH COUNCIL,ASC,SOCIAL SERVICES,PRIVATE,Revenue,EXTERNAL RESIDENTIAL CARE,892588,130245330,09/03/2016,"6,441.12",VOYAGE CARE LTD,SP0000366
WANDSWORTH COUNCIL,ASC,SOCIAL SERVICES,PRIVATE,Revenue,EXTERNAL RESIDENTIAL CARE,892589,130245330,09/03/2016,"7,766.72",VOYAGE CARE LTD,SP0000366
WANDSWORTH COUNCIL,ASC,SOCIAL SERVICES,PRIVATE,Revenue,EXTERNAL RESIDENTIAL CARE,894321,130245330,10/03/2016,"7,444.36",VOYAGE CARE LTD,SP0000366
WANDSWORTH COUNCIL,ASC,SOCIAL SERVICES,PRIVATE,Revenue,EXTERNAL RESIDENTIAL CARE,894323,130245330,10/03/2016,"6,441.12",VOYAGE CARE LTD,SP0000366
WANDSWORTH COUNCIL,ASC,SOCIAL SERVICES,PRIVATE,Revenue,EXTERNAL RESIDENTIAL CARE,894324,130245330,10/03/2016,"7,766.72",VOYAGE CARE LTD,SP0000366
WANDSWORTH COUNCIL,ASC,SOCIAL SERVICES,PRIVATE,Revenue,EXTERNAL RESIDENTIAL CARE,894771,130245330,11/03/2016,"5,698.75",VOYAGE CARE LTD,SP0000366
WANDSWORTH COUNCIL,ASC,SOCIAL SERVICES,PRIVATE,Revenue,EXTERNAL RESIDENTIAL CARE,894772,130245330,11/03/2016,"5,732.47",VOYAGE CARE LTD,SP0000366
WANDSWORTH COUNCIL,ASC,SOCIAL SERVICES,PRIVATE,Revenue,EXTERNAL RESIDENTIAL CARE,903960,130245330,22/03/2016,"2,177.99",ST DAVIDS CARE IN THE COMMUNITY,SP0000379
WANDSWORTH COUNCIL,ASC,SOCIAL SERVICES,PRIVATE,Revenue,EXTERNAL RESIDENTIAL CARE,903961,130245330,22/03/2016,"2,624.99",ST DAVIDS CARE IN THE COMMUNITY,SP0000379
WANDSWORTH COUNCIL,ASC,SOCIAL SERVICES,PRIVATE,Revenue,EXTERNAL RESIDENTIAL CARE,903962,130245330,22/03/2016,"2,177.99",ST DAVIDS CARE IN THE COMMUNITY,SP0000379
WANDSWORTH COUNCIL,ASC,SOCIAL SERVICES,PRIVATE,Revenue,EXTERNAL RESIDENTIAL CARE,902246,130245330,21/03/2016,"5,646.12",ESSEX CARE CONSORTIUM,SP0000387
WANDSWORTH COUNCIL,ASC,SOCIAL SERVICES,PRIVATE,Revenue,EXTERNAL RESIDENTIAL CARE,907995,130245330,24/03/2016,"3,135.60",POTENSIAL LTD,SP0000395
WANDSWORTH COUNCIL,ASC,SOCIAL SERVICES,PRIVATE,Revenue,EXTERNAL RESIDENTIAL CARE,896985,130245330,15/03/2016,"4,150.04",KENILWORTH RESIDENTIAL HOME,SP0000432
WANDSWORTH COUNCIL,ASC,SOCIAL SERVICES,PRIVATE,Revenue,EXTERNAL RESIDENTIAL CARE,896986,130245330,15/03/2016,"3,976.44",KENILWORTH RESIDENTIAL HOME,SP0000432
WANDSWORTH COUNCIL,ASC,SOCIAL SERVICES,PRIVATE,Revenue,EXTERNAL RESIDENTIAL CARE,900006,130245330,17/03/2016,"4,403.64",THE WELL HOUSE,SP0000448
WANDSWORTH COUNCIL,ASC,SOCIAL SERVICES,PRIVATE,Revenue,EXTERNAL RESIDENTIAL CARE,900007,130245330,17/03/2016,"4,654.32",THE WELL HOUSE,SP0000448
WANDSWORTH COUNCIL,ASC,SOCIAL SERVICES,PRIVATE,Revenue,EXTERNAL RESIDENTIAL CARE,892622,130245330,09/03/2016,"5,210.48",MACINTYRE CARE,SP0000473
WANDSWORTH COUNCIL,ASC,SOCIAL SERVICES,PRIVATE,Revenue,EXTERNAL RESIDENTIAL CARE,897951,130245330,16/03/2016,"5,210.48",MACINTYRE CARE,SP0000473
WANDSWORTH COUNCIL,ASC,SOCIAL SERVICES,PRIVATE,Revenue,EXTERNAL RESIDENTIAL CARE,897952,130245330,16/03/2016,"5,416.85",MACINTYRE CARE,SP0000473
WANDSWORTH COUNCIL,ASC,SOCIAL SERVICES,PRIVATE,Revenue,EXTERNAL RESIDENTIAL CARE,897954,130245330,16/03/2016,"3,759.64",MACINTYRE CARE,SP0000473
WANDSWORTH COUNCIL,ASC,SOCIAL SERVICES,PRIVATE,Revenue,EXTERNAL RESIDENTIAL CARE,897955,130245330,16/03/2016,"5,192.48",MACINTYRE CARE,SP0000473
WANDSWORTH COUNCIL,ASC,SOCIAL SERVICES,PRIVATE,Revenue,EXTERNAL RESIDENTIAL CARE,897956,130245330,16/03/2016,"3,750.72",MACINTYRE CARE,SP0000473
WANDSWORTH COUNCIL,ASC,SOCIAL SERVICES,PRIVATE,Revenue,EXTERNAL RESIDENTIAL CARE,897957,130245330,16/03/2016,"3,698.46",MACINTYRE CARE,SP0000473
WANDSWORTH COUNCIL,ASC,SOCIAL SERVICES,PRIVATE,Revenue,EXTERNAL RESIDENTIAL CARE,897958,130245330,16/03/2016,"5,097.20",MACINTYRE CARE,SP0000473
WANDSWORTH COUNCIL,ASC,SOCIAL SERVICES,PRIVATE,Revenue,EXTERNAL RESIDENTIAL CARE,897959,130245330,16/03/2016,"2,301.48",MACINTYRE CARE,SP0000473
WANDSWORTH COUNCIL,ASC,SOCIAL SERVICES,PRIVATE,Revenue,EXTERNAL RESIDENTIAL CARE,897960,130245330,16/03/2016,"8,054.44",MACINTYRE CARE,SP0000473
WANDSWORTH COUNCIL,ASC,SOCIAL SERVICES,PRIVATE,Revenue,EXTERNAL RESIDENTIAL CARE,897961,130245330,16/03/2016,"5,030.56",MACINTYRE CARE,SP0000473
WANDSWORTH COUNCIL,ASC,SOCIAL SERVICES,PRIVATE,Revenue,EXTERNAL RESIDENTIAL CARE,897962,130245330,16/03/2016,"5,429.76",MACINTYRE CARE,SP0000473
WANDSWORTH COUNCIL,ASC,SOCIAL SERVICES,PRIVATE,Revenue,EXTERNAL RESIDENTIAL CARE,897963,130245330,16/03/2016,"4,907.76",MACINTYRE CARE,SP0000473
WANDSWORTH COUNCIL,ASC,SOCIAL SERVICES,PRIVATE,Revenue,EXTERNAL RESIDENTIAL CARE,897964,130245330,16/03/2016,"4,296.00",MACINTYRE CARE,SP0000473
WANDSWORTH COUNCIL,ASC,SOCIAL SERVICES,PRIVATE,Revenue,EXTERNAL RESIDENTIAL CARE,897965,130245330,16/03/2016,"4,909.16",MACINTYRE CARE,SP0000473
WANDSWORTH COUNCIL,ASC,SOCIAL SERVICES,PRIVATE,Revenue,EXTERNAL RESIDENTIAL CARE,897966,130245330,16/03/2016,"4,909.16",MACINTYRE CARE,SP0000473
WANDSWORTH COUNCIL,ASC,SOCIAL SERVICES,PRIVATE,Revenue,EXTERNAL RESIDENTIAL CARE,897968,130245330,16/03/2016,"4,904.32",MACINTYRE CARE,SP0000473
WANDSWORTH COUNCIL,ASC,SOCIAL SERVICES,PRIVATE,Revenue,EXTERNAL RESIDENTIAL CARE,897969,130245330,16/03/2016,"4,907.76",MACINTYRE CARE,SP0000473
WANDSWORTH COUNCIL,ASC,SOCIAL SERVICES,PRIVATE,Revenue,EXTERNAL RESIDENTIAL CARE,897970,130245330,16/03/2016,"5,030.56",MACINTYRE CARE,SP0000473
WANDSWORTH COUNCIL,ASC,SOCIAL SERVICES,PRIVATE,Revenue,EXTERNAL RESIDENTIAL CARE,897971,130245330,16/03/2016,"4,907.76",MACINTYRE CARE,SP0000473
WANDSWORTH COUNCIL,ASC,SOCIAL SERVICES,PRIVATE,Revenue,EXTERNAL RESIDENTIAL CARE,900035,130245330,17/03/2016,"4,998.84",MACINTYRE CARE,SP0000473
WANDSWORTH COUNCIL,ASC,SOCIAL SERVICES,PRIVATE,Revenue,EXTERNAL RESIDENTIAL CARE,900010,130245330,17/03/2016,"9,623.98",SURREY & BORDERS PARTNERSHIP NHS TRUST,SP0000501
WANDSWORTH COUNCIL,ASC,SOCIAL SERVICES,PRIVATE,Revenue,EXTERNAL RESIDENTIAL CARE,900011,130245330,17/03/2016,"6,024.43",SURREY & BORDERS PARTNERSHIP NHS TRUST,SP0000501
WANDSWORTH COUNCIL,ASC,SOCIAL SERVICES,PRIVATE,Revenue,EXTERNAL RESIDENTIAL CARE,897788,130245330,16/03/2016,"7,717.76",LORING HALL LIMITED,SP0000511
WANDSWORTH COUNCIL,ASC,SOCIAL SERVICES,PRIVATE,Revenue,EXTERNAL RESIDENTIAL CARE,903988,130245330,22/03/2016,"7,717.76",LORING HALL LIMITED,SP0000511
WANDSWORTH COUNCIL,ASC,SOCIAL SERVICES,PRIVATE,Revenue,EXTERNAL RESIDENTIAL CARE,900030,130245330,17/03/2016,"8,370.84",AIMS CARE PARTNERSHIP,SP0000561
WANDSWORTH COUNCIL,ASC,SOCIAL SERVICES,PRIVATE,Revenue,EXTERNAL RESIDENTIAL CARE,892590,130245330,09/03/2016,"7,351.98",SEEABILITY,SP0000572
WANDSWORTH COUNCIL,ASC,SOCIAL SERVICES,PRIVATE,Revenue,EXTERNAL RESIDENTIAL CARE,892591,130245330,09/03/2016,"7,106.91",SEEABILITY,SP0000572
WANDSWORTH COUNCIL,ASC,SOCIAL SERVICES,PRIVATE,Revenue,EXTERNAL RESIDENTIAL CARE,902241,130245330,21/03/2016,"7,597.03",SEEABILITY,SP0000572
WANDSWORTH COUNCIL,ASC,SOCIAL SERVICES,PRIVATE,Revenue,EXTERNAL RESIDENTIAL CARE,902680,130245330,21/03/2016,"8,016.43",SEEABILITY,SP0000572
WANDSWORTH COUNCIL,ASC,SOCIAL SERVICES,PRIVATE,Revenue,EXTERNAL RESIDENTIAL CARE,906711,130245330,23/03/2016,"8,569.29",SEEABILITY,SP0000572
WANDSWORTH COUNCIL,ASC,SOCIAL SERVICES,PRIVATE,Revenue,EXTERNAL RESIDENTIAL CARE,892597,130245330,09/03/2016,"5,644.30",THE COMMUNITY CARE COMPANY UK LTD,SP0000576
WANDSWORTH COUNCIL,ASC,SOCIAL SERVICES,PRIVATE,Revenue,EXTERNAL RESIDENTIAL CARE,892598,130245330,09/03/2016,"7,122.03",THE COMMUNITY CARE COMPANY UK LTD,SP0000576
WANDSWORTH COUNCIL,ASC,SOCIAL SERVICES,PRIVATE,Revenue,EXTERNAL RESIDENTIAL CARE,892599,130245330,09/03/2016,"6,002.71",THE COMMUNITY CARE COMPANY UK LTD,SP0000576
WANDSWORTH COUNCIL,ASC,SOCIAL SERVICES,PRIVATE,Revenue,EXTERNAL RESIDENTIAL CARE,892600,130245330,09/03/2016,"7,203.16",THE COMMUNITY CARE COMPANY UK LTD,SP0000576
WANDSWORTH COUNCIL,ASC,SOCIAL SERVICES,PRIVATE,Revenue,EXTERNAL RESIDENTIAL CARE,892601,130245330,09/03/2016,"6,188.66",THE COMMUNITY CARE COMPANY UK LTD,SP0000576
WANDSWORTH COUNCIL,ASC,SOCIAL SERVICES,PRIVATE,Revenue,EXTERNAL RESIDENTIAL CARE,900036,130245330,17/03/2016,"6,641.44",BIRCC,SP0000584
WANDSWORTH COUNCIL,ASC,SOCIAL SERVICES,PRIVATE,Revenue,EXTERNAL RESIDENTIAL CARE,894314,130245330,10/03/2016,"14,863.25",THE REGARD PARTNERSHIP,SP0000588
WANDSWORTH COUNCIL,ASC,SOCIAL SERVICES,PRIVATE,Revenue,EXTERNAL RESIDENTIAL CARE,894315,130245330,10/03/2016,"6,606.99",THE REGARD PARTNERSHIP,SP0000588
WANDSWORTH COUNCIL,ASC,SOCIAL SERVICES,PRIVATE,Revenue,EXTERNAL RESIDENTIAL CARE,894316,130245330,10/03/2016,"7,062.64",THE REGARD PARTNERSHIP,SP0000588
WANDSWORTH COUNCIL,ASC,SOCIAL SERVICES,PRIVATE,Revenue,EXTERNAL RESIDENTIAL CARE,903975,130245330,22/03/2016,"7,483.53",THE REGARD PARTNERSHIP,SP0000588
WANDSWORTH COUNCIL,ASC,SOCIAL SERVICES,PRIVATE,Revenue,EXTERNAL RESIDENTIAL CARE,903976,130245330,22/03/2016,"7,044.22",THE REGARD PARTNERSHIP,SP0000588
WANDSWORTH COUNCIL,ASC,SOCIAL SERVICES,PRIVATE,Revenue,EXTERNAL RESIDENTIAL CARE,903977,130245330,22/03/2016,"7,128.49",THE REGARD PARTNERSHIP,SP0000588
WANDSWORTH COUNCIL,ASC,SOCIAL SERVICES,PRIVATE,Revenue,EXTERNAL RESIDENTIAL CARE,903978,130245330,22/03/2016,"7,872.23",THE REGARD PARTNERSHIP,SP0000588
WANDSWORTH COUNCIL,ASC,SOCIAL SERVICES,PRIVATE,Revenue,EXTERNAL RESIDENTIAL CARE,903989,130245330,22/03/2016,"5,875.84",THE REGARD PARTNERSHIP,SP0000588
WANDSWORTH COUNCIL,ASC,SOCIAL SERVICES,PRIVATE,Revenue,EXTERNAL RESIDENTIAL CARE,900414,130245330,17/03/2016,"10,118.48",EVERGREEN PARTNERSHIP,SP0000597
WANDSWORTH COUNCIL,ASC,SOCIAL SERVICES,PRIVATE,Revenue,EXTERNAL RESIDENTIAL CARE,896974,130245330,15/03/2016,"4,558.48",LAETUS LODGE,SP0000600
WANDSWORTH COUNCIL,ASC,SOCIAL SERVICES,PRIVATE,Revenue,EXTERNAL RESIDENTIAL CARE,896975,130245330,15/03/2016,"4,792.20",LAETUS LODGE,SP0000600
WANDSWORTH COUNCIL,ASC,SOCIAL SERVICES,PRIVATE,Revenue,EXTERNAL RESIDENTIAL CARE,896976,130245330,15/03/2016,"6,096.48",LAETUS LODGE,SP0000600
WANDSWORTH COUNCIL,ASC,SOCIAL SERVICES,PRIVATE,Revenue,EXTERNAL RESIDENTIAL CARE,896977,130245330,15/03/2016,"6,193.48",LAETUS LODGE,SP0000600
WANDSWORTH COUNCIL,ASC,SOCIAL SERVICES,PRIVATE,Revenue,EXTERNAL RESIDENTIAL CARE,896978,130245330,15/03/2016,"3,669.12",LAETUS LODGE,SP0000600
WANDSWORTH COUNCIL,ASC,SOCIAL SERVICES,PRIVATE,Revenue,EXTERNAL RESIDENTIAL CARE,896979,130245330,15/03/2016,"3,759.76",LAETUS LODGE,SP0000600
WANDSWORTH COUNCIL,ASC,SOCIAL SERVICES,PRIVATE,Revenue,EXTERNAL RESIDENTIAL CARE,896980,130245330,15/03/2016,"5,240.56",LAETUS LODGE,SP0000600
WANDSWORTH COUNCIL,ASC,SOCIAL SERVICES,PRIVATE,Revenue,EXTERNAL RESIDENTIAL CARE,901889,130245330,21/03/2016,"3,454.38",MENCAP,SP0000604
WANDSWORTH COUNCIL,ASC,SOCIAL SERVICES,PRIVATE,Revenue,EXTERNAL RESIDENTIAL CARE,901891,130245330,21/03/2016,"2,391.83",MENCAP,SP0000604
WANDSWORTH COUNCIL,ASC,SOCIAL SERVICES,PRIVATE,Revenue,EXTERNAL RESIDENTIAL CARE,889128,130245330,03/03/2016,"3,659.52",METROPOLITAN HOUSING TRUST,SP0000626
WANDSWORTH COUNCIL,ASC,SOCIAL SERVICES,PRIVATE,Revenue,EXTERNAL RESIDENTIAL CARE,889129,130245330,03/03/2016,"3,659.52",METROPOLITAN HOUSING TRUST,SP0000626
WANDSWORTH COUNCIL,ASC,SOCIAL SERVICES,PRIVATE,Revenue,EXTERNAL RESIDENTIAL CARE,889130,130245330,03/03/2016,"3,659.52",METROPOLITAN HOUSING TRUST,SP0000626
WANDSWORTH COUNCIL,ASC,SOCIAL SERVICES,PRIVATE,Revenue,EXTERNAL RESIDENTIAL CARE,889131,130245330,03/03/2016,"3,659.68",METROPOLITAN HOUSING TRUST,SP0000626
WANDSWORTH COUNCIL,ASC,SOCIAL SERVICES,PRIVATE,Revenue,EXTERNAL RESIDENTIAL CARE,889132,130245330,03/03/2016,"3,659.52",METROPOLITAN HOUSING TRUST,SP0000626
WANDSWORTH COUNCIL,ASC,SOCIAL SERVICES,PRIVATE,Revenue,EXTERNAL RESIDENTIAL CARE,889133,130245330,03/03/2016,"3,659.52",METROPOLITAN HOUSING TRUST,SP0000626
WANDSWORTH COUNCIL,ASC,SOCIAL SERVICES,PRIVATE,Revenue,EXTERNAL RESIDENTIAL CARE,889134,130245330,03/03/2016,"3,812.04",METROPOLITAN HOUSING TRUST,SP0000626
WANDSWORTH COUNCIL,ASC,SOCIAL SERVICES,PRIVATE,Revenue,EXTERNAL RESIDENTIAL CARE,889135,130245330,03/03/2016,"3,659.52",METROPOLITAN HOUSING TRUST,SP0000626
WANDSWORTH COUNCIL,ASC,SOCIAL SERVICES,PRIVATE,Revenue,EXTERNAL RESIDENTIAL CARE,889136,130245330,03/03/2016,"4,756.92",METROPOLITAN HOUSING TRUST,SP0000626
WANDSWORTH COUNCIL,ASC,SOCIAL SERVICES,PRIVATE,Revenue,EXTERNAL RESIDENTIAL CARE,889137,130245330,03/03/2016,"4,756.88",METROPOLITAN HOUSING TRUST,SP0000626
WANDSWORTH COUNCIL,ASC,SOCIAL SERVICES,PRIVATE,Revenue,EXTERNAL RESIDENTIAL CARE,889138,130245330,03/03/2016,"4,756.88",METROPOLITAN HOUSING TRUST,SP0000626
WANDSWORTH COUNCIL,ASC,SOCIAL SERVICES,PRIVATE,Revenue,EXTERNAL RESIDENTIAL CARE,889139,130245330,03/03/2016,"4,427.04",METROPOLITAN HOUSING TRUST,SP0000626
WANDSWORTH COUNCIL,ASC,SOCIAL SERVICES,PRIVATE,Revenue,EXTERNAL RESIDENTIAL CARE,889140,130245330,03/03/2016,"4,709.79",METROPOLITAN HOUSING TRUST,SP0000626
WANDSWORTH COUNCIL,ASC,SOCIAL SERVICES,PRIVATE,Revenue,EXTERNAL RESIDENTIAL CARE,889141,130245330,03/03/2016,"4,709.79",METROPOLITAN HOUSING TRUST,SP0000626
WANDSWORTH COUNCIL,ASC,SOCIAL SERVICES,PRIVATE,Revenue,EXTERNAL RESIDENTIAL CARE,889143,130245330,03/03/2016,"4,709.79",METROPOLITAN HOUSING TRUST,SP0000626
WANDSWORTH COUNCIL,ASC,SOCIAL SERVICES,PRIVATE,Revenue,EXTERNAL RESIDENTIAL CARE,900423,130245330,17/03/2016,"2,395.60",LIVABILITY,SP0000669
WANDSWORTH COUNCIL,ASC,SOCIAL SERVICES,PRIVATE,Revenue,EXTERNAL RESIDENTIAL CARE,900424,130245330,17/03/2016,"2,395.60",LIVABILITY,SP0000669
WANDSWORTH COUNCIL,ASC,SOCIAL SERVICES,PRIVATE,Revenue,EXTERNAL RESIDENTIAL CARE,903959,130245330,22/03/2016,"3,099.03",THE MANOR HOUSE,SP0000728
WANDSWORTH COUNCIL,ASC,SOCIAL SERVICES,PRIVATE,Revenue,EXTERNAL RESIDENTIAL CARE,902245,130245330,21/03/2016,"8,576.73",RALEIGH HOUSE LTD,SP0000760
WANDSWORTH COUNCIL,ASC,SOCIAL SERVICES,PRIVATE,Revenue,EXTERNAL RESIDENTIAL CARE,889530,130245330,03/03/2016,"3,806.64",GLENCARE GROUP,SP0000791
WANDSWORTH COUNCIL,ASC,SOCIAL SERVICES,PRIVATE,Revenue,EXTERNAL RESIDENTIAL CARE,889531,130245330,03/03/2016,"3,806.64",GLENCARE GROUP,SP0000791
WANDSWORTH COUNCIL,ASC,SOCIAL SERVICES,PRIVATE,Revenue,EXTERNAL RESIDENTIAL CARE,903921,130245330,22/03/2016,"6,103.44",GLENCARE GROUP,SP0000791
WANDSWORTH COUNCIL,ASC,SOCIAL SERVICES,PRIVATE,Revenue,EXTERNAL RESIDENTIAL CARE,892584,130245330,09/03/2016,"2,267.32",FREEWAYS TRUST LTD,SP0000793
WANDSWORTH COUNCIL,ASC,SOCIAL SERVICES,PRIVATE,Revenue,EXTERNAL RESIDENTIAL CARE,903928,130245330,22/03/2016,"3,140.56",UNITED RESPONSE,SP0000797
WANDSWORTH COUNCIL,ASC,SOCIAL SERVICES,PRIVATE,Revenue,EXTERNAL RESIDENTIAL CARE,904004,130245330,22/03/2016,"6,312.44",WESSEX AUTISTIC SOCIETY,SP0000805
WANDSWORTH COUNCIL,ASC,SOCIAL SERVICES,PRIVATE,Revenue,EXTERNAL RESIDENTIAL CARE,891380,130245330,07/03/2016,"3,842.46",BEECH LODGE,SP0000807
WANDSWORTH COUNCIL,ASC,SOCIAL SERVICES,PRIVATE,Revenue,EXTERNAL RESIDENTIAL CARE,891381,130245330,07/03/2016,"3,842.48",BEECH LODGE,SP0000807
WANDSWORTH COUNCIL,ASC,SOCIAL SERVICES,PRIVATE,Revenue,EXTERNAL RESIDENTIAL CARE,891382,130245330,07/03/2016,"3,842.46",BEECH LODGE,SP0000807
WANDSWORTH COUNCIL,ASC,SOCIAL SERVICES,PRIVATE,Revenue,EXTERNAL RESIDENTIAL CARE,891383,130245330,07/03/2016,"3,842.48",BEECH LODGE,SP0000807
WANDSWORTH COUNCIL,ASC,SOCIAL SERVICES,PRIVATE,Revenue,EXTERNAL RESIDENTIAL CARE,891384,130245330,07/03/2016,"3,842.46",BEECH LODGE,SP0000807
WANDSWORTH COUNCIL,ASC,SOCIAL SERVICES,PRIVATE,Revenue,EXTERNAL RESIDENTIAL CARE,891385,130245330,07/03/2016,"3,830.99",BEECH LODGE,SP0000807
WANDSWORTH COUNCIL,ASC,SOCIAL SERVICES,PRIVATE,Revenue,EXTERNAL RESIDENTIAL CARE,906703,130245330,23/03/2016,"3,714.40",BEECH LODGE,SP0000807
WANDSWORTH COUNCIL,ASC,SOCIAL SERVICES,PRIVATE,Revenue,EXTERNAL RESIDENTIAL CARE,906704,130245330,23/03/2016,"3,714.40",BEECH LODGE,SP0000807
WANDSWORTH COUNCIL,ASC,SOCIAL SERVICES,PRIVATE,Revenue,EXTERNAL RESIDENTIAL CARE,906705,130245330,23/03/2016,"3,714.40",BEECH LODGE,SP0000807
WANDSWORTH COUNCIL,ASC,SOCIAL SERVICES,PRIVATE,Revenue,EXTERNAL RESIDENTIAL CARE,906165,130245330,23/03/2016,"8,051.14",FIRCROFT,SP0000840
WANDSWORTH COUNCIL,ASC,SOCIAL SERVICES,PRIVATE,Revenue,EXTERNAL RESIDENTIAL CARE,896485,130245330,14/03/2016,"5,840.68",ROYAL MENCAP SOCIETY,SP0000842
WANDSWORTH COUNCIL,ASC,SOCIAL SERVICES,PRIVATE,Revenue,EXTERNAL RESIDENTIAL CARE,896486,130245330,14/03/2016,"4,197.68",ROYAL MENCAP SOCIETY,SP0000842
WANDSWORTH COUNCIL,ASC,SOCIAL SERVICES,PRIVATE,Revenue,EXTERNAL RESIDENTIAL CARE,901890,130245330,21/03/2016,"3,454.38",ROYAL MENCAP SOCIETY,SP0000842
WANDSWORTH COUNCIL,ASC,SOCIAL SERVICES,PRIVATE,Revenue,EXTERNAL RESIDENTIAL CARE,895618,130245330,14/03/2016,"5,323.57",STALLCOMBE HOUSE,SP0000843
WANDSWORTH COUNCIL,ASC,SOCIAL SERVICES,PRIVATE,Revenue,EXTERNAL RESIDENTIAL CARE,900024,130245330,17/03/2016,"3,259.92",STALLCOMBE HOUSE,SP0000843
WANDSWORTH COUNCIL,ASC,SOCIAL SERVICES,PRIVATE,Revenue,EXTERNAL RESIDENTIAL CARE,900025,130245330,17/03/2016,"5,448.47",STALLCOMBE HOUSE,SP0000843
WANDSWORTH COUNCIL,ASC,SOCIAL SERVICES,PRIVATE,Revenue,EXTERNAL RESIDENTIAL CARE,900026,130245330,17/03/2016,"5,690.71",STALLCOMBE HOUSE,SP0000843
WANDSWORTH COUNCIL,ASC,SOCIAL SERVICES,PRIVATE,Revenue,EXTERNAL RESIDENTIAL CARE,907993,130245330,24/03/2016,"2,618.35",SCOPE,SP0000852
WANDSWORTH COUNCIL,ASC,SOCIAL SERVICES,PRIVATE,Revenue,EXTERNAL RESIDENTIAL CARE,907994,130245330,24/03/2016,"2,763.52",SCOPE,SP0000852
WANDSWORTH COUNCIL,ASC,SOCIAL SERVICES,PRIVATE,Revenue,EXTERNAL RESIDENTIAL CARE,899997,130245330,17/03/2016,"11,311.24",ASHCROFT CARE SERVICES,SP0000872
WANDSWORTH COUNCIL,ASC,SOCIAL SERVICES,PRIVATE,Revenue,EXTERNAL RESIDENTIAL CARE,903966,130245330,22/03/2016,"4,472.68",229 MITCHAM LANE LTD,SP0000884
WANDSWORTH COUNCIL,ASC,SOCIAL SERVICES,PRIVATE,Revenue,EXTERNAL RESIDENTIAL CARE,903967,130245330,22/03/2016,"5,236.38",229 MITCHAM LANE LTD,SP0000884
WANDSWORTH COUNCIL,ASC,SOCIAL SERVICES,PRIVATE,Revenue,EXTERNAL RESIDENTIAL CARE,903969,130245330,22/03/2016,"5,559.01",229 MITCHAM LANE LTD,SP0000884
WANDSWORTH COUNCIL,ASC,SOCIAL SERVICES,PRIVATE,Revenue,EXTERNAL RESIDENTIAL CARE,903970,130245330,22/03/2016,"5,236.30",229 MITCHAM LANE LTD,SP0000884
WANDSWORTH COUNCIL,ASC,SOCIAL SERVICES,PRIVATE,Revenue,EXTERNAL RESIDENTIAL CARE,887086,130245330,01/03/2016,"5,819.32",WINSLOW COURT,SP0000886
WANDSWORTH COUNCIL,ASC,SOCIAL SERVICES,PRIVATE,Revenue,EXTERNAL RESIDENTIAL CARE,895616,130245330,14/03/2016,"5,599.36",WINSLOW COURT,SP0000886
WANDSWORTH COUNCIL,ASC,SOCIAL SERVICES,PRIVATE,Revenue,EXTERNAL RESIDENTIAL CARE,895617,130245330,14/03/2016,"5,819.32",WINSLOW COURT,SP0000886
WANDSWORTH COUNCIL,ASC,SOCIAL SERVICES,PRIVATE,Revenue,EXTERNAL RESIDENTIAL CARE,900071,130245330,17/03/2016,"5,599.36",WINSLOW COURT,SP0000886
WANDSWORTH COUNCIL,ASC,SOCIAL SERVICES,PRIVATE,Revenue,EXTERNAL RESIDENTIAL CARE,900028,130245330,17/03/2016,"3,957.32",THE LEO TRUST,SP0000908
WANDSWORTH COUNCIL,ASC,SOCIAL SERVICES,PRIVATE,Revenue,EXTERNAL RESIDENTIAL CARE,897792,130245330,16/03/2016,"5,137.08",TRACS,SP0000914
WANDSWORTH COUNCIL,ASC,SOCIAL SERVICES,PRIVATE,Revenue,EXTERNAL RESIDENTIAL CARE,897793,130245330,16/03/2016,"5,308.30",TRACS,SP0000914
WANDSWORTH COUNCIL,ASC,SOCIAL SERVICES,PRIVATE,Revenue,EXTERNAL RESIDENTIAL CARE,906166,130245330,23/03/2016,"5,308.30",TRACS,SP0000914
WANDSWORTH COUNCIL,ASC,SOCIAL SERVICES,PRIVATE,Revenue,EXTERNAL RESIDENTIAL CARE,900008,130245330,17/03/2016,"7,271.56",CORICH COMMUNITY CARE LTD,SP0000915
WANDSWORTH COUNCIL,ASC,SOCIAL SERVICES,PRIVATE,Revenue,EXTERNAL RESIDENTIAL CARE,906698,130245330,23/03/2016,"8,456.27",PROGRESS HOUSING MARLOW,SP0000952
WANDSWORTH COUNCIL,ASC,SOCIAL SERVICES,PRIVATE,Revenue,EXTERNAL RESIDENTIAL CARE,906699,130245330,23/03/2016,"8,456.27",PROGRESS HOUSING MARLOW,SP0000952
WANDSWORTH COUNCIL,ASC,SOCIAL SERVICES,PRIVATE,Revenue,EXTERNAL RESIDENTIAL CARE,903995,130245330,22/03/2016,"4,029.78",DOWNING (CHERTSEY ROAD) LTD,SP0000959
WANDSWORTH COUNCIL,ASC,SOCIAL SERVICES,PRIVATE,Revenue,EXTERNAL RESIDENTIAL CARE,891386,130245330,07/03/2016,"3,861.98",CHERRY LODGE,SP0000965
WANDSWORTH COUNCIL,ASC,SOCIAL SERVICES,PRIVATE,Revenue,EXTERNAL RESIDENTIAL CARE,906706,130245330,23/03/2016,"3,733.25",CHERRY LODGE,SP0000965
WANDSWORTH COUNCIL,ASC,SOCIAL SERVICES,PRIVATE,Revenue,EXTERNAL RESIDENTIAL CARE,889532,130245330,03/03/2016,"6,493.16",RIDGEWOOD CARE SERVICES LTD,SP0000969
WANDSWORTH COUNCIL,ASC,SOCIAL SERVICES,PRIVATE,Revenue,EXTERNAL RESIDENTIAL CARE,899994,130245330,17/03/2016,"3,538.76",RIDGEWOOD CARE SERVICES LTD,SP0000969
WANDSWORTH COUNCIL,ASC,SOCIAL SERVICES,PRIVATE,Revenue,EXTERNAL RESIDENTIAL CARE,899995,130245330,17/03/2016,"3,766.44",RIDGEWOOD CARE SERVICES LTD,SP0000969
WANDSWORTH COUNCIL,ASC,SOCIAL SERVICES,PRIVATE,Revenue,EXTERNAL RESIDENTIAL CARE,887063,130245330,01/03/2016,"4,613.60",LOTUS CARE HOME LTD,SP0001006
WANDSWORTH COUNCIL,ASC,SOCIAL SERVICES,PRIVATE,Revenue,EXTERNAL RESIDENTIAL CARE,887064,130245330,01/03/2016,"4,613.60",LOTUS CARE HOME LTD,SP0001006
WANDSWORTH COUNCIL,ASC,SOCIAL SERVICES,PRIVATE,Revenue,EXTERNAL RESIDENTIAL CARE,895614,130245330,14/03/2016,"5,186.44",M JINGREE T/A SUNLIGHT HOUSE,SP0001024
WANDSWORTH COUNCIL,ASC,SOCIAL SERVICES,PRIVATE,Revenue,EXTERNAL RESIDENTIAL CARE,886545,130245330,01/03/2016,"3,708.20",THE HOME FARM TRUST LTD,SP0001048
WANDSWORTH COUNCIL,ASC,SOCIAL SERVICES,PRIVATE,Revenue,EXTERNAL RESIDENTIAL CARE,896984,130245330,15/03/2016,150.16,THE HOME FARM TRUST LTD,SP0001048
WANDSWORTH COUNCIL,ASC,SOCIAL SERVICES,PRIVATE,Revenue,EXTERNAL RESIDENTIAL CARE,900431,130245330,17/03/2016,"3,703.50",THE HOME FARM TRUST LTD,SP0001048
WANDSWORTH COUNCIL,ASC,SOCIAL SERVICES,PRIVATE,Revenue,EXTERNAL RESIDENTIAL CARE,903914,130245330,22/03/2016,"2,743.88",THE HOME FARM TRUST LTD,SP0001048
WANDSWORTH COUNCIL,ASC,SOCIAL SERVICES,PRIVATE,Revenue,EXTERNAL RESIDENTIAL CARE,903915,130245330,22/03/2016,"2,323.00",THE HOME FARM TRUST LTD,SP0001048
WANDSWORTH COUNCIL,ASC,SOCIAL SERVICES,PRIVATE,Revenue,EXTERNAL RESIDENTIAL CARE,903916,130245330,22/03/2016,"2,457.40",THE HOME FARM TRUST LTD,SP0001048
WANDSWORTH COUNCIL,ASC,SOCIAL SERVICES,PRIVATE,Revenue,EXTERNAL RESIDENTIAL CARE,903924,130245330,22/03/2016,"4,332.78",ALLIED CARE (MHS) LTD,SP0001069
WANDSWORTH COUNCIL,ASC,SOCIAL SERVICES,PRIVATE,Revenue,EXTERNAL RESIDENTIAL CARE,903925,130245330,22/03/2016,"4,630.48",ALLIED CARE (MHS) LTD,SP0001069
WANDSWORTH COUNCIL,ASC,SOCIAL SERVICES,PRIVATE,Revenue,EXTERNAL RESIDENTIAL CARE,903926,130245330,22/03/2016,"5,000.30",ALLIED CARE (MHS) LTD,SP0001069
WANDSWORTH COUNCIL,ASC,SOCIAL SERVICES,PRIVATE,Revenue,EXTERNAL RESIDENTIAL CARE,899999,130245330,17/03/2016,"2,323.34",SAXON COURT,SP0001100
WANDSWORTH COUNCIL,ASC,SOCIAL SERVICES,PRIVATE,Revenue,EXTERNAL RESIDENTIAL CARE,896982,130245330,15/03/2016,"7,395.80",TOTTERDOWN,SP0001113
WANDSWORTH COUNCIL,ASC,SOCIAL SERVICES,PRIVATE,Revenue,EXTERNAL RESIDENTIAL CARE,896983,130245330,15/03/2016,"3,653.44",TOTTERDOWN,SP0001113
WANDSWORTH COUNCIL,ASC,SOCIAL SERVICES,PRIVATE,Revenue,EXTERNAL RESIDENTIAL CARE,900032,130245330,17/03/2016,"7,369.85",SUSSEX HEALTH CARE,SP0001115
WANDSWORTH COUNCIL,ASC,SOCIAL SERVICES,PRIVATE,Revenue,EXTERNAL RESIDENTIAL CARE,903998,130245330,22/03/2016,"6,916.62",LONDON CARE PARTNERSHIP LTD,SP0001138
WANDSWORTH COUNCIL,ASC,SOCIAL SERVICES,PRIVATE,Revenue,EXTERNAL RESIDENTIAL CARE,903999,130245330,22/03/2016,"8,192.86",LONDON CARE PARTNERSHIP LTD,SP0001138
WANDSWORTH COUNCIL,ASC,SOCIAL SERVICES,PRIVATE,Revenue,EXTERNAL RESIDENTIAL CARE,904000,130245330,22/03/2016,"8,303.57",LONDON CARE PARTNERSHIP LTD,SP0001138
WANDSWORTH COUNCIL,ASC,SOCIAL SERVICES,PRIVATE,Revenue,EXTERNAL RESIDENTIAL CARE,904001,130245330,22/03/2016,"8,303.56",LONDON CARE PARTNERSHIP LTD,SP0001138
WANDSWORTH COUNCIL,ASC,SOCIAL SERVICES,PRIVATE,Revenue,EXTERNAL RESIDENTIAL CARE,904002,130245330,22/03/2016,"8,524.99",LONDON CARE PARTNERSHIP LTD,SP0001138
WANDSWORTH COUNCIL,ASC,SOCIAL SERVICES,PRIVATE,Revenue,EXTERNAL RESIDENTIAL CARE,904003,130245330,22/03/2016,"9,211.43",LONDON CARE PARTNERSHIP LTD,SP0001138
WANDSWORTH COUNCIL,ASC,SOCIAL SERVICES,PRIVATE,Revenue,EXTERNAL RESIDENTIAL CARE,892604,130245330,09/03/2016,"4,967.48",LARKFIELD HALL LTD T/A PEPENBURY,SP0001378
WANDSWORTH COUNCIL,ASC,SOCIAL SERVICES,PRIVATE,Revenue,EXTERNAL RESIDENTIAL CARE,892605,130245330,09/03/2016,"4,967.48",LARKFIELD HALL LTD T/A PEPENBURY,SP0001378
WANDSWORTH COUNCIL,ASC,SOCIAL SERVICES,PRIVATE,Revenue,EXTERNAL RESIDENTIAL CARE,903983,130245330,22/03/2016,"8,784.64",ROOKERY HOVE PRIORY,SP0001498
WANDSWORTH COUNCIL,ASC,SOCIAL SERVICES,PRIVATE,Revenue,EXTERNAL RESIDENTIAL CARE,892603,130245330,09/03/2016,"7,523.88",MCCH SOCIETY LIMITED,SP0001531
WANDSWORTH COUNCIL,ASC,SOCIAL SERVICES,PRIVATE,Revenue,EXTERNAL RESIDENTIAL CARE,892621,130245330,09/03/2016,"7,523.88",MCCH SOCIETY LIMITED,SP0001531
WANDSWORTH COUNCIL,ASC,SOCIAL SERVICES,PRIVATE,Revenue,EXTERNAL RESIDENTIAL CARE,886549,130245330,01/03/2016,"4,100.60",NUTLEY HALL LTD,SP0001581
WANDSWORTH COUNCIL,ASC,SOCIAL SERVICES,PRIVATE,Revenue,EXTERNAL RESIDENTIAL CARE,900422,130245330,17/03/2016,"4,380.56",NUTLEY HALL LTD,SP0001581
WANDSWORTH COUNCIL,ASC,SOCIAL SERVICES,PRIVATE,Revenue,EXTERNAL RESIDENTIAL CARE,900013,130245330,17/03/2016,"3,523.28",CRAEGMOOR OLD RECTORY BREDE PRIORY,SP0001621
WANDSWORTH COUNCIL,ASC,SOCIAL SERVICES,PRIVATE,Revenue,EXTERNAL RESIDENTIAL CARE,906707,130245330,23/03/2016,"5,095.91",ACH OF LONDON LLP,SP0001688
WANDSWORTH COUNCIL,ASC,SOCIAL SERVICES,PRIVATE,Revenue,EXTERNAL RESIDENTIAL CARE,907142,130245330,24/03/2016,"12,833.78",ACH OF LONDON LLP,SP0001688
WANDSWORTH COUNCIL,ASC,SOCIAL SERVICES,PRIVATE,Revenue,EXTERNAL RESIDENTIAL CARE,889155,130245330,03/03/2016,"9,560.14",SALISBURY SUPPORT 4 AUTISM LTD,SP0001691
WANDSWORTH COUNCIL,ASC,SOCIAL SERVICES,PRIVATE,Revenue,EXTERNAL RESIDENTIAL CARE,907146,130245330,24/03/2016,"7,581.49",PATHWAY HEALTHCARE,SP0001779
WANDSWORTH COUNCIL,ASC,SOCIAL SERVICES,PRIVATE,Revenue,EXTERNAL RESIDENTIAL CARE,907147,130245330,24/03/2016,"7,134.21",PATHWAY HEALTHCARE,SP0001779
WANDSWORTH COUNCIL,ASC,SOCIAL SERVICES,PRIVATE,Revenue,EXTERNAL RESIDENTIAL CARE,889124,130245330,03/03/2016,"11,057.48",KISIMUL GROUP LTD,SP0002487
WANDSWORTH COUNCIL,ASC,SOCIAL SERVICES,PRIVATE,Revenue,EXTERNAL RESIDENTIAL CARE,891379,130245330,07/03/2016,"6,408.96",THE BRANDON TRUST,SP0005337
WANDSWORTH COUNCIL,ASC,SOCIAL SERVICES,PRIVATE,Revenue,EXTERNAL RESIDENTIAL CARE,892602,130245330,09/03/2016,"2,755.56",HASTINGS & BEXHILL MENCAP SOCIETY,SP0005380
WANDSWORTH COUNCIL,ASC,SOCIAL SERVICES,PRIVATE,Revenue,EXTERNAL RESIDENTIAL CARE,903974,130245330,22/03/2016,"2,993.72",INGLESIDE CHILDRENS HOME LTD,SP0005426
WANDSWORTH COUNCIL,ASC,SOCIAL SERVICES,PRIVATE,Revenue,EXTERNAL RESIDENTIAL CARE,891980,130245330,08/03/2016,"5,980.80",ENHAM,SP0005845
WANDSWORTH COUNCIL,ASC,SOCIAL SERVICES,PRIVATE,Revenue,EXTERNAL RESIDENTIAL CARE,906708,130245330,23/03/2016,"5,980.80",ENHAM,SP0005845
WANDSWORTH COUNCIL,ASC,SOCIAL SERVICES,PRIVATE,Revenue,EXTERNAL RESIDENTIAL CARE,889147,130245330,03/03/2016,"4,566.84",ALLIED CARE LTD T/A ASHSTEAD HOUSE LTD,SP0009950
WANDSWORTH COUNCIL,ASC,SOCIAL SERVICES,PRIVATE,Revenue,EXTERNAL RESIDENTIAL CARE,889148,130245330,03/03/2016,"5,489.40",ALLIED CARE LTD T/A ASHSTEAD HOUSE LTD,SP0009950
WANDSWORTH COUNCIL,ASC,SOCIAL SERVICES,PRIVATE,Revenue,EXTERNAL RESIDENTIAL CARE,903942,130245330,22/03/2016,"7,420.00",C.H.O.I.C.E LIMITED,SP0010438
WANDSWORTH COUNCIL,ASC,SOCIAL SERVICES,PRIVATE,Revenue,EXTERNAL RESIDENTIAL CARE,900012,130245330,17/03/2016,"9,861.00","CRAEGMOOR, PARKCARE HOMES (NO2) LTD TA W",SP0010529
WANDSWORTH COUNCIL,ASC,SOCIAL SERVICES,PRIVATE,Revenue,EXTERNAL RESIDENTIAL CARE,891396,130245330,07/03/2016,"4,477.07",CAMBIAN LEARNING DISABILITIES MIDLANDS,SP0010672
WANDSWORTH COUNCIL,ASC,SOCIAL SERVICES,PRIVATE,Revenue,EXTERNAL RESIDENTIAL CARE,891397,130245330,07/03/2016,"13,878.92",CAMBIAN LEARNING DISABILITIES MIDLANDS,SP0010672
WANDSWORTH COUNCIL,ASC,SOCIAL SERVICES,PRIVATE,Revenue,EXTERNAL RESIDENTIAL CARE,891398,130245330,07/03/2016,"12,540.51",CAMBIAN LEARNING DISABILITIES MIDLANDS,SP0010672
WANDSWORTH COUNCIL,ASC,SOCIAL SERVICES,PRIVATE,Revenue,EXTERNAL RESI RESPITE CARE,897779,130245340,16/03/2016,707.10,ST MARYS RESIDENTIAL HOME,SP0000215
WANDSWORTH COUNCIL,ASC,SOCIAL SERVICES,PRIVATE,Revenue,EXTERNAL RESI RESPITE CARE,891373,130245340,07/03/2016,"2,088.00",THE BRANDON TRUST,SP0005337
WANDSWORTH COUNCIL,ASC,SOCIAL SERVICES,PRIVATE,Revenue,EXTERNAL RESI RESPITE CARE,891374,130245340,07/03/2016,"3,831.46",THE BRANDON TRUST,SP0005337
WANDSWORTH COUNCIL,ASC,SOCIAL SERVICES,PRIVATE,Revenue,EXTERNAL RESI RESPITE CARE,891375,130245340,07/03/2016,"2,153.57",THE BRANDON TRUST,SP0005337
WANDSWORTH COUNCIL,ASC,SOCIAL SERVICES,PRIVATE,Revenue,EXTERNAL RESI RESPITE CARE,891376,130245340,07/03/2016,"4,695.00",THE BRANDON TRUST,SP0005337
WANDSWORTH COUNCIL,ASC,SOCIAL SERVICES,PRIVATE,Revenue,EXTERNAL RESI RESPITE CARE,891377,130245340,07/03/2016,860.00,THE BRANDON TRUST,SP0005337
WANDSWORTH COUNCIL,ASC,SOCIAL SERVICES,PRIVATE,Revenue,EXTERNAL RESI RESPITE CARE,891378,130245340,07/03/2016,"1,075.00",THE BRANDON TRUST,SP0005337
WANDSWORTH COUNCIL,ASC,SOCIAL SERVICES,PRIVATE,Revenue,ONE TO ONE CARE,894802,130246220,11/03/2016,838.20,RAINBOW MEDICAL SERVICES,SP0000037
WANDSWORTH COUNCIL,ASC,SOCIAL SERVICES,PRIVATE,Revenue,ONE TO ONE CARE,894803,130246220,11/03/2016,"2,133.60",RAINBOW MEDICAL SERVICES,SP0000037
WANDSWORTH COUNCIL,ASC,SOCIAL SERVICES,PRIVATE,Revenue,ONE TO ONE CARE,894805,130246220,11/03/2016,"1,553.60",RAINBOW MEDICAL SERVICES,SP0000037
WANDSWORTH COUNCIL,ASC,SOCIAL SERVICES,PRIVATE,Revenue,ONE TO ONE CARE,908838,130246220,29/03/2016,"1,619.00",ASIAN ELDERS SUPPORT SCHEME,SP0000190
WANDSWORTH COUNCIL,ASC,SOCIAL SERVICES,PRIVATE,Revenue,ONE TO ONE CARE,908833,130246220,29/03/2016,693.78,ST MARYS RESIDENTIAL HOME,SP0000215
WANDSWORTH COUNCIL,ASC,SOCIAL SERVICES,PRIVATE,Revenue,ONE TO ONE CARE,908834,130246220,29/03/2016,648.83,ST MARYS RESIDENTIAL HOME,SP0000215
WANDSWORTH COUNCIL,ASC,SOCIAL SERVICES,PRIVATE,Revenue,ONE TO ONE CARE,887050,130246220,01/03/2016,"1,963.85",RESIDENTIAL COMMUNITY CARE,SP0000315
WANDSWORTH COUNCIL,ASC,SOCIAL SERVICES,PRIVATE,Revenue,ONE TO ONE CARE,903922,130246220,22/03/2016,"1,963.84",RESIDENTIAL COMMUNITY CARE,SP0000315
WANDSWORTH COUNCIL,ASC,SOCIAL SERVICES,PRIVATE,Revenue,ONE TO ONE CARE,907991,130246220,24/03/2016,"1,837.15",RESIDENTIAL COMMUNITY CARE,SP0000315
WANDSWORTH COUNCIL,ASC,SOCIAL SERVICES,PRIVATE,Revenue,ONE TO ONE CARE,892899,130246220,09/03/2016,547.60,LIFEWAYS COMMUNITY CARE LTD,SP0000364
WANDSWORTH COUNCIL,ASC,SOCIAL SERVICES,PRIVATE,Revenue,ONE TO ONE CARE,897018,130246220,15/03/2016,547.60,LIFEWAYS COMMUNITY CARE LTD,SP0000364
WANDSWORTH COUNCIL,ASC,SOCIAL SERVICES,PRIVATE,Revenue,ONE TO ONE CARE,894809,130246220,11/03/2016,994.29,VOYAGE CARE LTD,SP0000366
WANDSWORTH COUNCIL,ASC,SOCIAL SERVICES,PRIVATE,Revenue,ONE TO ONE CARE,897952,130246220,16/03/2016,12.79,MACINTYRE CARE,SP0000473
WANDSWORTH COUNCIL,ASC,SOCIAL SERVICES,PRIVATE,Revenue,ONE TO ONE CARE,897987,130246220,16/03/2016,"1,350.52",MACINTYRE CARE,SP0000473
WANDSWORTH COUNCIL,ASC,SOCIAL SERVICES,PRIVATE,Revenue,ONE TO ONE CARE,897988,130246220,16/03/2016,"1,350.52",MACINTYRE CARE,SP0000473
WANDSWORTH COUNCIL,ASC,SOCIAL SERVICES,PRIVATE,Revenue,ONE TO ONE CARE,897989,130246220,16/03/2016,"1,910.04",MACINTYRE CARE,SP0000473
WANDSWORTH COUNCIL,ASC,SOCIAL SERVICES,PRIVATE,Revenue,ONE TO ONE CARE,897990,130246220,16/03/2016,"1,350.52",MACINTYRE CARE,SP0000473
WANDSWORTH COUNCIL,ASC,SOCIAL SERVICES,PRIVATE,Revenue,ONE TO ONE CARE,897991,130246220,16/03/2016,694.56,MACINTYRE CARE,SP0000473
WANDSWORTH COUNCIL,ASC,SOCIAL SERVICES,PRIVATE,Revenue,ONE TO ONE CARE,892887,130246220,09/03/2016,"1,164.40",THE COMMUNITY CARE COMPANY UK LTD,SP0000576
WANDSWORTH COUNCIL,ASC,SOCIAL SERVICES,PRIVATE,Revenue,ONE TO ONE CARE,892888,130246220,09/03/2016,"1,327.95",THE COMMUNITY CARE COMPANY UK LTD,SP0000576
WANDSWORTH COUNCIL,ASC,SOCIAL SERVICES,PRIVATE,Revenue,ONE TO ONE CARE,892889,130246220,09/03/2016,"2,718.72",METROPOLITAN HOUSING TRUST,SP0000626
WANDSWORTH COUNCIL,ASC,SOCIAL SERVICES,PRIVATE,Revenue,ONE TO ONE CARE,892892,130246220,09/03/2016,"2,459.52",METROPOLITAN HOUSING TRUST,SP0000626
WANDSWORTH COUNCIL,ASC,SOCIAL SERVICES,PRIVATE,Revenue,ONE TO ONE CARE,892893,130246220,09/03/2016,"2,039.04",METROPOLITAN HOUSING TRUST,SP0000626
WANDSWORTH COUNCIL,ASC,SOCIAL SERVICES,PRIVATE,Revenue,ONE TO ONE CARE,892895,130246220,09/03/2016,"1,844.64",METROPOLITAN HOUSING TRUST,SP0000626
WANDSWORTH COUNCIL,ASC,SOCIAL SERVICES,PRIVATE,Revenue,ONE TO ONE CARE,895713,130246220,14/03/2016,"2,320.00",STALLCOMBE HOUSE,SP0000843
WANDSWORTH COUNCIL,ASC,SOCIAL SERVICES,PRIVATE,Revenue,ONE TO ONE CARE,900104,130246220,17/03/2016,"2,480.00",STALLCOMBE HOUSE,SP0000843
WANDSWORTH COUNCIL,ASC,SOCIAL SERVICES,PRIVATE,Revenue,ONE TO ONE CARE,900009,130246220,17/03/2016,"1,600.44",CORICH COMMUNITY CARE LTD,SP0000915
WANDSWORTH COUNCIL,ASC,SOCIAL SERVICES,PRIVATE,Revenue,ONE TO ONE CARE,900517,130246220,17/03/2016,"1,364.00",HILL PARK AUTISTIC TRUST,SP0000926
WANDSWORTH COUNCIL,ASC,SOCIAL SERVICES,PRIVATE,Revenue,ONE TO ONE CARE,904014,130246220,22/03/2016,"2,884.77",DOWNING (CHERTSEY ROAD) LTD,SP0000959
WANDSWORTH COUNCIL,ASC,SOCIAL SERVICES,PRIVATE,Revenue,ONE TO ONE CARE,897064,130246220,15/03/2016,"1,597.44",TOTTERDOWN,SP0001113
WANDSWORTH COUNCIL,ASC,SOCIAL SERVICES,PRIVATE,Revenue,ONE TO ONE CARE,893060,130246220,09/03/2016,590.40,FRONTIER SUPPORT SERVICES LTD,SP0001132
WANDSWORTH COUNCIL,ASC,SOCIAL SERVICES,PRIVATE,Revenue,ONE TO ONE CARE,893067,130246220,09/03/2016,708.24,FRONTIER SUPPORT SERVICES LTD,SP0001132
WANDSWORTH COUNCIL,ASC,SOCIAL SERVICES,PRIVATE,Revenue,ONE TO ONE CARE,892896,130246220,09/03/2016,919.44,HARROW MENCAP,SP0001347
WANDSWORTH COUNCIL,ASC,SOCIAL SERVICES,PRIVATE,Revenue,ONE TO ONE CARE,892897,130246220,09/03/2016,802.08,LARKFIELD HALL LTD T/A PEPENBURY,SP0001378
WANDSWORTH COUNCIL,ASC,SOCIAL SERVICES,PRIVATE,Revenue,ONE TO ONE CARE,892898,130246220,09/03/2016,802.08,LARKFIELD HALL LTD T/A PEPENBURY,SP0001378
WANDSWORTH COUNCIL,ASC,SOCIAL SERVICES,PRIVATE,Revenue,ONE TO ONE CARE,892884,130246220,09/03/2016,"3,000.00",CRAEGMOOR OLD RECTORY BREDE PRIORY,SP0001621
WANDSWORTH COUNCIL,ASC,SOCIAL SERVICES,PRIVATE,Revenue,ONE TO ONE CARE,906837,130246220,23/03/2016,"2,018.10",ACH OF LONDON LLP,SP0001688
WANDSWORTH COUNCIL,ASC,SOCIAL SERVICES,PRIVATE,Revenue,ONE TO ONE CARE,891456,130246220,07/03/2016,662.40,THE BRANDON TRUST,SP0005337
WANDSWORTH COUNCIL,ASC,SOCIAL SERVICES,PRIVATE,Revenue,ONE TO ONE CARE,892943,130246220,09/03/2016,324.00,THE BRANDON TRUST,SP0005337
WANDSWORTH COUNCIL,ASC,SOCIAL SERVICES,PRIVATE,Revenue,ONE TO ONE CARE,892973,130246220,09/03/2016,"1,987.20",THE BRANDON TRUST,SP0005337
WANDSWORTH COUNCIL,ASC,SOCIAL SERVICES,PRIVATE,Revenue,ONE TO ONE CARE,892974,130246220,09/03/2016,"1,312.00",THE BRANDON TRUST,SP0005337
WANDSWORTH COUNCIL,ASC,SOCIAL SERVICES,PRIVATE,Revenue,ONE TO ONE CARE,892977,130246220,09/03/2016,"2,450.88",THE BRANDON TRUST,SP0005337
WANDSWORTH COUNCIL,ASC,SOCIAL SERVICES,PRIVATE,Revenue,ONE TO ONE CARE,893023,130246220,09/03/2016,600.04,THE BRANDON TRUST,SP0005337
WANDSWORTH COUNCIL,ASC,SOCIAL SERVICES,PRIVATE,Revenue,ONE TO ONE CARE,893031,130246220,09/03/2016,331.20,THE BRANDON TRUST,SP0005337
WANDSWORTH COUNCIL,ASC,SOCIAL SERVICES,PRIVATE,Revenue,ONE TO ONE CARE,893033,130246220,09/03/2016,331.20,THE BRANDON TRUST,SP0005337
WANDSWORTH COUNCIL,ASC,SOCIAL SERVICES,PRIVATE,Revenue,ONE TO ONE CARE,908050,130246220,24/03/2016,324.00,THE BRANDON TRUST,SP0005337
WANDSWORTH COUNCIL,ASC,SOCIAL SERVICES,PRIVATE,Revenue,ONE TO ONE CARE,908093,130246220,24/03/2016,"1,987.20",THE BRANDON TRUST,SP0005337
WANDSWORTH COUNCIL,ASC,SOCIAL SERVICES,PRIVATE,Revenue,ONE TO ONE CARE,908094,130246220,24/03/2016,"1,312.00",THE BRANDON TRUST,SP0005337
WANDSWORTH COUNCIL,ASC,SOCIAL SERVICES,PRIVATE,Revenue,ONE TO ONE CARE,908097,130246220,24/03/2016,"2,450.88",THE BRANDON TRUST,SP0005337
WANDSWORTH COUNCIL,ASC,SOCIAL SERVICES,VOL ASS,Revenue,SUPPORTED HOUSING PROGRAMME,901897,130248030,21/03/2016,"3,247.28",HARINGEY ASSOCIATION FOR INDEPENDENT LIV,SP0000222
WANDSWORTH COUNCIL,ASC,SOCIAL SERVICES,VOL ASS,Revenue,SUPPORTED HOUSING PROGRAMME,901898,130248030,21/03/2016,"1,521.52",HARINGEY ASSOCIATION FOR INDEPENDENT LIV,SP0000222
WANDSWORTH COUNCIL,ASC,SOCIAL SERVICES,VOL ASS,Revenue,SUPPORTED HOUSING PROGRAMME,896489,130248030,14/03/2016,"5,543.72",NORWOOD SCHOOLS LTD,SP0000332
WANDSWORTH COUNCIL,ASC,SOCIAL SERVICES,VOL ASS,Revenue,SUPPORTED HOUSING PROGRAMME,892900,130248030,09/03/2016,"3,885.44",LIFEWAYS COMMUNITY CARE LTD,SP0000364
WANDSWORTH COUNCIL,ASC,SOCIAL SERVICES,VOL ASS,Revenue,SUPPORTED HOUSING PROGRAMME,892901,130248030,09/03/2016,"2,596.04",LIFEWAYS COMMUNITY CARE LTD,SP0000364
WANDSWORTH COUNCIL,ASC,SOCIAL SERVICES,VOL ASS,Revenue,SUPPORTED HOUSING PROGRAMME,892902,130248030,09/03/2016,"2,166.24",LIFEWAYS COMMUNITY CARE LTD,SP0000364
WANDSWORTH COUNCIL,ASC,SOCIAL SERVICES,VOL ASS,Revenue,SUPPORTED HOUSING PROGRAMME,892903,130248030,09/03/2016,"2,227.64",LIFEWAYS COMMUNITY CARE LTD,SP0000364
WANDSWORTH COUNCIL,ASC,SOCIAL SERVICES,VOL ASS,Revenue,SUPPORTED HOUSING PROGRAMME,892904,130248030,09/03/2016,"1,982.04",LIFEWAYS COMMUNITY CARE LTD,SP0000364
WANDSWORTH COUNCIL,ASC,SOCIAL SERVICES,VOL ASS,Revenue,SUPPORTED HOUSING PROGRAMME,892906,130248030,09/03/2016,"2,289.04",LIFEWAYS COMMUNITY CARE LTD,SP0000364
WANDSWORTH COUNCIL,ASC,SOCIAL SERVICES,VOL ASS,Revenue,SUPPORTED HOUSING PROGRAMME,892907,130248030,09/03/2016,"1,982.04",LIFEWAYS COMMUNITY CARE LTD,SP0000364
WANDSWORTH COUNCIL,ASC,SOCIAL SERVICES,VOL ASS,Revenue,SUPPORTED HOUSING PROGRAMME,892908,130248030,09/03/2016,"2,227.64",LIFEWAYS COMMUNITY CARE LTD,SP0000364
WANDSWORTH COUNCIL,ASC,SOCIAL SERVICES,VOL ASS,Revenue,SUPPORTED HOUSING PROGRAMME,892909,130248030,09/03/2016,"2,411.84",LIFEWAYS COMMUNITY CARE LTD,SP0000364
WANDSWORTH COUNCIL,ASC,SOCIAL SERVICES,VOL ASS,Revenue,SUPPORTED HOUSING PROGRAMME,892910,130248030,09/03/2016,"1,736.44",LIFEWAYS COMMUNITY CARE LTD,SP0000364
WANDSWORTH COUNCIL,ASC,SOCIAL SERVICES,VOL ASS,Revenue,SUPPORTED HOUSING PROGRAMME,892911,130248030,09/03/2016,"1,920.64",LIFEWAYS COMMUNITY CARE LTD,SP0000364
WANDSWORTH COUNCIL,ASC,SOCIAL SERVICES,VOL ASS,Revenue,SUPPORTED HOUSING PROGRAMME,892912,130248030,09/03/2016,"3,210.04",LIFEWAYS COMMUNITY CARE LTD,SP0000364
WANDSWORTH COUNCIL,ASC,SOCIAL SERVICES,VOL ASS,Revenue,SUPPORTED HOUSING PROGRAMME,892913,130248030,09/03/2016,571.20,LIFEWAYS COMMUNITY CARE LTD,SP0000364
WANDSWORTH COUNCIL,ASC,SOCIAL SERVICES,VOL ASS,Revenue,SUPPORTED HOUSING PROGRAMME,892916,130248030,09/03/2016,"2,394.20",LIFEWAYS COMMUNITY CARE LTD,SP0000364
WANDSWORTH COUNCIL,ASC,SOCIAL SERVICES,VOL ASS,Revenue,SUPPORTED HOUSING PROGRAMME,892917,130248030,09/03/2016,"2,551.16",LIFEWAYS COMMUNITY CARE LTD,SP0000364
WANDSWORTH COUNCIL,ASC,SOCIAL SERVICES,VOL ASS,Revenue,SUPPORTED HOUSING PROGRAMME,892918,130248030,09/03/2016,"3,335.96",LIFEWAYS COMMUNITY CARE LTD,SP0000364
WANDSWORTH COUNCIL,ASC,SOCIAL SERVICES,VOL ASS,Revenue,SUPPORTED HOUSING PROGRAMME,892919,130248030,09/03/2016,"2,603.48",LIFEWAYS COMMUNITY CARE LTD,SP0000364
WANDSWORTH COUNCIL,ASC,SOCIAL SERVICES,VOL ASS,Revenue,SUPPORTED HOUSING PROGRAMME,892920,130248030,09/03/2016,"2,969.72",LIFEWAYS COMMUNITY CARE LTD,SP0000364
WANDSWORTH COUNCIL,ASC,SOCIAL SERVICES,VOL ASS,Revenue,SUPPORTED HOUSING PROGRAMME,892921,130248030,09/03/2016,"2,341.88",LIFEWAYS COMMUNITY CARE LTD,SP0000364
WANDSWORTH COUNCIL,ASC,SOCIAL SERVICES,VOL ASS,Revenue,SUPPORTED HOUSING PROGRAMME,892922,130248030,09/03/2016,"2,551.16",LIFEWAYS COMMUNITY CARE LTD,SP0000364
WANDSWORTH COUNCIL,ASC,SOCIAL SERVICES,VOL ASS,Revenue,SUPPORTED HOUSING PROGRAMME,892923,130248030,09/03/2016,"1,444.56",LIFEWAYS COMMUNITY CARE LTD,SP0000364
WANDSWORTH COUNCIL,ASC,SOCIAL SERVICES,VOL ASS,Revenue,SUPPORTED HOUSING PROGRAMME,892924,130248030,09/03/2016,"2,025.24",LIFEWAYS COMMUNITY CARE LTD,SP0000364
WANDSWORTH COUNCIL,ASC,SOCIAL SERVICES,VOL ASS,Revenue,SUPPORTED HOUSING PROGRAMME,892925,130248030,09/03/2016,"2,025.24",LIFEWAYS COMMUNITY CARE LTD,SP0000364
WANDSWORTH COUNCIL,ASC,SOCIAL SERVICES,VOL ASS,Revenue,SUPPORTED HOUSING PROGRAMME,892926,130248030,09/03/2016,"2,025.24",LIFEWAYS COMMUNITY CARE LTD,SP0000364
WANDSWORTH COUNCIL,ASC,SOCIAL SERVICES,VOL ASS,Revenue,SUPPORTED HOUSING PROGRAMME,892927,130248030,09/03/2016,"2,244.28",LIFEWAYS COMMUNITY CARE LTD,SP0000364
WANDSWORTH COUNCIL,ASC,SOCIAL SERVICES,VOL ASS,Revenue,SUPPORTED HOUSING PROGRAMME,892928,130248030,09/03/2016,"2,518.08",LIFEWAYS COMMUNITY CARE LTD,SP0000364
WANDSWORTH COUNCIL,ASC,SOCIAL SERVICES,VOL ASS,Revenue,SUPPORTED HOUSING PROGRAMME,892929,130248030,09/03/2016,"2,025.24",LIFEWAYS COMMUNITY CARE LTD,SP0000364
WANDSWORTH COUNCIL,ASC,SOCIAL SERVICES,VOL ASS,Revenue,SUPPORTED HOUSING PROGRAMME,892930,130248030,09/03/2016,"2,244.28",LIFEWAYS COMMUNITY CARE LTD,SP0000364
WANDSWORTH COUNCIL,ASC,SOCIAL SERVICES,VOL ASS,Revenue,SUPPORTED HOUSING PROGRAMME,892931,130248030,09/03/2016,"1,860.96",LIFEWAYS COMMUNITY CARE LTD,SP0000364
WANDSWORTH COUNCIL,ASC,SOCIAL SERVICES,VOL ASS,Revenue,SUPPORTED HOUSING PROGRAMME,892932,130248030,09/03/2016,"2,345.32",LIFEWAYS COMMUNITY CARE LTD,SP0000364
WANDSWORTH COUNCIL,ASC,SOCIAL SERVICES,VOL ASS,Revenue,SUPPORTED HOUSING PROGRAMME,892933,130248030,09/03/2016,"2,867.20",LIFEWAYS COMMUNITY CARE LTD,SP0000364
WANDSWORTH COUNCIL,ASC,SOCIAL SERVICES,VOL ASS,Revenue,SUPPORTED HOUSING PROGRAMME,892935,130248030,09/03/2016,"2,655.80",LIFEWAYS COMMUNITY CARE LTD,SP0000364
WANDSWORTH COUNCIL,ASC,SOCIAL SERVICES,VOL ASS,Revenue,SUPPORTED HOUSING PROGRAMME,897019,130248030,15/03/2016,"3,885.44",LIFEWAYS COMMUNITY CARE LTD,SP0000364
WANDSWORTH COUNCIL,ASC,SOCIAL SERVICES,VOL ASS,Revenue,SUPPORTED HOUSING PROGRAMME,897020,130248030,15/03/2016,"2,596.04",LIFEWAYS COMMUNITY CARE LTD,SP0000364
WANDSWORTH COUNCIL,ASC,SOCIAL SERVICES,VOL ASS,Revenue,SUPPORTED HOUSING PROGRAMME,897021,130248030,15/03/2016,"2,166.24",LIFEWAYS COMMUNITY CARE LTD,SP0000364
WANDSWORTH COUNCIL,ASC,SOCIAL SERVICES,VOL ASS,Revenue,SUPPORTED HOUSING PROGRAMME,897022,130248030,15/03/2016,"2,227.64",LIFEWAYS COMMUNITY CARE LTD,SP0000364
WANDSWORTH COUNCIL,ASC,SOCIAL SERVICES,VOL ASS,Revenue,SUPPORTED HOUSING PROGRAMME,897023,130248030,15/03/2016,"1,982.04",LIFEWAYS COMMUNITY CARE LTD,SP0000364
WANDSWORTH COUNCIL,ASC,SOCIAL SERVICES,VOL ASS,Revenue,SUPPORTED HOUSING PROGRAMME,897025,130248030,15/03/2016,"2,289.04",LIFEWAYS COMMUNITY CARE LTD,SP0000364
WANDSWORTH COUNCIL,ASC,SOCIAL SERVICES,VOL ASS,Revenue,SUPPORTED HOUSING PROGRAMME,897026,130248030,15/03/2016,"1,982.04",LIFEWAYS COMMUNITY CARE LTD,SP0000364
WANDSWORTH COUNCIL,ASC,SOCIAL SERVICES,VOL ASS,Revenue,SUPPORTED HOUSING PROGRAMME,897027,130248030,15/03/2016,"2,227.64",LIFEWAYS COMMUNITY CARE LTD,SP0000364
WANDSWORTH COUNCIL,ASC,SOCIAL SERVICES,VOL ASS,Revenue,SUPPORTED HOUSING PROGRAMME,897028,130248030,15/03/2016,"2,411.84",LIFEWAYS COMMUNITY CARE LTD,SP0000364
WANDSWORTH COUNCIL,ASC,SOCIAL SERVICES,VOL ASS,Revenue,SUPPORTED HOUSING PROGRAMME,897029,130248030,15/03/2016,"1,736.44",LIFEWAYS COMMUNITY CARE LTD,SP0000364
WANDSWORTH COUNCIL,ASC,SOCIAL SERVICES,VOL ASS,Revenue,SUPPORTED HOUSING PROGRAMME,897030,130248030,15/03/2016,"1,920.64",LIFEWAYS COMMUNITY CARE LTD,SP0000364
WANDSWORTH COUNCIL,ASC,SOCIAL SERVICES,VOL ASS,Revenue,SUPPORTED HOUSING PROGRAMME,897031,130248030,15/03/2016,"3,210.04",LIFEWAYS COMMUNITY CARE LTD,SP0000364
WANDSWORTH COUNCIL,ASC,SOCIAL SERVICES,VOL ASS,Revenue,SUPPORTED HOUSING PROGRAMME,897034,130248030,15/03/2016,"2,394.20",LIFEWAYS COMMUNITY CARE LTD,SP0000364
WANDSWORTH COUNCIL,ASC,SOCIAL SERVICES,VOL ASS,Revenue,SUPPORTED HOUSING PROGRAMME,897035,130248030,15/03/2016,"2,551.16",LIFEWAYS COMMUNITY CARE LTD,SP0000364
WANDSWORTH COUNCIL,ASC,SOCIAL SERVICES,VOL ASS,Revenue,SUPPORTED HOUSING PROGRAMME,897036,130248030,15/03/2016,"3,335.96",LIFEWAYS COMMUNITY CARE LTD,SP0000364
WANDSWORTH COUNCIL,ASC,SOCIAL SERVICES,VOL ASS,Revenue,SUPPORTED HOUSING PROGRAMME,897037,130248030,15/03/2016,"2,603.48",LIFEWAYS COMMUNITY CARE LTD,SP0000364
WANDSWORTH COUNCIL,ASC,SOCIAL SERVICES,VOL ASS,Revenue,SUPPORTED HOUSING PROGRAMME,897038,130248030,15/03/2016,"2,969.72",LIFEWAYS COMMUNITY CARE LTD,SP0000364
WANDSWORTH COUNCIL,ASC,SOCIAL SERVICES,VOL ASS,Revenue,SUPPORTED HOUSING PROGRAMME,897039,130248030,15/03/2016,"2,341.88",LIFEWAYS COMMUNITY CARE LTD,SP0000364
WANDSWORTH COUNCIL,ASC,SOCIAL SERVICES,VOL ASS,Revenue,SUPPORTED HOUSING PROGRAMME,897040,130248030,15/03/2016,"2,551.16",LIFEWAYS COMMUNITY CARE LTD,SP0000364
WANDSWORTH COUNCIL,ASC,SOCIAL SERVICES,VOL ASS,Revenue,SUPPORTED HOUSING PROGRAMME,897041,130248030,15/03/2016,"1,444.56",LIFEWAYS COMMUNITY CARE LTD,SP0000364
WANDSWORTH COUNCIL,ASC,SOCIAL SERVICES,VOL ASS,Revenue,SUPPORTED HOUSING PROGRAMME,897042,130248030,15/03/2016,"2,025.24",LIFEWAYS COMMUNITY CARE LTD,SP0000364
WANDSWORTH COUNCIL,ASC,SOCIAL SERVICES,VOL ASS,Revenue,SUPPORTED HOUSING PROGRAMME,897043,130248030,15/03/2016,"2,025.24",LIFEWAYS COMMUNITY CARE LTD,SP0000364
WANDSWORTH COUNCIL,ASC,SOCIAL SERVICES,VOL ASS,Revenue,SUPPORTED HOUSING PROGRAMME,897044,130248030,15/03/2016,"2,025.24",LIFEWAYS COMMUNITY CARE LTD,SP0000364
WANDSWORTH COUNCIL,ASC,SOCIAL SERVICES,VOL ASS,Revenue,SUPPORTED HOUSING PROGRAMME,897045,130248030,15/03/2016,"2,244.28",LIFEWAYS COMMUNITY CARE LTD,SP0000364
WANDSWORTH COUNCIL,ASC,SOCIAL SERVICES,VOL ASS,Revenue,SUPPORTED HOUSING PROGRAMME,897046,130248030,15/03/2016,"2,518.08",LIFEWAYS COMMUNITY CARE LTD,SP0000364
WANDSWORTH COUNCIL,ASC,SOCIAL SERVICES,VOL ASS,Revenue,SUPPORTED HOUSING PROGRAMME,897047,130248030,15/03/2016,"2,025.24",LIFEWAYS COMMUNITY CARE LTD,SP0000364
WANDSWORTH COUNCIL,ASC,SOCIAL SERVICES,VOL ASS,Revenue,SUPPORTED HOUSING PROGRAMME,897048,130248030,15/03/2016,"2,244.28",LIFEWAYS COMMUNITY CARE LTD,SP0000364
WANDSWORTH COUNCIL,ASC,SOCIAL SERVICES,VOL ASS,Revenue,SUPPORTED HOUSING PROGRAMME,897049,130248030,15/03/2016,"1,860.96",LIFEWAYS COMMUNITY CARE LTD,SP0000364
WANDSWORTH COUNCIL,ASC,SOCIAL SERVICES,VOL ASS,Revenue,SUPPORTED HOUSING PROGRAMME,897050,130248030,15/03/2016,"2,345.32",LIFEWAYS COMMUNITY CARE LTD,SP0000364
WANDSWORTH COUNCIL,ASC,SOCIAL SERVICES,VOL ASS,Revenue,SUPPORTED HOUSING PROGRAMME,897051,130248030,15/03/2016,"2,867.20",LIFEWAYS COMMUNITY CARE LTD,SP0000364
WANDSWORTH COUNCIL,ASC,SOCIAL SERVICES,VOL ASS,Revenue,SUPPORTED HOUSING PROGRAMME,900027,130248030,17/03/2016,"7,972.24",CHOICE SUPPORT,SP0000398
WANDSWORTH COUNCIL,ASC,SOCIAL SERVICES,VOL ASS,Revenue,SUPPORTED HOUSING PROGRAMME,897983,130248030,16/03/2016,"1,687.76",C M CARE LTD,SP0000455
WANDSWORTH COUNCIL,ASC,SOCIAL SERVICES,VOL ASS,Revenue,SUPPORTED HOUSING PROGRAMME,889537,130248030,03/03/2016,"3,035.71",CAREOLINE,SP0000483
WANDSWORTH COUNCIL,ASC,SOCIAL SERVICES,VOL ASS,Revenue,SUPPORTED HOUSING PROGRAMME,889538,130248030,03/03/2016,"5,000.00",CAREOLINE,SP0000483
WANDSWORTH COUNCIL,ASC,SOCIAL SERVICES,VOL ASS,Revenue,SUPPORTED HOUSING PROGRAMME,905125,130248030,22/03/2016,"4,226.22",CAREOLINE,SP0000483
WANDSWORTH COUNCIL,ASC,SOCIAL SERVICES,VOL ASS,Revenue,SUPPORTED HOUSING PROGRAMME,908081,130248030,24/03/2016,"5,000.00",CAREOLINE,SP0000483
WANDSWORTH COUNCIL,ASC,SOCIAL SERVICES,VOL ASS,Revenue,SUPPORTED HOUSING PROGRAMME,902635,130248030,21/03/2016,"2,570.08",ROTHERHAM METROPOLITAN BOROUGH COUNCIL,SP0000720
WANDSWORTH COUNCIL,ASC,SOCIAL SERVICES,VOL ASS,Revenue,SUPPORTED HOUSING PROGRAMME,906232,130248030,23/03/2016,"2,570.08",ROTHERHAM METROPOLITAN BOROUGH COUNCIL,SP0000720
WANDSWORTH COUNCIL,ASC,SOCIAL SERVICES,VOL ASS,Revenue,SUPPORTED HOUSING PROGRAMME,889231,130248030,03/03/2016,"5,204.28",ROYAL MENCAP SOCIETY,SP0000842
WANDSWORTH COUNCIL,ASC,SOCIAL SERVICES,VOL ASS,Revenue,SUPPORTED HOUSING PROGRAMME,889232,130248030,03/03/2016,"2,251.52",ROYAL MENCAP SOCIETY,SP0000842
WANDSWORTH COUNCIL,ASC,SOCIAL SERVICES,VOL ASS,Revenue,SUPPORTED HOUSING PROGRAMME,889234,130248030,03/03/2016,"2,491.28",ROYAL MENCAP SOCIETY,SP0000842
WANDSWORTH COUNCIL,ASC,SOCIAL SERVICES,VOL ASS,Revenue,SUPPORTED HOUSING PROGRAMME,889236,130248030,03/03/2016,"2,441.20",ROYAL MENCAP SOCIETY,SP0000842
WANDSWORTH COUNCIL,ASC,SOCIAL SERVICES,VOL ASS,Revenue,SUPPORTED HOUSING PROGRAMME,889237,130248030,03/03/2016,"7,069.80",ROYAL MENCAP SOCIETY,SP0000842
WANDSWORTH COUNCIL,ASC,SOCIAL SERVICES,VOL ASS,Revenue,SUPPORTED HOUSING PROGRAMME,889238,130248030,03/03/2016,"3,273.32",ROYAL MENCAP SOCIETY,SP0000842
WANDSWORTH COUNCIL,ASC,SOCIAL SERVICES,VOL ASS,Revenue,SUPPORTED HOUSING PROGRAMME,889239,130248030,03/03/2016,897.32,ROYAL MENCAP SOCIETY,SP0000842
WANDSWORTH COUNCIL,ASC,SOCIAL SERVICES,VOL ASS,Revenue,SUPPORTED HOUSING PROGRAMME,889240,130248030,03/03/2016,"3,246.40",ROYAL MENCAP SOCIETY,SP0000842
WANDSWORTH COUNCIL,ASC,SOCIAL SERVICES,VOL ASS,Revenue,SUPPORTED HOUSING PROGRAMME,889241,130248030,03/03/2016,"1,748.04",ROYAL MENCAP SOCIETY,SP0000842
WANDSWORTH COUNCIL,ASC,SOCIAL SERVICES,VOL ASS,Revenue,SUPPORTED HOUSING PROGRAMME,900517,130248030,17/03/2016,577.92,HILL PARK AUTISTIC TRUST,SP0000926
WANDSWORTH COUNCIL,ASC,SOCIAL SERVICES,VOL ASS,Revenue,SUPPORTED HOUSING PROGRAMME,904013,130248030,22/03/2016,"5,274.03",ST ELIZABETHS CENTRE,SP0001019
WANDSWORTH COUNCIL,ASC,SOCIAL SERVICES,VOL ASS,Revenue,SUPPORTED HOUSING PROGRAMME,893054,130248030,09/03/2016,"1,535.04",FRONTIER SUPPORT SERVICES LTD,SP0001132
WANDSWORTH COUNCIL,ASC,SOCIAL SERVICES,VOL ASS,Revenue,SUPPORTED HOUSING PROGRAMME,893055,130248030,09/03/2016,"1,547.04",FRONTIER SUPPORT SERVICES LTD,SP0001132
WANDSWORTH COUNCIL,ASC,SOCIAL SERVICES,VOL ASS,Revenue,SUPPORTED HOUSING PROGRAMME,893056,130248030,09/03/2016,"15,870.84",FRONTIER SUPPORT SERVICES LTD,SP0001132
WANDSWORTH COUNCIL,ASC,SOCIAL SERVICES,VOL ASS,Revenue,SUPPORTED HOUSING PROGRAMME,893057,130248030,09/03/2016,"1,533.00",FRONTIER SUPPORT SERVICES LTD,SP0001132
WANDSWORTH COUNCIL,ASC,SOCIAL SERVICES,VOL ASS,Revenue,SUPPORTED HOUSING PROGRAMME,893059,130248030,09/03/2016,"1,353.32",FRONTIER SUPPORT SERVICES LTD,SP0001132
WANDSWORTH COUNCIL,ASC,SOCIAL SERVICES,VOL ASS,Revenue,SUPPORTED HOUSING PROGRAMME,893061,130248030,09/03/2016,"1,097.52",FRONTIER SUPPORT SERVICES LTD,SP0001132
WANDSWORTH COUNCIL,ASC,SOCIAL SERVICES,VOL ASS,Revenue,SUPPORTED HOUSING PROGRAMME,893062,130248030,09/03/2016,"1,685.92",FRONTIER SUPPORT SERVICES LTD,SP0001132
WANDSWORTH COUNCIL,ASC,SOCIAL SERVICES,VOL ASS,Revenue,SUPPORTED HOUSING PROGRAMME,893064,130248030,09/03/2016,"1,353.88",FRONTIER SUPPORT SERVICES LTD,SP0001132
WANDSWORTH COUNCIL,ASC,SOCIAL SERVICES,VOL ASS,Revenue,SUPPORTED HOUSING PROGRAMME,893066,130248030,09/03/2016,"1,864.88",FRONTIER SUPPORT SERVICES LTD,SP0001132
WANDSWORTH COUNCIL,ASC,SOCIAL SERVICES,VOL ASS,Revenue,SUPPORTED HOUSING PROGRAMME,893067,130248030,09/03/2016,"1,097.60",FRONTIER SUPPORT SERVICES LTD,SP0001132
WANDSWORTH COUNCIL,ASC,SOCIAL SERVICES,VOL ASS,Revenue,SUPPORTED HOUSING PROGRAMME,893068,130248030,09/03/2016,"1,251.12",FRONTIER SUPPORT SERVICES LTD,SP0001132
WANDSWORTH COUNCIL,ASC,SOCIAL SERVICES,VOL ASS,Revenue,SUPPORTED HOUSING PROGRAMME,893069,130248030,09/03/2016,657.80,FRONTIER SUPPORT SERVICES LTD,SP0001132
WANDSWORTH COUNCIL,ASC,SOCIAL SERVICES,VOL ASS,Revenue,SUPPORTED HOUSING PROGRAMME,893070,130248030,09/03/2016,"2,509.20",FRONTIER SUPPORT SERVICES LTD,SP0001132
WANDSWORTH COUNCIL,ASC,SOCIAL SERVICES,VOL ASS,Revenue,SUPPORTED HOUSING PROGRAMME,900518,130248030,17/03/2016,"8,453.33",PRECIOUS HOMES LTD,SP0001459
WANDSWORTH COUNCIL,ASC,SOCIAL SERVICES,VOL ASS,Revenue,SUPPORTED HOUSING PROGRAMME,900519,130248030,17/03/2016,"9,036.32",PRECIOUS HOMES LTD,SP0001459
WANDSWORTH COUNCIL,ASC,SOCIAL SERVICES,VOL ASS,Revenue,SUPPORTED HOUSING PROGRAMME,900520,130248030,17/03/2016,"2,684.57",PRECIOUS HOMES LTD,SP0001459
WANDSWORTH COUNCIL,ASC,SOCIAL SERVICES,VOL ASS,Revenue,SUPPORTED HOUSING PROGRAMME,900521,130248030,17/03/2016,"2,869.71",PRECIOUS HOMES LTD,SP0001459
WANDSWORTH COUNCIL,ASC,SOCIAL SERVICES,VOL ASS,Revenue,SUPPORTED HOUSING PROGRAMME,897066,130248030,15/03/2016,"5,614.28",INDEPENDENCE HOMES LTD,SP0004378
WANDSWORTH COUNCIL,ASC,SOCIAL SERVICES,VOL ASS,Revenue,SUPPORTED HOUSING PROGRAMME,897978,130248030,16/03/2016,"5,362.48",INDEPENDENCE HOMES LTD,SP0004378
WANDSWORTH COUNCIL,ASC,,VOL ASS,Revenue,SUPPORTED HOUSING PROGRAMME,863739,130248030,04/03/2016,"10,557.40",THE BRANDON TRUST,SP0005337
WANDSWORTH COUNCIL,ASC,,VOL ASS,Revenue,SUPPORTED HOUSING PROGRAMME,889115,130248030,24/03/2016,"10,557.40",THE BRANDON TRUST,SP0005337
WANDSWORTH COUNCIL,ASC,SOCIAL SERVICES,VOL ASS,Revenue,SUPPORTED HOUSING PROGRAMME,891457,130248030,07/03/2016,"4,687.20",THE BRANDON TRUST,SP0005337
WANDSWORTH COUNCIL,ASC,SOCIAL SERVICES,VOL ASS,Revenue,SUPPORTED HOUSING PROGRAMME,891458,130248030,07/03/2016,"1,499.04",THE BRANDON TRUST,SP0005337
WANDSWORTH COUNCIL,ASC,SOCIAL SERVICES,VOL ASS,Revenue,SUPPORTED HOUSING PROGRAMME,891460,130248030,07/03/2016,"1,499.04",THE BRANDON TRUST,SP0005337
WANDSWORTH COUNCIL,ASC,SOCIAL SERVICES,VOL ASS,Revenue,SUPPORTED HOUSING PROGRAMME,891473,130248030,07/03/2016,"4,688.56",THE BRANDON TRUST,SP0005337
WANDSWORTH COUNCIL,ASC,SOCIAL SERVICES,VOL ASS,Revenue,SUPPORTED HOUSING PROGRAMME,891478,130248030,07/03/2016,61.77,THE BRANDON TRUST,SP0005337
WANDSWORTH COUNCIL,ASC,SOCIAL SERVICES,VOL ASS,Revenue,SUPPORTED HOUSING PROGRAMME,892936,130248030,09/03/2016,"1,465.92",THE BRANDON TRUST,SP0005337
WANDSWORTH COUNCIL,ASC,SOCIAL SERVICES,VOL ASS,Revenue,SUPPORTED HOUSING PROGRAMME,892937,130248030,09/03/2016,"1,465.92",THE BRANDON TRUST,SP0005337
WANDSWORTH COUNCIL,ASC,SOCIAL SERVICES,VOL ASS,Revenue,SUPPORTED HOUSING PROGRAMME,892938,130248030,09/03/2016,"1,465.92",THE BRANDON TRUST,SP0005337
WANDSWORTH COUNCIL,ASC,SOCIAL SERVICES,VOL ASS,Revenue,SUPPORTED HOUSING PROGRAMME,892940,130248030,09/03/2016,"1,551.32",THE BRANDON TRUST,SP0005337
WANDSWORTH COUNCIL,ASC,SOCIAL SERVICES,VOL ASS,Revenue,SUPPORTED HOUSING PROGRAMME,892941,130248030,09/03/2016,"1,936.52",THE BRANDON TRUST,SP0005337
WANDSWORTH COUNCIL,ASC,SOCIAL SERVICES,VOL ASS,Revenue,SUPPORTED HOUSING PROGRAMME,892942,130248030,09/03/2016,"7,764.16",THE BRANDON TRUST,SP0005337
WANDSWORTH COUNCIL,ASC,SOCIAL SERVICES,VOL ASS,Revenue,SUPPORTED HOUSING PROGRAMME,892943,130248030,09/03/2016,"2,327.04",THE BRANDON TRUST,SP0005337
WANDSWORTH COUNCIL,ASC,SOCIAL SERVICES,VOL ASS,Revenue,SUPPORTED HOUSING PROGRAMME,892944,130248030,09/03/2016,"5,629.64",THE BRANDON TRUST,SP0005337
WANDSWORTH COUNCIL,ASC,SOCIAL SERVICES,VOL ASS,Revenue,SUPPORTED HOUSING PROGRAMME,892945,130248030,09/03/2016,"2,969.16",THE BRANDON TRUST,SP0005337
WANDSWORTH COUNCIL,ASC,SOCIAL SERVICES,VOL ASS,Revenue,SUPPORTED HOUSING PROGRAMME,892946,130248030,09/03/2016,"2,979.92",THE BRANDON TRUST,SP0005337
WANDSWORTH COUNCIL,ASC,SOCIAL SERVICES,VOL ASS,Revenue,SUPPORTED HOUSING PROGRAMME,892947,130248030,09/03/2016,"2,186.04",THE BRANDON TRUST,SP0005337
WANDSWORTH COUNCIL,ASC,SOCIAL SERVICES,VOL ASS,Revenue,SUPPORTED HOUSING PROGRAMME,892948,130248030,09/03/2016,"2,160.00",THE BRANDON TRUST,SP0005337
WANDSWORTH COUNCIL,ASC,SOCIAL SERVICES,VOL ASS,Revenue,SUPPORTED HOUSING PROGRAMME,892949,130248030,09/03/2016,"1,125.08",THE BRANDON TRUST,SP0005337
WANDSWORTH COUNCIL,ASC,SOCIAL SERVICES,VOL ASS,Revenue,SUPPORTED HOUSING PROGRAMME,892950,130248030,09/03/2016,"1,155.88",THE BRANDON TRUST,SP0005337
WANDSWORTH COUNCIL,ASC,SOCIAL SERVICES,VOL ASS,Revenue,SUPPORTED HOUSING PROGRAMME,892951,130248030,09/03/2016,"1,854.72",THE BRANDON TRUST,SP0005337
WANDSWORTH COUNCIL,ASC,SOCIAL SERVICES,VOL ASS,Revenue,SUPPORTED HOUSING PROGRAMME,892952,130248030,09/03/2016,"1,380.64",THE BRANDON TRUST,SP0005337
WANDSWORTH COUNCIL,ASC,SOCIAL SERVICES,VOL ASS,Revenue,SUPPORTED HOUSING PROGRAMME,892953,130248030,09/03/2016,"1,466.16",THE BRANDON TRUST,SP0005337
WANDSWORTH COUNCIL,ASC,SOCIAL SERVICES,VOL ASS,Revenue,SUPPORTED HOUSING PROGRAMME,892954,130248030,09/03/2016,"1,513.68",THE BRANDON TRUST,SP0005337
WANDSWORTH COUNCIL,ASC,SOCIAL SERVICES,VOL ASS,Revenue,SUPPORTED HOUSING PROGRAMME,892955,130248030,09/03/2016,"1,513.68",THE BRANDON TRUST,SP0005337
WANDSWORTH COUNCIL,ASC,SOCIAL SERVICES,VOL ASS,Revenue,SUPPORTED HOUSING PROGRAMME,892956,130248030,09/03/2016,"2,856.96",THE BRANDON TRUST,SP0005337
WANDSWORTH COUNCIL,ASC,SOCIAL SERVICES,VOL ASS,Revenue,SUPPORTED HOUSING PROGRAMME,892957,130248030,09/03/2016,"2,260.80",THE BRANDON TRUST,SP0005337
WANDSWORTH COUNCIL,ASC,SOCIAL SERVICES,VOL ASS,Revenue,SUPPORTED HOUSING PROGRAMME,892958,130248030,09/03/2016,"3,453.12",THE BRANDON TRUST,SP0005337
WANDSWORTH COUNCIL,ASC,SOCIAL SERVICES,VOL ASS,Revenue,SUPPORTED HOUSING PROGRAMME,892959,130248030,09/03/2016,"2,804.72",THE BRANDON TRUST,SP0005337
WANDSWORTH COUNCIL,ASC,SOCIAL SERVICES,VOL ASS,Revenue,SUPPORTED HOUSING PROGRAMME,892961,130248030,09/03/2016,"1,886.40",THE BRANDON TRUST,SP0005337
WANDSWORTH COUNCIL,ASC,SOCIAL SERVICES,VOL ASS,Revenue,SUPPORTED HOUSING PROGRAMME,892962,130248030,09/03/2016,"1,797.12",THE BRANDON TRUST,SP0005337
WANDSWORTH COUNCIL,ASC,SOCIAL SERVICES,VOL ASS,Revenue,SUPPORTED HOUSING PROGRAMME,892963,130248030,09/03/2016,"2,062.08",THE BRANDON TRUST,SP0005337
WANDSWORTH COUNCIL,ASC,SOCIAL SERVICES,VOL ASS,Revenue,SUPPORTED HOUSING PROGRAMME,892964,130248030,09/03/2016,"3,520.16",THE BRANDON TRUST,SP0005337
WANDSWORTH COUNCIL,ASC,SOCIAL SERVICES,VOL ASS,Revenue,SUPPORTED HOUSING PROGRAMME,892965,130248030,09/03/2016,"2,580.17",THE BRANDON TRUST,SP0005337
WANDSWORTH COUNCIL,ASC,SOCIAL SERVICES,VOL ASS,Revenue,SUPPORTED HOUSING PROGRAMME,892966,130248030,09/03/2016,"3,453.12",THE BRANDON TRUST,SP0005337
WANDSWORTH COUNCIL,ASC,SOCIAL SERVICES,VOL ASS,Revenue,SUPPORTED HOUSING PROGRAMME,892967,130248030,09/03/2016,"2,923.88",THE BRANDON TRUST,SP0005337
WANDSWORTH COUNCIL,ASC,SOCIAL SERVICES,VOL ASS,Revenue,SUPPORTED HOUSING PROGRAMME,892968,130248030,09/03/2016,"3,320.64",THE BRANDON TRUST,SP0005337
WANDSWORTH COUNCIL,ASC,SOCIAL SERVICES,VOL ASS,Revenue,SUPPORTED HOUSING PROGRAMME,892969,130248030,09/03/2016,"3,702.20",THE BRANDON TRUST,SP0005337
WANDSWORTH COUNCIL,ASC,SOCIAL SERVICES,VOL ASS,Revenue,SUPPORTED HOUSING PROGRAMME,892970,130248030,09/03/2016,"1,465.92",THE BRANDON TRUST,SP0005337
WANDSWORTH COUNCIL,ASC,SOCIAL SERVICES,VOL ASS,Revenue,SUPPORTED HOUSING PROGRAMME,892971,130248030,09/03/2016,"3,718.08",THE BRANDON TRUST,SP0005337
WANDSWORTH COUNCIL,ASC,SOCIAL SERVICES,VOL ASS,Revenue,SUPPORTED HOUSING PROGRAMME,892972,130248030,09/03/2016,"3,121.92",THE BRANDON TRUST,SP0005337
WANDSWORTH COUNCIL,ASC,SOCIAL SERVICES,VOL ASS,Revenue,SUPPORTED HOUSING PROGRAMME,892973,130248030,09/03/2016,"5,688.08",THE BRANDON TRUST,SP0005337
WANDSWORTH COUNCIL,ASC,SOCIAL SERVICES,VOL ASS,Revenue,SUPPORTED HOUSING PROGRAMME,892974,130248030,09/03/2016,"5,983.44",THE BRANDON TRUST,SP0005337
WANDSWORTH COUNCIL,ASC,SOCIAL SERVICES,VOL ASS,Revenue,SUPPORTED HOUSING PROGRAMME,892975,130248030,09/03/2016,"4,827.60",THE BRANDON TRUST,SP0005337
WANDSWORTH COUNCIL,ASC,SOCIAL SERVICES,VOL ASS,Revenue,SUPPORTED HOUSING PROGRAMME,892976,130248030,09/03/2016,"6,344.92",THE BRANDON TRUST,SP0005337
WANDSWORTH COUNCIL,ASC,SOCIAL SERVICES,VOL ASS,Revenue,SUPPORTED HOUSING PROGRAMME,892977,130248030,09/03/2016,"3,324.96",THE BRANDON TRUST,SP0005337
WANDSWORTH COUNCIL,ASC,SOCIAL SERVICES,VOL ASS,Revenue,SUPPORTED HOUSING PROGRAMME,892978,130248030,09/03/2016,"2,886.04",THE BRANDON TRUST,SP0005337
WANDSWORTH COUNCIL,ASC,SOCIAL SERVICES,VOL ASS,Revenue,SUPPORTED HOUSING PROGRAMME,892979,130248030,09/03/2016,"2,856.96",THE BRANDON TRUST,SP0005337
WANDSWORTH COUNCIL,ASC,SOCIAL SERVICES,VOL ASS,Revenue,SUPPORTED HOUSING PROGRAMME,892980,130248030,09/03/2016,"6,198.76",THE BRANDON TRUST,SP0005337
WANDSWORTH COUNCIL,ASC,SOCIAL SERVICES,VOL ASS,Revenue,SUPPORTED HOUSING PROGRAMME,892981,130248030,09/03/2016,"1,465.92",THE BRANDON TRUST,SP0005337
WANDSWORTH COUNCIL,ASC,SOCIAL SERVICES,VOL ASS,Revenue,SUPPORTED HOUSING PROGRAMME,892982,130248030,09/03/2016,"1,548.72",THE BRANDON TRUST,SP0005337
WANDSWORTH COUNCIL,ASC,SOCIAL SERVICES,VOL ASS,Revenue,SUPPORTED HOUSING PROGRAMME,892983,130248030,09/03/2016,"2,592.60",THE BRANDON TRUST,SP0005337
WANDSWORTH COUNCIL,ASC,SOCIAL SERVICES,VOL ASS,Revenue,SUPPORTED HOUSING PROGRAMME,892984,130248030,09/03/2016,"2,724.48",THE BRANDON TRUST,SP0005337
WANDSWORTH COUNCIL,ASC,SOCIAL SERVICES,VOL ASS,Revenue,SUPPORTED HOUSING PROGRAMME,892985,130248030,09/03/2016,"3,564.56",THE BRANDON TRUST,SP0005337
WANDSWORTH COUNCIL,ASC,SOCIAL SERVICES,VOL ASS,Revenue,SUPPORTED HOUSING PROGRAMME,892986,130248030,09/03/2016,"3,416.80",THE BRANDON TRUST,SP0005337
WANDSWORTH COUNCIL,ASC,SOCIAL SERVICES,VOL ASS,Revenue,SUPPORTED HOUSING PROGRAMME,892987,130248030,09/03/2016,"2,848.72",THE BRANDON TRUST,SP0005337
WANDSWORTH COUNCIL,ASC,SOCIAL SERVICES,VOL ASS,Revenue,SUPPORTED HOUSING PROGRAMME,892988,130248030,09/03/2016,"2,327.24",THE BRANDON TRUST,SP0005337
WANDSWORTH COUNCIL,ASC,SOCIAL SERVICES,VOL ASS,Revenue,SUPPORTED HOUSING PROGRAMME,892989,130248030,09/03/2016,"2,327.24",THE BRANDON TRUST,SP0005337
WANDSWORTH COUNCIL,ASC,SOCIAL SERVICES,VOL ASS,Revenue,SUPPORTED HOUSING PROGRAMME,892990,130248030,09/03/2016,"2,065.12",THE BRANDON TRUST,SP0005337
WANDSWORTH COUNCIL,ASC,SOCIAL SERVICES,VOL ASS,Revenue,SUPPORTED HOUSING PROGRAMME,893004,130248030,09/03/2016,"1,499.44",THE BRANDON TRUST,SP0005337
WANDSWORTH COUNCIL,ASC,SOCIAL SERVICES,VOL ASS,Revenue,SUPPORTED HOUSING PROGRAMME,893008,130248030,09/03/2016,591.04,THE BRANDON TRUST,SP0005337
WANDSWORTH COUNCIL,ASC,SOCIAL SERVICES,VOL ASS,Revenue,SUPPORTED HOUSING PROGRAMME,893011,130248030,09/03/2016,"1,034.48",THE BRANDON TRUST,SP0005337
WANDSWORTH COUNCIL,ASC,SOCIAL SERVICES,VOL ASS,Revenue,SUPPORTED HOUSING PROGRAMME,893026,130248030,09/03/2016,"1,625.36",THE BRANDON TRUST,SP0005337
WANDSWORTH COUNCIL,ASC,SOCIAL SERVICES,VOL ASS,Revenue,SUPPORTED HOUSING PROGRAMME,893027,130248030,09/03/2016,"1,674.84",THE BRANDON TRUST,SP0005337
WANDSWORTH COUNCIL,ASC,SOCIAL SERVICES,VOL ASS,Revenue,SUPPORTED HOUSING PROGRAMME,893028,130248030,09/03/2016,"5,630.08",THE BRANDON TRUST,SP0005337
WANDSWORTH COUNCIL,ASC,SOCIAL SERVICES,VOL ASS,Revenue,SUPPORTED HOUSING PROGRAMME,893031,130248030,09/03/2016,"2,459.52",THE BRANDON TRUST,SP0005337
WANDSWORTH COUNCIL,ASC,SOCIAL SERVICES,VOL ASS,Revenue,SUPPORTED HOUSING PROGRAMME,893032,130248030,09/03/2016,"3,883.68",THE BRANDON TRUST,SP0005337
WANDSWORTH COUNCIL,ASC,SOCIAL SERVICES,VOL ASS,Revenue,SUPPORTED HOUSING PROGRAMME,893033,130248030,09/03/2016,"2,618.48",THE BRANDON TRUST,SP0005337
WANDSWORTH COUNCIL,ASC,SOCIAL SERVICES,VOL ASS,Revenue,SUPPORTED HOUSING PROGRAMME,893034,130248030,09/03/2016,"1,730.88",THE BRANDON TRUST,SP0005337
WANDSWORTH COUNCIL,ASC,SOCIAL SERVICES,VOL ASS,Revenue,SUPPORTED HOUSING PROGRAMME,893042,130248030,09/03/2016,"1,465.92",THE BRANDON TRUST,SP0005337
WANDSWORTH COUNCIL,ASC,SOCIAL SERVICES,VOL ASS,Revenue,SUPPORTED HOUSING PROGRAMME,893043,130248030,09/03/2016,"2,606.80",THE BRANDON TRUST,SP0005337
WANDSWORTH COUNCIL,ASC,SOCIAL SERVICES,VOL ASS,Revenue,SUPPORTED HOUSING PROGRAMME,893045,130248030,09/03/2016,"2,631.48",THE BRANDON TRUST,SP0005337
WANDSWORTH COUNCIL,ASC,SOCIAL SERVICES,VOL ASS,Revenue,SUPPORTED HOUSING PROGRAMME,893048,130248030,09/03/2016,"4,177.52",THE BRANDON TRUST,SP0005337
WANDSWORTH COUNCIL,ASC,SOCIAL SERVICES,VOL ASS,Revenue,SUPPORTED HOUSING PROGRAMME,893049,130248030,09/03/2016,"2,128.32",THE BRANDON TRUST,SP0005337
WANDSWORTH COUNCIL,ASC,,VOL ASS,Revenue,SUPPORTED HOUSING PROGRAMME,905409,130248030,30/03/2016,"10,557.40",THE BRANDON TRUST,SP0005337
WANDSWORTH COUNCIL,ASC,SOCIAL SERVICES,VOL ASS,Revenue,SUPPORTED HOUSING PROGRAMME,908034,130248030,24/03/2016,"1,518.99",THE BRANDON TRUST,SP0005337
WANDSWORTH COUNCIL,ASC,SOCIAL SERVICES,VOL ASS,Revenue,SUPPORTED HOUSING PROGRAMME,908035,130248030,24/03/2016,"2,405.96",THE BRANDON TRUST,SP0005337
WANDSWORTH COUNCIL,ASC,SOCIAL SERVICES,VOL ASS,Revenue,SUPPORTED HOUSING PROGRAMME,908036,130248030,24/03/2016,"1,465.92",THE BRANDON TRUST,SP0005337
WANDSWORTH COUNCIL,ASC,SOCIAL SERVICES,VOL ASS,Revenue,SUPPORTED HOUSING PROGRAMME,908037,130248030,24/03/2016,"1,465.92",THE BRANDON TRUST,SP0005337
WANDSWORTH COUNCIL,ASC,SOCIAL SERVICES,VOL ASS,Revenue,SUPPORTED HOUSING PROGRAMME,908039,130248030,24/03/2016,"1,435.88",THE BRANDON TRUST,SP0005337
WANDSWORTH COUNCIL,ASC,SOCIAL SERVICES,VOL ASS,Revenue,SUPPORTED HOUSING PROGRAMME,908047,130248030,24/03/2016,"1,551.32",THE BRANDON TRUST,SP0005337
WANDSWORTH COUNCIL,ASC,SOCIAL SERVICES,VOL ASS,Revenue,SUPPORTED HOUSING PROGRAMME,908048,130248030,24/03/2016,"1,936.52",THE BRANDON TRUST,SP0005337
WANDSWORTH COUNCIL,ASC,SOCIAL SERVICES,VOL ASS,Revenue,SUPPORTED HOUSING PROGRAMME,908049,130248030,24/03/2016,"7,764.16",THE BRANDON TRUST,SP0005337
WANDSWORTH COUNCIL,ASC,SOCIAL SERVICES,VOL ASS,Revenue,SUPPORTED HOUSING PROGRAMME,908050,130248030,24/03/2016,"2,327.04",THE BRANDON TRUST,SP0005337
WANDSWORTH COUNCIL,ASC,SOCIAL SERVICES,VOL ASS,Revenue,SUPPORTED HOUSING PROGRAMME,908051,130248030,24/03/2016,"5,629.64",THE BRANDON TRUST,SP0005337
WANDSWORTH COUNCIL,ASC,SOCIAL SERVICES,VOL ASS,Revenue,SUPPORTED HOUSING PROGRAMME,908052,130248030,24/03/2016,"2,969.16",THE BRANDON TRUST,SP0005337
WANDSWORTH COUNCIL,ASC,SOCIAL SERVICES,VOL ASS,Revenue,SUPPORTED HOUSING PROGRAMME,908053,130248030,24/03/2016,"2,979.92",THE BRANDON TRUST,SP0005337
WANDSWORTH COUNCIL,ASC,SOCIAL SERVICES,VOL ASS,Revenue,SUPPORTED HOUSING PROGRAMME,908054,130248030,24/03/2016,"2,160.00",THE BRANDON TRUST,SP0005337
WANDSWORTH COUNCIL,ASC,SOCIAL SERVICES,VOL ASS,Revenue,SUPPORTED HOUSING PROGRAMME,908055,130248030,24/03/2016,"1,125.08",THE BRANDON TRUST,SP0005337
WANDSWORTH COUNCIL,ASC,SOCIAL SERVICES,VOL ASS,Revenue,SUPPORTED HOUSING PROGRAMME,908056,130248030,24/03/2016,"1,155.88",THE BRANDON TRUST,SP0005337
WANDSWORTH COUNCIL,ASC,SOCIAL SERVICES,VOL ASS,Revenue,SUPPORTED HOUSING PROGRAMME,908057,130248030,24/03/2016,"1,854.72",THE BRANDON TRUST,SP0005337
WANDSWORTH COUNCIL,ASC,SOCIAL SERVICES,VOL ASS,Revenue,SUPPORTED HOUSING PROGRAMME,908058,130248030,24/03/2016,"1,380.64",THE BRANDON TRUST,SP0005337
WANDSWORTH COUNCIL,ASC,SOCIAL SERVICES,VOL ASS,Revenue,SUPPORTED HOUSING PROGRAMME,908059,130248030,24/03/2016,"1,466.16",THE BRANDON TRUST,SP0005337
WANDSWORTH COUNCIL,ASC,SOCIAL SERVICES,VOL ASS,Revenue,SUPPORTED HOUSING PROGRAMME,908060,130248030,24/03/2016,"1,513.68",THE BRANDON TRUST,SP0005337
WANDSWORTH COUNCIL,ASC,SOCIAL SERVICES,VOL ASS,Revenue,SUPPORTED HOUSING PROGRAMME,908061,130248030,24/03/2016,"1,513.68",THE BRANDON TRUST,SP0005337
WANDSWORTH COUNCIL,ASC,SOCIAL SERVICES,VOL ASS,Revenue,SUPPORTED HOUSING PROGRAMME,908062,130248030,24/03/2016,"2,856.96",THE BRANDON TRUST,SP0005337
WANDSWORTH COUNCIL,ASC,SOCIAL SERVICES,VOL ASS,Revenue,SUPPORTED HOUSING PROGRAMME,908063,130248030,24/03/2016,"2,260.80",THE BRANDON TRUST,SP0005337
WANDSWORTH COUNCIL,ASC,SOCIAL SERVICES,VOL ASS,Revenue,SUPPORTED HOUSING PROGRAMME,908064,130248030,24/03/2016,"3,453.12",THE BRANDON TRUST,SP0005337
WANDSWORTH COUNCIL,ASC,SOCIAL SERVICES,VOL ASS,Revenue,SUPPORTED HOUSING PROGRAMME,908065,130248030,24/03/2016,"2,804.72",THE BRANDON TRUST,SP0005337
WANDSWORTH COUNCIL,ASC,SOCIAL SERVICES,VOL ASS,Revenue,SUPPORTED HOUSING PROGRAMME,908067,130248030,24/03/2016,"1,886.40",THE BRANDON TRUST,SP0005337
WANDSWORTH COUNCIL,ASC,SOCIAL SERVICES,VOL ASS,Revenue,SUPPORTED HOUSING PROGRAMME,908068,130248030,24/03/2016,"1,797.12",THE BRANDON TRUST,SP0005337
WANDSWORTH COUNCIL,ASC,SOCIAL SERVICES,VOL ASS,Revenue,SUPPORTED HOUSING PROGRAMME,908069,130248030,24/03/2016,"2,062.08",THE BRANDON TRUST,SP0005337
WANDSWORTH COUNCIL,ASC,SOCIAL SERVICES,VOL ASS,Revenue,SUPPORTED HOUSING PROGRAMME,908070,130248030,24/03/2016,"3,520.16",THE BRANDON TRUST,SP0005337
WANDSWORTH COUNCIL,ASC,SOCIAL SERVICES,VOL ASS,Revenue,SUPPORTED HOUSING PROGRAMME,908071,130248030,24/03/2016,"2,580.17",THE BRANDON TRUST,SP0005337
WANDSWORTH COUNCIL,ASC,SOCIAL SERVICES,VOL ASS,Revenue,SUPPORTED HOUSING PROGRAMME,908072,130248030,24/03/2016,"3,453.12",THE BRANDON TRUST,SP0005337
WANDSWORTH COUNCIL,ASC,SOCIAL SERVICES,VOL ASS,Revenue,SUPPORTED HOUSING PROGRAMME,908086,130248030,24/03/2016,"2,923.88",THE BRANDON TRUST,SP0005337
WANDSWORTH COUNCIL,ASC,SOCIAL SERVICES,VOL ASS,Revenue,SUPPORTED HOUSING PROGRAMME,908087,130248030,24/03/2016,"4,688.56",THE BRANDON TRUST,SP0005337
WANDSWORTH COUNCIL,ASC,SOCIAL SERVICES,VOL ASS,Revenue,SUPPORTED HOUSING PROGRAMME,908088,130248030,24/03/2016,"3,320.64",THE BRANDON TRUST,SP0005337
WANDSWORTH COUNCIL,ASC,SOCIAL SERVICES,VOL ASS,Revenue,SUPPORTED HOUSING PROGRAMME,908089,130248030,24/03/2016,"3,702.20",THE BRANDON TRUST,SP0005337
WANDSWORTH COUNCIL,ASC,SOCIAL SERVICES,VOL ASS,Revenue,SUPPORTED HOUSING PROGRAMME,908090,130248030,24/03/2016,"1,465.92",THE BRANDON TRUST,SP0005337
WANDSWORTH COUNCIL,ASC,SOCIAL SERVICES,VOL ASS,Revenue,SUPPORTED HOUSING PROGRAMME,908091,130248030,24/03/2016,"3,718.08",THE BRANDON TRUST,SP0005337
WANDSWORTH COUNCIL,ASC,SOCIAL SERVICES,VOL ASS,Revenue,SUPPORTED HOUSING PROGRAMME,908092,130248030,24/03/2016,"3,121.92",THE BRANDON TRUST,SP0005337
WANDSWORTH COUNCIL,ASC,SOCIAL SERVICES,VOL ASS,Revenue,SUPPORTED HOUSING PROGRAMME,908093,130248030,24/03/2016,"5,688.08",THE BRANDON TRUST,SP0005337
WANDSWORTH COUNCIL,ASC,SOCIAL SERVICES,VOL ASS,Revenue,SUPPORTED HOUSING PROGRAMME,908094,130248030,24/03/2016,"5,983.44",THE BRANDON TRUST,SP0005337
WANDSWORTH COUNCIL,ASC,SOCIAL SERVICES,VOL ASS,Revenue,SUPPORTED HOUSING PROGRAMME,908095,130248030,24/03/2016,"4,827.60",THE BRANDON TRUST,SP0005337
WANDSWORTH COUNCIL,ASC,SOCIAL SERVICES,VOL ASS,Revenue,SUPPORTED HOUSING PROGRAMME,908096,130248030,24/03/2016,"6,344.92",THE BRANDON TRUST,SP0005337
WANDSWORTH COUNCIL,ASC,SOCIAL SERVICES,VOL ASS,Revenue,SUPPORTED HOUSING PROGRAMME,908097,130248030,24/03/2016,"3,324.96",THE BRANDON TRUST,SP0005337
WANDSWORTH COUNCIL,ASC,SOCIAL SERVICES,VOL ASS,Revenue,SUPPORTED HOUSING PROGRAMME,908098,130248030,24/03/2016,"2,886.04",THE BRANDON TRUST,SP0005337
WANDSWORTH COUNCIL,ASC,SOCIAL SERVICES,VOL ASS,Revenue,SUPPORTED HOUSING PROGRAMME,908099,130248030,24/03/2016,"2,856.96",THE BRANDON TRUST,SP0005337
WANDSWORTH COUNCIL,ASC,SOCIAL SERVICES,VOL ASS,Revenue,SUPPORTED HOUSING PROGRAMME,908100,130248030,24/03/2016,"2,128.32",THE BRANDON TRUST,SP0005337
WANDSWORTH COUNCIL,ASC,SOCIAL SERVICES,VOL ASS,Revenue,SUPPORTED HOUSING PROGRAMME,908101,130248030,24/03/2016,"6,198.76",THE BRANDON TRUST,SP0005337
WANDSWORTH COUNCIL,ASC,SOCIAL SERVICES,VOL ASS,Revenue,SUPPORTED HOUSING PROGRAMME,908102,130248030,24/03/2016,"1,465.92",THE BRANDON TRUST,SP0005337
WANDSWORTH COUNCIL,ASC,SOCIAL SERVICES,VOL ASS,Revenue,SUPPORTED HOUSING PROGRAMME,908103,130248030,24/03/2016,"1,548.72",THE BRANDON TRUST,SP0005337
WANDSWORTH COUNCIL,ASC,SOCIAL SERVICES,VOL ASS,Revenue,SUPPORTED HOUSING PROGRAMME,908104,130248030,24/03/2016,"2,592.60",THE BRANDON TRUST,SP0005337
WANDSWORTH COUNCIL,ASC,SOCIAL SERVICES,VOL ASS,Revenue,SUPPORTED HOUSING PROGRAMME,908105,130248030,24/03/2016,"2,724.48",THE BRANDON TRUST,SP0005337
WANDSWORTH COUNCIL,ASC,SOCIAL SERVICES,VOL ASS,Revenue,SUPPORTED HOUSING PROGRAMME,908106,130248030,24/03/2016,"3,564.56",THE BRANDON TRUST,SP0005337
WANDSWORTH COUNCIL,ASC,SOCIAL SERVICES,VOL ASS,Revenue,SUPPORTED HOUSING PROGRAMME,908107,130248030,24/03/2016,"3,416.80",THE BRANDON TRUST,SP0005337
WANDSWORTH COUNCIL,ASC,SOCIAL SERVICES,VOL ASS,Revenue,SUPPORTED HOUSING PROGRAMME,908108,130248030,24/03/2016,"2,848.72",THE BRANDON TRUST,SP0005337
WANDSWORTH COUNCIL,ASC,SOCIAL SERVICES,VOL ASS,Revenue,SUPPORTED HOUSING PROGRAMME,908109,130248030,24/03/2016,"2,327.24",THE BRANDON TRUST,SP0005337
WANDSWORTH COUNCIL,ASC,SOCIAL SERVICES,VOL ASS,Revenue,SUPPORTED HOUSING PROGRAMME,908110,130248030,24/03/2016,"2,327.24",THE BRANDON TRUST,SP0005337
WANDSWORTH COUNCIL,ASC,SOCIAL SERVICES,VOL ASS,Revenue,SUPPORTED HOUSING PROGRAMME,908111,130248030,24/03/2016,"2,065.12",THE BRANDON TRUST,SP0005337
WANDSWORTH COUNCIL,ASC,SOCIAL SERVICES,VOL ASS,Revenue,SUPPORTED HOUSING PROGRAMME,894436,130248030,10/03/2016,"6,120.00",RELIABLE PERSONNEL LTD,SP0005657
WANDSWORTH COUNCIL,ASC,SOCIAL SERVICES,VOL ASS,Revenue,SUPPORTED HOUSING PROGRAMME,897846,130248030,16/03/2016,610.85,MCCALLUM CARE LTD CAREMARK (WANDSWORTH),SP0006036
WANDSWORTH COUNCIL,ASC,SOCIAL SERVICES,VOL ASS,Revenue,SUPPORTED HOUSING PROGRAMME,908076,130248030,24/03/2016,"4,400.00",MORTON GARDENS,SP0008639
WANDSWORTH COUNCIL,ASC,SOCIAL SERVICES,VOL ASS,Revenue,SUPPORTED HOUSING PROGRAMME,887126,130248030,01/03/2016,784.00,LIVE TOO LIMITED,SP0010112
WANDSWORTH COUNCIL,ASC,SOCIAL SERVICES,VOL ASS,Revenue,SUPPORTED HOUSING PROGRAMME,887127,130248030,01/03/2016,"2,160.00",LIVE TOO LIMITED,SP0010112
WANDSWORTH COUNCIL,ASC,SOCIAL SERVICES,VOL ASS,Revenue,SUPPORTED HOUSING PROGRAMME,887129,130248030,01/03/2016,"1,800.00",LIVE TOO LIMITED,SP0010112
WANDSWORTH COUNCIL,ASC,SOCIAL SERVICES,VOL ASS,Revenue,SUPPORTED HOUSING PROGRAMME,887130,130248030,01/03/2016,"1,200.00",LIVE TOO LIMITED,SP0010112
WANDSWORTH COUNCIL,ASC,SOCIAL SERVICES,VOL ASS,Revenue,SUPPORTED HOUSING PROGRAMME,887131,130248030,01/03/2016,"1,620.00",LIVE TOO LIMITED,SP0010112
WANDSWORTH COUNCIL,ASC,SOCIAL SERVICES,VOL ASS,Revenue,SUPPORTED HOUSING PROGRAMME,887132,130248030,01/03/2016,"11,760.00",LIVE TOO LIMITED,SP0010112
WANDSWORTH COUNCIL,ASC,SOCIAL SERVICES,VOL ASS,Revenue,SUPPORTED HOUSING PROGRAMME,887134,130248030,01/03/2016,"1,260.00",LIVE TOO LIMITED,SP0010112
WANDSWORTH COUNCIL,ASC,SOCIAL SERVICES,VOL ASS,Revenue,SUPPORTED HOUSING PROGRAMME,887135,130248030,01/03/2016,930.00,LIVE TOO LIMITED,SP0010112
WANDSWORTH COUNCIL,ASC,SOCIAL SERVICES,VOL ASS,Revenue,SUPPORTED HOUSING PROGRAMME,887136,130248030,01/03/2016,"1,440.00",LIVE TOO LIMITED,SP0010112
WANDSWORTH COUNCIL,ASC,SOCIAL SERVICES,VOL ASS,Revenue,SUPPORTED HOUSING PROGRAMME,887137,130248030,01/03/2016,"1,320.00",LIVE TOO LIMITED,SP0010112
WANDSWORTH COUNCIL,ASC,SOCIAL SERVICES,VOL ASS,Revenue,SUPPORTED HOUSING PROGRAMME,887138,130248030,01/03/2016,990.00,LIVE TOO LIMITED,SP0010112
WANDSWORTH COUNCIL,ASC,SOCIAL SERVICES,VOL ASS,Revenue,SUPPORTED HOUSING PROGRAMME,887140,130248030,01/03/2016,720.00,LIVE TOO LIMITED,SP0010112
WANDSWORTH COUNCIL,ASC,SOCIAL SERVICES,VOL ASS,Revenue,SUPPORTED HOUSING PROGRAMME,887141,130248030,01/03/2016,"1,710.00",LIVE TOO LIMITED,SP0010112
WANDSWORTH COUNCIL,ASC,SOCIAL SERVICES,VOL ASS,Revenue,SUPPORTED HOUSING PROGRAMME,887144,130248030,01/03/2016,"1,350.00",LIVE TOO LIMITED,SP0010112
WANDSWORTH COUNCIL,ASC,SOCIAL SERVICES,VOL ASS,Revenue,SUPPORTED HOUSING PROGRAMME,887148,130248030,01/03/2016,"1,568.00",LIVE TOO LIMITED,SP0010112
WANDSWORTH COUNCIL,ASC,SOCIAL SERVICES,VOL ASS,Revenue,SUPPORTED HOUSING PROGRAMME,887149,130248030,01/03/2016,700.00,LIVE TOO LIMITED,SP0010112
WANDSWORTH COUNCIL,ASC,SOCIAL SERVICES,VOL ASS,Revenue,SUPPORTED HOUSING PROGRAMME,887150,130248030,01/03/2016,"2,400.00",LIVE TOO LIMITED,SP0010112
